{"text_format":"1","workbook":"xlsx","n_sheets":13,"sheets":["Dt","General","Resumen","Estado_del_arte","Objetivos","Etica","Cronograma","Integrantes","Productos","Impactos","Presupuesto","Bibliografía","Declaración"],"not_rendered":{"charts":0,"images":1,"macros":1,"external_links":0,"defined_names":66,"comments":6,"pivot_tables":0},"unopened":[],"bounds":{"document_bytes":16777216,"sheet_cells":100000,"rows_first":2000,"rows_last":500,"rows_between":2000,"halvings":0,"cell_chars":16384,"cell_head_chars":4096},"cells_cut":0,"cells_raw":0,"read":"whole","date_system":"1900"}

{"sheet":"Dt","index":0,"n_rows":2005,"n_cols":648,"rows_kept":2005,"cut":false,"hidden":true,"merged":[]}
[null,"No eliminar Hoja … :)))",null,null,null,null,null,null,null,null,null,null,null,null,null,null,null,null,null,null,null,null,null,null,null,null,"No","Campo ","1_Opcion","2_Opcion",null,"Avaya1719",null,null,null,null,null,null,null,null,null,null,"http://scienti.colciencias.gov.co:8080/gruplac/jsp/visualiza/visualizagr.jsp?nro="]
[null,null,null,null,null,null,null,null,null,null,null,null,null,null,null,null,null,null,null,null,null,null,null,null,null,null,1,"Sedes","Calle 100",null,null,null,null,null,null,null,null,null,null,null,null,null,null,null,null,"BB",null,{"$f":"MIN(BD3:BD294)","v":4},{"$f":"MAX(BD3:BD294)","v":294}]
[null,null,null,null," ",null,null,null,null,null,null,null,null,null,null,null,null,null,null,null,null,null,null,null,null,null,2,"Sedes","Campus Cajicá",null,null,null,null,null,null,null,"Hoja",null,null,"Hoja","FAC","Grupo","COD","Clas","Link","Líneas","Fila Grupo","Min","Max","FAC",null,null,"COD","Línea","Cel","Fila","E:Gp",null,"Código de Grupo",null,null,null,null,"Hora","Agente","Agente",null,null,"Id","ID Final","Clase","Subclase","Producto","Descripción","Indicador",null,null,"Errores","No ERROR","Hoja","Descripción","Mensaje"," Validación","Item1","Item2","Item3",null,"Nhoja","Nombre","Error",null,"No","Tipo","Duración","Tipo","Alcance","Línea","SRL"]
[null,null,null,null,null,null,null,null,null,null,null,null,null,null,null,null,null,null,null,null,null,null,null,null,null,null,3,"Sedes","Medicina",null,null,null,null,null,null,null,3,1,{"$f":"COUNTIF($AN$4:$AN$811,AL4)","v":1},1,"CIAS","Fitoplasmas y Virus","COL0028687","B","https://scienti.minciencias.gov.co/gruplac/jsp/visualiza/visualizagr.jsp?nro=00000000008436",{"$f":"$AT$2&AV4&\":\"&$AT$2&AW4","v":"BB256:BB257"},{"$f":"ROW()","v":4},{"$f":"MINA(IF(AQ4=$BA$4:$BA$410,$BD$4:$BD$410))","v":256},{"$f":"MAXA(IF(AQ4=$BA$4:$BA$410,$BD$4:$BD$410))","v":257},"CIAS",null,null,"COL0178619","Modelos de simulación",{"$f":"COUNTIF(BA$4:BA4,BA4)","v":1},{"$f":"ROW()","v":4},{"$f":"COUNTIF($AQ$3:$AQ$87,BA4)","v":1},null,"COL0015722",{"$f":"COUNTIF($AQ$4:$AQ$79,BG4)","v":1},null,null,null,"19:54:00","a","a",{"$f":"DMIN(BL3:BM12,\"hora\",BN3:BN4)","v":0.4548611111111111},"|",1,201,"Productos resultado de actividades de desarrollo tecnológico e innovación (DTI)","Software","Software aprobado para registro ante la DNDA, de acuerdo con procedimientos establecidos por la UMNG."," ","Soporte lógico registre el aval para el software que incluya : Manual técnico,  Manual de usuario todos con la inclusión código  de trazabilidad, "," ",null,null,{"$f":"ROW()-4","v":0},null,null,null,null,null,null,null,null,{"$f":"CA5","v":1},{"$f":"IFERROR(Fx_Nhj(CJ4),\"-\")","v":"Dt"},{"$f":"MAX(IF($CB$3:$CB$19=$CK4,$CE$3:$CE$19,0))","v":0},null,1,"Fin de la pobreza","Corto (1 año)","Político","Regional","Transferencia e intercambio de conocimiento","SRL 0 – Identificación del problema."]
[null,null,null,null,null,null,null,null,null,null,null,null,null,null,null,null,null,null,null,null,null,null,null,null,null,null,4,"Sedes","Posgrados calle 94",null,null,null,null,null,null,null,4,2,1,2,"CIAS","Grupo de investigación en Biodiversidad y Ecología de Abejas Silvestres","COL0031959","B","https://scienti.minciencias.gov.co/gruplac/jsp/visualiza/visualizagr.jsp?nro=00000000001366",{"$f":"$AT$2&AV5&\":\"&$AT$2&AW5","v":"BB109:BB113"},{"$f":"ROW()","v":5},{"$f":"MINA(IF(AQ5=$BA$4:$BA$410,$BD$4:$BD$410))","v":109},{"$f":"MAXA(IF(AQ5=$BA$4:$BA$410,$BD$4:$BD$410))","v":113},"CIAS",null,null,"COL0178619","Bioinnovación y educación",{"$f":"COUNTIF(BA$4:BA5,BA5)","v":2},{"$f":"ROW()","v":5},1,null,"COL0026486",1,null,null,null,"09:54:00","b","B",null,null,2,202,"Productos resultado de actividades de desarrollo tecnológico e innovación (DTI)","Esquema trazado","Esquema de trazado de circuito integrado registrado ante la SIC a través de acto administrativo que resuelva la concesión favorable."," ","Documento en el que se describa el esquema de trazado de circuito integrado obtenido con nombre, autor, fecha, cód. de trazabilidad  y autores debidamente registrados según  Res. vigente, Acto administrativo de la Superintendencia de Industria y Comercio que resuelva la concesión favorable."," ",null,null,{"$f":"ROW()-4","v":1},"Presupuesto","Supera Rubro Equipos del 50 %",{"$f":"\"Supera Rubro [Equipos], Límite esta en \"&TEXT(CH5,\"$ #.##0\")& \", está superando por :\"&TEXT(Presupuesto!F116-CH5,\"$ #.##0\")","v":"Supera Rubro [Equipos], Límite esta en $ 62.500.000, está superando por :-$ 62.500.000"},{"$f":"IF(CF5>CG5,CA5,0)","v":0},{"$f":"Presupuesto!Q52","v":0},{"$f":"Presupuesto!O52","v":0.5},{"$f":"Presupuesto!R52","v":62500000},null,{"$f":"CA6","v":2},{"$f":"IFERROR(Fx_Nhj(CJ5),\"-\")","v":"General"},{"$f":"MAX(IF($CB$3:$CB$19=$CK5,$CE$3:$CE$19,0))","v":0},null,{"$f":"CN4+1","v":2},"Hambre Cero ","Medio (2 años)","Salud","Nacional","Gestión del conocimiento para la apropiación","SRL 1 – Identificación del problema y el grado de madurez social."]
[null,null,null,null,null,null,null,null,null,null,null,null,null,null,null,null,null,null,null,null,null,null,null,null,null,null,1,"Facultad","Ciencias Básicas","CIAS",null,null,null,null,null,null,12,3,1,3,"CIAS","MATRIX","COL0039321","B","https://scienti.minciencias.gov.co/gruplac/jsp/visualiza/visualizagr.jsp?nro=00000000002208","BB278:BB282",{"$f":"ROW()","v":6},{"$f":"MINA(IF(AQ6=$BA$4:$BA$410,$BD$4:$BD$410))","v":278},{"$f":"MAXA(IF(AQ6=$BA$4:$BA$410,$BD$4:$BD$410))","v":282},"CIAS",null,null,"COL0178619","Biología de poblaciones y evolutiva de plantas, animales y microorganismos",{"$f":"COUNTIF(BA$4:BA6,BA6)","v":3},{"$f":"ROW()","v":6},1,null,"COL0027367",1,null,null,null,"17:54:00","c","c",null,null,3,203,"Productos resultado de actividades de desarrollo tecnológico e innovación (DTI)","Normas Internacionales","Regulaciones, normas, reglamentos o legislaciones implementadas internacionalmente, acorde con parámetros de Minciencias. "," ","\"Documento en el que se describa la regulación, norma, reglamento o legislación+CR10 obtenido con nombre, autor, fecha, cód. de trazabilidad  y autores debidamente registrados según  Res. vigente\" ,\"Certificado de la entidad o institución que emitió el producto, indicando la participación en su construcción de todos o de alguno de los integrantes del proyecto, título, país, ciudad, fecha de  publicación / implementación, tipo de regulación, ámbito."," ",null,null,2,"Presupuesto","Supera monto máximo",{"$f":"\"No puede superar en presupuesto solicitado \"&TEXT(CG6,\"$ #.##0\")&\" Lo supera en \"&TEXT(CH6,\"$ #.##0\")","v":"No puede superar en presupuesto solicitado $ 125.000.000 Lo supera en $ 125.000.000"},0,{"$f":"Presupuesto!G103","v":0},{"$f":"Presupuesto!E157","v":125000000},{"$f":"ABS(CG6-CF6)","v":125000000},null,{"$f":"CA9","v":5},{"$f":"IFERROR(Fx_Nhj(CJ6),\"-\")","v":"Objetivos"},{"$f":"MAX(IF($CB$3:$CB$19=$CK6,$CE$3:$CE$19,0))","v":0},null,3,"Salud y bienestar","Largo (3 años)","Tecnológico","Internacional","Participación ciudadana en CTeI","SRL 2 – Formulación del problema, soluciones propuestas e impacto potencial, grado de madurez social esperado; identificación de partes interesadas relevantes para el proyecto"]
[null,null,null,null,null,null,null,null,null,null,null,null,null,null,null,null,null,null,null,null,null,null,null,null,null,null,2,"Facultad","Ciencias Económicas","ECO",null,null,null,null,null,null,18,4,1,4,"CIAS","Control Biológico UMNG","COL0032278","A","https://scienti.minciencias.gov.co/gruplac/jsp/visualiza/visualizagr.jsp?nro=00000000001399","BB302:BB304",{"$f":"ROW()","v":7},{"$f":"MINA(IF(AQ7=$BA$4:$BA$410,$BD$4:$BD$410))","v":302},{"$f":"MAXA(IF(AQ7=$BA$4:$BA$410,$BD$4:$BD$410))","v":304},"CIAS",null,null,"COL0178619","Ecofisiología vegetal, animal y microbiana",{"$f":"COUNTIF(BA$4:BA7,BA7)","v":4},{"$f":"ROW()","v":7},1,null,"COL0018448",1,null,null,null,"10:55:00","a",null,null,null,4,204,"Productos resultado de actividades de desarrollo tecnológico e innovación (DTI)","Normas Nacionales","Regulaciones, normas, reglamentos o legislaciones implementadas nacionalmente (no institucional), acorde con parámetros de Minciencias."," ","\"Documento en el que se describa la regulación, norma, reglamento o legislación+CR10 obtenido con nombre, autor, fecha, cód. de trazabilidad  y autores debidamente registrados según  Res. vigente\" ,\"Certificado de la entidad o institución que emitió el producto, indicando la participación en su construcción de todos o de alguno de los integrantes del proyecto, título, país, ciudad, fecha de  publicación / implementación, tipo de regulación, ámbito."," ",null,null,3,"Presupuesto","No se puede Incluir más de un Joven investigador","No se puede incluir más de un Joven Investigador",0,{"$f":"Presupuesto!Q35","v":0},1,null,null,{"$f":"CA10","v":6},{"$f":"IFERROR(Fx_Nhj(CJ7),\"-\")","v":"Metodología"},{"$f":"MAX(IF($CB$3:$CB$19=$CK7,$CE$3:$CE$19,0))","v":0},null,4,"Educación de calidad"," ","Económico",null,"Comunicación del conocimiento","SRL 3 – Pruebas iniciales de las soluciones propuestas junto con partes interesadas relevantes."]
[null,null,null,null,null,null,null,null,null,null,null,null,null,null,null,null,null,null,null,null,null,null,null,null,null,null,3,"Facultad","Derecho","DER",null,null,null,null,null,null,26,5,1,5,"CIAS","Grupo de Micología y Fitopatología ","COL0013719","A1","https://scienti.minciencias.gov.co/gruplac/jsp/visualiza/visualizagr.jsp?nro=00000000001127","BB154:BB158",{"$f":"ROW()","v":8},{"$f":"MINA(IF(AQ8=$BA$4:$BA$410,$BD$4:$BD$410))","v":154},{"$f":"MAXA(IF(AQ8=$BA$4:$BA$410,$BD$4:$BD$410))","v":158},"CIAS",null,null,"COL0178619","Servicios ecosistémicos",{"$f":"COUNTIF(BA$4:BA8,BA8)","v":5},{"$f":"ROW()","v":8},1,null,"COL0028767",1,null,null,null,"11:45:00","a",null,null,null,5,206,"Productos resultado de actividades de desarrollo tecnológico e innovación (DTI)","Informe Técnico Final","Informe Técnico Final sobre productos o servicios tecnológicos o innovadores","Documento desde la posición del equipo ejecutor con enfoque en proveer la base para la toma de decisiones con la siguiente información mínima: Estado previo, actual y prospectiva sobre el alistamiento de la tecnología, infraestructura o capacidad interna para la puesta a punto de los productos o servicios, Intangibles susceptibles de protección por Propiedad Intelectual o estrategia para su explotación, viabilidad desde el punto de vista técnico del modelo de negocio y proposición de alternativas independientes a los estudios de mercado, propiedad intelectual y escalamiento realizados por terceros","Documento con la siguiente información: título del informe, desarrollo del proyecto y alistamiento de la tecnología, fecha de elaboración."," ",null,null,4,"Presupuesto","solo se puede utilizar rubro Equipos en Modalidades 1 y 2",{"$f":"\"No se puede  utilizar el rubro de Equipos con la Modalidad \"&CF8&\" con:\"&TEXT(CG8,\"$ #.##0\")","v":"No se puede  utilizar el rubro de Equipos con la Modalidad 4 con:$ 0"},{"$f":"IF(AND(CF8>2,CG8>0),CA8,0)*0","v":0},{"$f":"Presupuesto!O4","v":4},{"$f":"Presupuesto!P52","v":0},null,null,{"$f":"CA7","v":3},{"$f":"IFERROR(Fx_Nhj(CJ8),\"-\")","v":"Resumen"},{"$f":"MAX(IF($CB$3:$CB$19=$CK8,$CE$3:$CE$19,0))","v":0},null,5,"Igualdad de genero"," ","Legal",null,null,"SRL 4 – Problema validado por medio de pruebas piloto en un entorno relevantes para justificar el impacto propuesto y el grado de madurez social"]
[null,null,null,null,null,null,null,null,null,null,null,null,null,null,null,null,null,null,null,null,null,null,null,null,null,null,4,"Facultad","Educación y Humanidades","HUM",null,null,null,null,null,null,28,6,1,6,"CIAS","Fitopatología molecular","COL0086179","C","https://scienti.minciencias.gov.co/gruplac/jsp/visualiza/visualizagr.jsp?nro=00000000007907","BB61:BB63",{"$f":"ROW()","v":9},{"$f":"MINA(IF(AQ9=$BA$4:$BA$410,$BD$4:$BD$410))","v":61},{"$f":"MAXA(IF(AQ9=$BA$4:$BA$410,$BD$4:$BD$410))","v":63},"CIAS",null,null,"COL0178619","Variabilidad y Cambio climático",{"$f":"COUNTIF(BA$4:BA9,BA9)","v":6},{"$f":"ROW()","v":9},1,null,"COL0028918",1,null,null,null,"15:12:00","b",null,null,null,6,207,"Productos resultado de actividades de desarrollo tecnológico e innovación (DTI)","Prototipo TRL4","Productos o procesos tecnológicos usualmente no patentables (Prototipo) - Estado de desarrollo TRL4 - Validación a nivel de laboratorio.","Mejoramiento del nivel de madurez tecnológica identificada por la División de Desarrollo tecnológico asociado a la valoración de la tecnología (vigilancia tecnológica e inteligencia competitiva, diagnósticos de propiedad intelectual, modelos de negocio u otros).","Prototipo madurado en mínimo TRL 4 Validado por DDTI o Ente externo especializado y acompañado de: 1. Manual de funcionamiento según el formato establecido por VICEIN. 2.Registro fotográfico de los componentes del prototipo. 3.Registro fílmico sobre funcionamiento del prototipo.4.Soportes de pruebas y validación (según aplique)"," ",null,null,5,"Integrantes","No superar 1 coinnovador","No se puede incluir más de un coinnovador",0,{"$f":"Integrantes!X36","v":1},1,null,null,{"$f":"CA11","v":7},{"$f":"IFERROR(Fx_Nhj(CJ9),\"-\")","v":"Etica"},{"$f":"MAX(IF($CB$3:$CB$19=$CK9,$CE$3:$CE$19,0))","v":0},null,6,"Agua limpia y saneamiento"," ","Cultural",null,null,"SRL 5 – Soluciones propuestas validadas, ahora por las partes interesadas importantes en el área."]
[null,null,null,null,null,null,null,null,null,null,null,null,null,null,null,null,null,null,null,null,null,null,null,null,null,null,5,"Facultad","Estudios a Distancia","DIS",null,null,null,null,null,null,30,7,1,7,"CIAS","Estadística, Control y Optimización","COL0136423","A","https://scienti.minciencias.gov.co/gruplac/jsp/visualiza/visualizagr.jsp?nro=00000000013845","BB70:BB74",{"$f":"ROW()","v":10},{"$f":"MINA(IF(AQ10=$BA$4:$BA$410,$BD$4:$BD$410))","v":70},{"$f":"MAXA(IF(AQ10=$BA$4:$BA$410,$BD$4:$BD$410))","v":74},"CIAS",null,null,"COL0110329","Didáctica de las matemáticas universitarias",{"$f":"COUNTIF(BA$4:BA10,BA10)","v":1},{"$f":"ROW()","v":10},1,null,"COL0031824",1,null,null,null,"23:12:00","b",null,null,null,7,208,"Productos resultado de actividades de desarrollo tecnológico e innovación (DTI)","Prototipo TRL5","Productos o procesos tecnológicos (Prototipo) - Estado de desarrollo TRL5 - validación de componentes en entorno relevante.",{"$f":"BV9","v":"Mejoramiento del nivel de madurez tecnológica identificada por la División de Desarrollo tecnológico asociado a la valoración de la tecnología (vigilancia tecnológica e inteligencia competitiva, diagnósticos de propiedad intelectual, modelos de negocio u otros)."},"Prototipo madurado en mínimo un nivel en la escala TRL comprometida o esperada, Validado por DDTI o Ente externo especializado y acompañado de: 1. Manual de funcionamiento según el formato establecido por VICEIN. 2.Registro fotográfico de los componentes del prototipo. 3.Registro fílmico sobre funcionamiento del prototipo. 4.Soportes de pruebas y validación (según aplique).  "," ",null,null,6,"Integrantes","No superar 3 Asesores externos","No se puede incluir más de tres asesores externos",0,{"$f":"Integrantes!X41","v":0},3,null,null,{"$f":"CA8","v":4},{"$f":"IFERROR(Fx_Nhj(CJ10),\"-\")","v":"Estado_del_arte"},{"$f":"MAX(IF($CB$3:$CB$19=$CK10,$CE$3:$CE$19,0))","v":0},null,7,"Energía asequible y no contaminante"," ","Social ",null,null,"SRL 6 – Soluciones demostradas en un entorno relevante, en cooperación con las partes interesadas relevantes para obtener retroalimentación inicial sobre impactos potenciales"]
[null,null,null,null,null,null,null,null,null,null,null,null,null,null,null,null,null,null,null,null,null,null,null,null,null,null,6,"Facultad","Ingeniería","ING",null,null,null,null,null,null,32,8,1,8,"CIAS","Grupo de Ecotoxicología, Evolución, Medio ambiente y Conservación (E = mc2)","COL0038084","C","https://scienti.minciencias.gov.co/gruplac/jsp/visualiza/visualizagr.jsp?nro=00000000002068","BB101:BB105",{"$f":"ROW()","v":11},{"$f":"MINA(IF(AQ11=$BA$4:$BA$410,$BD$4:$BD$410))","v":101},{"$f":"MAXA(IF(AQ11=$BA$4:$BA$410,$BD$4:$BD$410))","v":105},"CIAS",null,null,"COL0110329","Diseño curricular y evaluación en matemáticas universitarias",{"$f":"COUNTIF(BA$4:BA11,BA11)","v":2},{"$f":"ROW()","v":11},1,null,"COL0031959",1,null,null,null,"06:20:00","c",null,null,null,8,209,"Productos resultado de actividades de desarrollo tecnológico e innovación (DTI)","Prototipo TRL6","Productos o procesos tecnológicos (Prototipo) - Estado de desarrollo TRL6 - Validación de sistema o subsistema en entorno relevante",{"$f":"BV10","v":"Mejoramiento del nivel de madurez tecnológica identificada por la División de Desarrollo tecnológico asociado a la valoración de la tecnología (vigilancia tecnológica e inteligencia competitiva, diagnósticos de propiedad intelectual, modelos de negocio u otros)."},"Prototipo madurado en mínimo un nivel en la escala TRL comprometida o esperada, Validado por DDTI o Ente externo especializado y acompañado de: 1. Manual de funcionamiento según el formato establecido por VICEIN. 2.Registro fotográfico de los componentes del prototipo. 3.Registro fílmico sobre funcionamiento del prototipo. 4.Soportes de pruebas y validación (según aplique).  "," ",null,null,7,"Impactos","El TLR No puede ser inferior al Finalizado","No puede comprometer un TLR inferior al Inicial",0,{"$f":"IFERROR(ABS(LEFT(Impactos!$E13,2)),0)","v":0},{"$f":"IFERROR(ABS(LEFT(Impactos!$E14,2)),0)","v":0},null,null,{"$f":"CA12","v":8},{"$f":"IFERROR(Fx_Nhj(CJ11),\"-\")","v":"Cronograma"},{"$f":"MAX(IF($CB$3:$CB$19=$CK11,$CE$3:$CE$19,0))","v":0},null,8,"Trabajo decente y crecimiento económico"," ","Ambiental",null,null,"SRL 7 – Refinamiento del proyecto y/o solución y, de ser necesario, aplicación de nuevas pruebas en el entorno relevante, con partes interesadas relevantes."]
[null,null,null,null,null,null,null,null,null,null,null,null,null,null,null,null,null,null,null,null,null,null,null,null,null,null,7,"Facultad","Medicina y Ciencias de la Salud","MED",null,null,null,null,null,null,41,9,1,9,"CIAS","Grupo de Investigación en Hidrobiología Aplicada (HIDROBIA)","COL0048492","C","https://scienti.minciencias.gov.co/gruplac/jsp/visualiza/visualizagr.jsp?nro=00000000005664","BB215:BB217",{"$f":"ROW()","v":12},{"$f":"MINA(IF(AQ12=$BA$4:$BA$410,$BD$4:$BD$410))","v":215},{"$f":"MAXA(IF(AQ12=$BA$4:$BA$410,$BD$4:$BD$410))","v":217},"CIAS",null,null,"COL0110329","Herramientas virtuales y enseñanza de las matemáticas universitarias",{"$f":"COUNTIF(BA$4:BA12,BA12)","v":3},{"$f":"ROW()","v":12},1,null,"COL0032278",1,null,null,null,"12:30:00","a",null,null,null,9,210,"Productos resultado de actividades de desarrollo tecnológico e innovación (DTI)","Prototipo TRL7","Productos o procesos tecnológicos (Prototipo) - Estado de desarrollo TRL7 - Validación en entorno real.","Mejoramiento del nivel de madurez tecnológica identificada por la División de Desarrollo tecnológico asociado a la valoración de la tecnología (vigilancia tecnológica e inteligencia competitiva, diagnósticos de propiedad intelectual, modelos de negocio u otros).","Prototipo madurado en mínimo un nivel en la escala TRL comprometida o esperada, Validado por DDTI o Ente externo especializado y acompañado de: 1. Manual de funcionamiento según el formato establecido por VICEIN. 2.Registro fotográfico de los componentes del prototipo. 3.Registro fílmico sobre funcionamiento del prototipo. 4.Soportes de pruebas y validación (según aplique).  "," ",null,null,8,null,null,null,null,null,null,null,null,9,{"$f":"IFERROR(Fx_Nhj(CJ12),\"-\")","v":"Integrantes"},{"$f":"MAX(IF($CB$3:$CB$19=$CK12,$CE$3:$CE$19,0))","v":0},null,9,"Industria, innovación e infraestructura"," ",null,null,null,"SRL 8 – Soluciones propuestas, así como un plan para la adaptación social completo y certificado."]
[null,null,null,null,null,null,null,null,null,null,null,null,null,null,null,null,null,null,null,null,null,null,null,null,null,null,8,"Facultad","Relaciones Internacionales, Estrategia y Seguridad","EES",null,null,null,null,null,null,42,10,1,10,"CIAS","Agrobiología de especies vegetales promisorias de clima frío","COL0077814","NR","https://scienti.minciencias.gov.co/gruplac/jsp/visualiza/visualizagr.jsp?nro=00000000006560","BB334:BB334",{"$f":"ROW()","v":13},{"$f":"MINA(IF(AQ13=$BA$4:$BA$410,$BD$4:$BD$410))","v":334},{"$f":"MAXA(IF(AQ13=$BA$4:$BA$410,$BD$4:$BD$410))","v":334},"CIAS",null,null,"COL0016999","Elementos de concreto y de mampostería",{"$f":"COUNTIF(BA$4:BA13,BA13)","v":1},{"$f":"ROW()","v":13},1,null,"COL0033239",1,null,null,null,null,null,null,null,null,10,211,"Productos resultado de actividades de desarrollo tecnológico e innovación (DTI)","Prototipo TRL8","Productos o procesos tecnológicos (Prototipo) - Estado de desarrollo TRL8 - Validación completa y certificación en entorno real.","Mejoramiento del nivel de madurez tecnológica identificada por la División de Desarrollo tecnológico asociado a la valoración de la tecnología (vigilancia tecnológica e inteligencia competitiva, diagnósticos de propiedad intelectual, modelos de negocio u otros).","Prototipo madurado en mínimo un nivel en la escala TRL comprometida o esperada, Validado por DDTI o Ente externo especializado y acompañado de: 1. Manual de funcionamiento según el formato establecido por VICEIN. 2.Registro fotográfico de los componentes del prototipo. 3.Registro fílmico sobre funcionamiento del prototipo. 4.Soportes de pruebas y validación (según aplique).  "," ",null,null,9,null,null,null,null,null,null,null,null,10,{"$f":"IFERROR(Fx_Nhj(CJ13),\"-\")","v":"Productos"},{"$f":"MAX(IF($CB$3:$CB$19=$CK13,$CE$3:$CE$19,0))","v":0},null,10,"Reducción de las desigualdades"," ",null,null,null,"SRL 9 – Soluciones reales del proyecto, probadas en un entorno relevante"]
[null,null,null,null,null,null,null,null,null,null,null,null,null,null,null,null,null,null,null,null,null,null,null,null,null,null,1,"Programa","CIAS","Biología Aplicada",14,null,null,null,null,null,43,11,1,11,"CIAS","Grupo Integrado de Investigaciones en Química Bioorgánica (InQuiBio)","COL0077707","A1","https://scienti.minciencias.gov.co/gruplac/jsp/visualiza/visualizagr.jsp?nro=00000000008358","BB89:BB97",{"$f":"ROW()","v":14},{"$f":"MINA(IF(AQ14=$BA$4:$BA$410,$BD$4:$BD$410))","v":89},{"$f":"MAXA(IF(AQ14=$BA$4:$BA$410,$BD$4:$BD$410))","v":97},"CIAS",null,null,"COL0016999","Instrumentación estructural y sensórica",{"$f":"COUNTIF(BA$4:BA14,BA14)","v":2},{"$f":"ROW()","v":14},1,null,"COL0036025",1,null,null,null,null,null,null,null,null,11,212,"Productos resultado de actividades de desarrollo tecnológico e innovación (DTI)","Prototipo TRL9","Productos o procesos tecnológicos (Prototipo) - Estado de desarrollo TRL9 - Prueba exitosa en entorno real.","Mejoramiento del nivel de madurez tecnológica identificada por la División de Desarrollo tecnológico asociado a la valoración de la tecnología (vigilancia tecnológica e inteligencia competitiva, diagnósticos de propiedad intelectual, modelos de negocio u otros).","Prototipo madurado en mínimo un nivel en la escala TRL comprometida o esperada, Validado por DDTI o Ente externo especializado y acompañado de: 1. Manual de funcionamiento según el formato establecido por VICEIN. 2.Registro fotográfico de los componentes del prototipo. 3.Registro fílmico sobre funcionamiento del prototipo. 4.Soportes de pruebas y validación (según aplique).  "," ",null,null,10,null,null,null,null,null,null,null,null,11,{"$f":"IFERROR(Fx_Nhj(CJ14),\"-\")","v":"Presupuesto"},{"$f":"MAX(IF($CB$3:$CB$19=$CK14,$CE$3:$CE$19,0))","v":0},null,11,"Ciudades y comunidades sostenibles"," "]
[null,null,null,null,null,null,null,null,null,null,null,null,null,null,null,null,null,null,null,null,null,null,null,null,null,null,2,"Programa","CIAS","Doctorado en Ciencias Aplicadas",15,null,null,null,null,null,44,12,1,12,"CIAS","GRUPO DE INVESTIGACIÓN EN QUÍMICA AMBIENTAL Y TECNOLOGÍAS LIMPIAS - QUATELI","COL0110436","C","https://scienti.minciencias.gov.co/gruplac/jsp/visualiza/visualizagr.jsp?nro=00000000011141",{"$f":"$AT$2&AV15&\":\"&$AT$2&AW15","v":"BB244:BB247"},{"$f":"ROW()","v":15},{"$f":"MINA(IF(AQ15=$BA$4:$BA$410,$BD$4:$BD$410))","v":244},{"$f":"MAXA(IF(AQ15=$BA$4:$BA$410,$BD$4:$BD$410))","v":247},"CIAS",null,null,"COL0016999","Materiales alternativos para construcción",{"$f":"COUNTIF(BA$4:BA15,BA15)","v":3},{"$f":"ROW()","v":15},1,null,"COL0038084",1,null,null,null,null,null,null,null,null,12,305,"Producción resultado de actividades de apropiación social del conocimiento (ASC)","Documento de trabajo (Working Paper)","Documento de trabajo (Working Paper)","Título del documento, autor(es),\naño en que elaboró el documento,\ninstituciones vinculadas en la\nrealización del documento, Página\nWEB (del working paper) o DOI en\ndonde se encuentra publicado el\ndocumento (si la tiene).\n","Título del documento, autor(es), año en que elaboró el documento, instituciones vinculadas en la realización del documento, Página WEB (del working paper) o DOI en\ndonde se encuentra publicado el documento (si la tiene).\n"," ",null,null,11,null,null,null,null,null,null,null,null,12,{"$f":"IFERROR(Fx_Nhj(CJ15),\"-\")","v":"Bibliografía"},{"$f":"MAX(IF($CB$3:$CB$19=$CK15,$CE$3:$CE$19,0))","v":0},null,12,"Producción y consumo responsables"," "]
[null,null,null,null,null,null,null,null,null,null,null,null,null,null,null,null,null,null,null,null,null,null,null,null,null,null,3,"Programa","CIAS","Maestría en Biología Aplicada",16,null,null,null,null,null,56,13,1,13,"CIAS","ECMU (Evaluación en Competencias y Matemáticas Universitarias)","COL0110329","C","https://scienti.minciencias.gov.co/gruplac/jsp/visualiza/visualizagr.jsp?nro=00000000011130","BB10:BB12",{"$f":"ROW()","v":16},{"$f":"MINA(IF(AQ16=$BA$4:$BA$410,$BD$4:$BD$410))","v":10},{"$f":"MAXA(IF(AQ16=$BA$4:$BA$410,$BD$4:$BD$410))","v":12},"CIAS",null,null,"COL0016999","Modelación Matemática",{"$f":"COUNTIF(BA$4:BA16,BA16)","v":4},{"$f":"ROW()","v":16},1,null,"COL0039321",1,null,null,null,null,null,null,null,null,13,306,"Producción resultado de actividades de apropiación social del conocimiento (ASC)","Contenidos multimedia (video) con el detalle de la tecnología, utilidad.","Contenidos multimedia (video) con el detalle de la tecnología, utilidad.","Producción publicada de carácter audiovisual de calidad con participación de desarrolladores, financiadores y gestores relacionada con la ejecución del prototipado o mentoría y características técnicas de la tecnología o innovación, avances y resultados","Producción publicada de carácter audiovisual de calidad con participación de desarrolladores, financiadores y gestores relacionada con la ejecución del prototipado o mentoría y características técnicas de la tecnología o innovación, avances y resultados."," ",null,null,12,null,null,null,null,null,null,null,null,13,{"$f":"IFERROR(Fx_Nhj(CJ16),\"-\")","v":"Impactos"},null,null,{"$f":"CN15+1","v":13},"Acción por el clima"," "]
[null,null,null,null,null,null,null,null,null,null,null,null,null,null,null,null,null,null,null,null,null,null,null,null,null,null,3,"Programa","CIAS","Matemáticas Aplicadas y Computacionales",17,null,null,null,null,null,58,14,1,14,"CIAS","Grupo de Docencia e Investigación en Física","COL0138796","NR","https://scienti.minciencias.gov.co/gruplac/jsp/visualiza/visualizagr.jsp?nro=00000000014082","BB314:BB318",{"$f":"ROW()","v":17},{"$f":"MINA(IF(AQ17=$BA$4:$BA$410,$BD$4:$BD$410))","v":314},{"$f":"MAXA(IF(AQ17=$BA$4:$BA$410,$BD$4:$BD$410))","v":318},"CIAS",null,null,"COL0016999","Vulnerabilidad Sísmica",{"$f":"COUNTIF(BA$4:BA17,BA17)","v":5},{"$f":"ROW()","v":17},1,null,"COL0045848",1,null,null,null,null,null,null,null,null,14,401,"Formación de Recurso Humano (FRH)","Dirección o codirección de Tesis de doctorado","De estudiantes en programas de posgrado de la UMNG, con temáticas DC"," De estudiantes en programas de posgrado de la UMNG, con temáticas asociadas a líneas de investigación a la que pertenece el proyecto.","Acta de designación, anteproyecto con código de trazabilidad y acta de acompañamiento final"," ",null,null,13,null,null,null,null,null,null,null,null,14,{"$f":"IFERROR(Fx_Nhj(CJ17),\"-\")","v":"Declaración"},null,null,14,"Vida submarina"," "]
[null,null,null,null,null,null,null,null,null,null,null,null,null,null,null,null,null,null,null,null,null,null,null,null,null,null,3,"Programa","CIAS","Tecnología en Gestión y Producción Hortícola",18,null,null,null,null,null,71,71,1,15,"CIAS","DIVERSITAS","COL0178619","C","https://scienti.minciencias.gov.co/gruplac/jsp/visualiza/visualizagr.jsp?nro=00000000018063","BB4:BB9",{"$f":"ROW()","v":18},{"$f":"MINA(IF(AQ18=$BA$4:$BA$410,$BD$4:$BD$410))","v":4},{"$f":"MAXA(IF(AQ18=$BA$4:$BA$410,$BD$4:$BD$410))","v":9},"CIAS",null,null,"COL0068762","Ingeniería Sostenible",{"$f":"COUNTIF(BA$4:BA18,BA18)","v":1},{"$f":"ROW()","v":18},1,null,"COL0047566",1,null,null,null,null,null,null,null,null,15,402,"Formación de Recurso Humano (FRH)","Dirección o codirección de Trabajo de maestría","De estudiantes en programas de posgrado de la UMNG, con temáticas MG"," De estudiantes en programas de posgrado de la UMNG, con temáticas asociadas a líneas de investigación a la que pertenece el proyecto.","Acta de designación, anteproyecto con código de trazabilidad y acta de acompañamiento final"," ",null,null,14,null,null,null,null,null,null,null,null,15,{"$f":"IFERROR(Fx_Nhj(CJ18),\"-\")","v":"-"},null,null,{"$f":"CN17+1","v":15},"Vida de ecosistemas terrestres"," "]
[null,null,null,null,null,null,null,null,null,null,null,null,null,null,null,null,null,null,null,null,null,null,null,null,null,null,3,"Programa","DER","Derecho",19,null,null,null,null,null,72,72,1,16,"CIAS","Nanofab","COL0179618","C","https://scienti.minciencias.gov.co/gruplac/jsp/visualiza/visualizagr.jsp?nro=00000000018163","BB28:BB33",{"$f":"ROW()","v":19},{"$f":"MINA(IF(AQ19=$BA$4:$BA$410,$BD$4:$BD$410))","v":28},{"$f":"MAXA(IF(AQ19=$BA$4:$BA$410,$BD$4:$BD$410))","v":33},"CIAS",null,null,"COL0068762","Inteligencia artificial y procesamiento de señales",{"$f":"COUNTIF(BA$4:BA19,BA19)","v":2},{"$f":"ROW()","v":19},1,null,"COL0047762",1,null,null,null,null,null,null,null,null,16,403,"Formación de Recurso Humano (FRH)","Joven Investigador","Joven investigador vinculado por mínimo ocho meses según los criterios de la Resolución vigente  sobre vinculación de personal a los proyectos de investigación financiados o cofinanciados por la UMNG en los programas de CTeI."," ","Contrato OPS , informe de actividades final."," ",null,null,15,null,null,null,null,null,null,null,null,null,null,null,null,16,"Paz, justicia e instituciones sólidas"," "]
[null,null,null,null,null,null,null,null,null,null,null,null,null,null,null,null,null,null,null,null,null,null,null,null,null,null,3,"Programa","DER","Derecho Bogotá",20,null,null,null,null,null,11,15,1,17,"CIAS","ICAAO: Inteligencia Computacional, Aprendizaje Automático y Optimización","COL0169362","C","https://scienti.minciencias.gov.co/gruplac/jsp/visualiza/visualizagr.jsp?nro=00000000017140","BB285:BB288",{"$f":"ROW()","v":20},{"$f":"MINA(IF(AQ20=$BA$4:$BA$410,$BD$4:$BD$410))","v":285},{"$f":"MAXA(IF(AQ20=$BA$4:$BA$410,$BD$4:$BD$410))","v":288},"CIAS",null,null,"COL0068762","Tecnologías de la información y las comunicaciones (TIC)",{"$f":"COUNTIF(BA$4:BA20,BA20)","v":3},{"$f":"ROW()","v":20},1,null,"COL0049659",1,null,null,null,null,null,null,null,null,17,404,"Formación de Recurso Humano (FRH)","Dirección o codirección de Trabajo de pregrado","Dirección de Trabajo de grado de estudiantes en programas de pregrado de la UMNG, con temáticas asociadas a línea de investigación a la que pertenece el proyecto."," ","Copia del acta sustentación del proyecto de grado"," ",null,null,null,null,null,null,null,null,null,null,null,null,null,null,null,17,"Alianzas para lograr los objetivos"," "]
[null,null,null,null,null,null,null,null,null,null,null,null,null,null,null,null,null,null,null,null,null,null,null,null,null,null,4,"Programa","DER","Especialización en Derecho Administrativo",21,null,null,null,null,null,47,16,1,18,"DER","Grupo de Investigación en Derecho 'Álvaro Mendoza Palomino'","COL0028918","B","https://scienti.minciencias.gov.co/gruplac/jsp/visualiza/visualizagr.jsp?nro=00000000001079","BB165:BB169",{"$f":"ROW()","v":21},{"$f":"MINA(IF(AQ21=$BA$4:$BA$410,$BD$4:$BD$410))","v":165},{"$f":"MAXA(IF(AQ21=$BA$4:$BA$410,$BD$4:$BD$410))","v":169},"DER",null,null,"COL0143731","Electrónica y Telecomunicaciones en Salud",{"$f":"COUNTIF(BA$4:BA21,BA21)","v":1},{"$f":"ROW()","v":21},1,null,"COL0049999",1,null,null,null,null,null,null,null,null,18,405,"Formación de Recurso Humano (FRH)","Tutoría de un proyecto de iniciación científica","Tutoría de un proyecto de iniciación científica de estudiantes de la UMNG, con temáticas asociadas a línea de investigación a la que pertenece el proyecto."," ","Informe final y acta del Comité de investigaciones con el aval del cierre del PIC"," "]
[null,null,null,null,null,null,null,null,null,null,null,null,null,null,null,null,null,null,null,null,null,null,null,null,null,null,5,"Programa","DER","Especialización en Derecho Sancionatorio",22,null,null,null,null,null,68,17,1,19,"DER","Grupo de Derecho Privado","COL0128047","C","https://scienti.minciencias.gov.co/gruplac/jsp/visualiza/visualizagr.jsp?nro=00000000012964","BB24:BB25",{"$f":"ROW()","v":22},{"$f":"MINA(IF(AQ22=$BA$4:$BA$410,$BD$4:$BD$410))","v":24},{"$f":"MAXA(IF(AQ22=$BA$4:$BA$410,$BD$4:$BD$410))","v":25},"DER",null,null,"COL0143731","Espectro Radioeléctrico",{"$f":"COUNTIF(BA$4:BA22,BA22)","v":2},{"$f":"ROW()","v":22},1,null,"COL0050294",1,null,null,null,null,null,null,null,null,null,null,null,null,null," ",null," "]
[null,null,null,null,null,null,null,null,null,null,null,null,null,null,null,null,null,null,null,null,null,null,null,null,null,null,6,"Programa","DER","Especialización en Derechos Humanos y Sistemas de Protección",23,null,null,null,null,null,2,18,1,20,"DER","RED DE ESTUDIOS SOCIOJURÍDICOS COMPARADOS Y POLÍTICAS PÚBLICAS-RESCYPP","COL0142449","B","https://scienti.minciencias.gov.co/gruplac/jsp/visualiza/visualizagr.jsp?nro=00000000014449","BB176:BB181",{"$f":"ROW()","v":23},{"$f":"MINA(IF(AQ23=$BA$4:$BA$410,$BD$4:$BD$410))","v":176},{"$f":"MAXA(IF(AQ23=$BA$4:$BA$410,$BD$4:$BD$410))","v":181},"DER",null,null,"COL0143731","Sistemas virtuales de comunicación",{"$f":"COUNTIF(BA$4:BA23,BA23)","v":3},{"$f":"ROW()","v":23},1,null,"COL0052163",1]
[null,null,null,null,null,null,null,null,null,null,null,null,null,null,null,null,null,null,null,null,null,null,null,null,null,null,7,"Programa","DER","Especialización en Procedimiento Penal Constitucional y Justicia Militar",24,null,null,null,null,null,8,19,1,21,"DIS","PROPPIO: Procesos organizacionales, programáticos y políticos para la promoción del desarrollo","COL0062704","NR","https://scienti.minciencias.gov.co/gruplac/jsp/visualiza/visualizagr.jsp?nro=00000000006477","BB330:BB333",{"$f":"ROW()","v":24},{"$f":"MINA(IF(AQ24=$BA$4:$BA$410,$BD$4:$BD$410))","v":330},{"$f":"MAXA(IF(AQ24=$BA$4:$BA$410,$BD$4:$BD$410))","v":333},"DIS",null,null,"COL0128047","Derecho de la responsabilidad y de seguros",{"$f":"COUNTIF(BA$4:BA24,BA24)","v":1},{"$f":"ROW()","v":24},1,null,"COL0052181",1]
[null,null,null,null,null,null,null,null,null,null,null,null,null,null,null,null,null,null,null,null,null,null,null,null,null,null,8,"Programa","DER","Maestría en  Derecho Administrativo",25,null,null,null,null,null,20,20,1,22,"DIS","INCONDIS","COL0127649","C","https://scienti.minciencias.gov.co/gruplac/jsp/visualiza/visualizagr.jsp?nro=00000000012918","BB134:BB134",{"$f":"ROW()","v":25},{"$f":"MINA(IF(AQ25=$BA$4:$BA$410,$BD$4:$BD$410))","v":134},{"$f":"MAXA(IF(AQ25=$BA$4:$BA$410,$BD$4:$BD$410))","v":134},"DIS",null,null,"COL0128047","Derecho económico y de los negocios.",{"$f":"COUNTIF(BA$4:BA25,BA25)","v":2},{"$f":"ROW()","v":25},1,null,"COL0065804",1]
[null,null,null,null,null,null,null,null,null,null,null,null,null,null,null,null,null,null,null,null,null,null,null,null,null,null,9,"Programa","DER","Maestría en  Derecho Procesal Penal",26,null,null,null,null,null,22,21,1,23,"DIS","\"PYDES\" Pedagogía y didáctica en la educación superior","COL0018448","C","https://scienti.minciencias.gov.co/gruplac/jsp/visualiza/visualizagr.jsp?nro=00000000000929","BB241:BB243",{"$f":"ROW()","v":26},{"$f":"MINA(IF(AQ26=$BA$4:$BA$410,$BD$4:$BD$410))","v":241},{"$f":"MAXA(IF(AQ26=$BA$4:$BA$410,$BD$4:$BD$410))","v":243},"DIS",null,null,"COL0050294","Economía política del conflicto",{"$f":"COUNTIF(BA$4:BA26,BA26)","v":1},{"$f":"ROW()","v":26},1,null,"COL0066229",1]
[null,null,null,null,null,null,null,null,null,null,null,null,null,null,null,null,null,null,null,null,null,null,null,null,null,null,10,"Programa","DER","Tecnología en Investigación Judicial y Criminalística",27,null,null,null,null,null,39,22,1,24,"DIS","PACMAN Prospectiva Académica y Ciencias Multidisciplinares Aplicadas a la Neotecnología","COL0067504","C","https://scienti.minciencias.gov.co/gruplac/jsp/visualiza/visualizagr.jsp?nro=00000000004308","BB54:BB59",{"$f":"ROW()","v":27},{"$f":"MINA(IF(AQ27=$BA$4:$BA$410,$BD$4:$BD$410))","v":54},{"$f":"MAXA(IF(AQ27=$BA$4:$BA$410,$BD$4:$BD$410))","v":59},"DIS",null,null,"COL0050294","Economía, Gestión y Medio Ambiente",{"$f":"COUNTIF(BA$4:BA27,BA27)","v":2},{"$f":"ROW()","v":27},1,null,"COL0066669",1]
[null,null,null,null,null,null,null,null,null,null,null,null,null,null,null,null,null,null,null,null,null,null,null,null,null,null,11,"Programa","DIS"," Contaduría Pública (Distancia)",28,null,null,null,null,null,61,23,1,25,"DIS","PIREO \"Procesos de Integración, Regionalización y Estructuras Organizacionales\"","COL0066229","B","https://scienti.minciencias.gov.co/gruplac/jsp/visualiza/visualizagr.jsp?nro=00000000004242","BB289:BB291",{"$f":"ROW()","v":28},{"$f":"MINA(IF(AQ28=$BA$4:$BA$410,$BD$4:$BD$410))","v":289},{"$f":"MAXA(IF(AQ28=$BA$4:$BA$410,$BD$4:$BD$410))","v":291},"DIS",null,null,"COL0179618","Biochips",{"$f":"COUNTIF(BA$4:BA28,BA28)","v":1},{"$f":"ROW()","v":28},1,null,"COL0066768",1]
[null,null,null,null,null,null,null,null,null,null,null,null,null,null,null,null,null,null,null,null,null,null,null,null,null,null,12,"Programa","DIS"," Relaciones Internacionales y Estudios Políticos (Virtual)",29,null,null,null,null,null,67,24,1,26,"DIS","Modelos de simulación ICDIST","COL0069296","C","https://scienti.minciencias.gov.co/gruplac/jsp/visualiza/visualizagr.jsp?nro=00000000004423",{"$f":"$AT$2&AV29&\":\"&$AT$2&AW29","v":"BB60:BB60"},{"$f":"ROW()","v":29},{"$f":"MINA(IF(AQ29=$BA$4:$BA$410,$BD$4:$BD$410))","v":60},{"$f":"MAXA(IF(AQ29=$BA$4:$BA$410,$BD$4:$BD$410))","v":60},"DIS",null,null,"COL0179618","Diseño y fabricación de sistemas para producción de nanomateriales",{"$f":"COUNTIF(BA$4:BA29,BA29)","v":2},{"$f":"ROW()","v":29},1,null,"COL0067504",1]
[null,null,null,null,null,null,null,null,null,null,null,null,null,null,null,null,null,null,null,null,null,null,null,null,null,null,12,"Programa","DIS","Administración de Empresas (Distancia)",30,null,null,null,null,null,13,25,1,27,"DIS","INAMPE","COL0142331","C","https://scienti.minciencias.gov.co/gruplac/jsp/visualiza/visualizagr.jsp?nro=00000000014438","BB125:BB127",{"$f":"ROW()","v":30},{"$f":"MINA(IF(AQ30=$BA$4:$BA$410,$BD$4:$BD$410))","v":125},{"$f":"MAXA(IF(AQ30=$BA$4:$BA$410,$BD$4:$BD$410))","v":127},"DIS",null,null,"COL0179618","Holografía digital",{"$f":"COUNTIF(BA$4:BA30,BA30)","v":3},{"$f":"ROW()","v":30},1,null,"COL0068762",1]
[null,null,null,null,null,null,null,null,null,null,null,null,null,null,null,null,null,null,null,null,null,null,null,null,null,null,13,"Programa","DIS","Administración de riesgos, seguridad y salud en el trabajo (Distancia)",31,null,null,null,null,null,17,26,1,28,"ECO","Grupo de Estudios en Ciencias Económicas - CIE","COL0050294","B","https://scienti.minciencias.gov.co/gruplac/jsp/visualiza/visualizagr.jsp?nro=00000000003322","BB26:BB27",{"$f":"ROW()","v":31},{"$f":"MINA(IF(AQ31=$BA$4:$BA$410,$BD$4:$BD$410))","v":26},{"$f":"MAXA(IF(AQ31=$BA$4:$BA$410,$BD$4:$BD$410))","v":27},"ECO",null,null,"COL0179618","Nanofotónica, sensórica y nanotecnología",{"$f":"COUNTIF(BA$4:BA31,BA31)","v":4},{"$f":"ROW()","v":31},1,null,"COL0069296",1]
[null,null,null,null,null,null,null,null,null,null,null,null,null,null,null,null,null,null,null,null,null,null,null,null,null,null,14,"Programa","DIS","Especialización en Alta Gerencia (Distancia)",32,null,null,null,null,null,40,27,1,29,"ECO","GRUPO DE ESTUDIOS SOBRE DESIGUALDADES SOCIALES","COL0027367","C","https://scienti.minciencias.gov.co/gruplac/jsp/visualiza/visualizagr.jsp?nro=00000000000855","BB98:BB100",{"$f":"ROW()","v":32},{"$f":"MINA(IF(AQ32=$BA$4:$BA$410,$BD$4:$BD$410))","v":98},{"$f":"MAXA(IF(AQ32=$BA$4:$BA$410,$BD$4:$BD$410))","v":100},"ECO",null,null,"COL0179618","Termo-electrónica",{"$f":"COUNTIF(BA$4:BA32,BA32)","v":5},{"$f":"ROW()","v":32},1,null,"COL0048492",1]
[null,null,null,null,null,null,null,null,null,null,null,null,null,null,null,null,null,null,null,null,null,null,null,null,null,null,15,"Programa","DIS","Ingeniería Civil (Distancia)",33,null,null,null,null,null,64,28,1,30,"ECO","Grupo de Estudios Contemporáneos en Gestión y Organizaciones -GECGO-","COL0028767","A","https://scienti.minciencias.gov.co/gruplac/jsp/visualiza/visualizagr.jsp?nro=00000000001069","BB262:BB264",{"$f":"ROW()","v":33},{"$f":"MINA(IF(AQ33=$BA$4:$BA$410,$BD$4:$BD$410))","v":262},{"$f":"MAXA(IF(AQ33=$BA$4:$BA$410,$BD$4:$BD$410))","v":264},"ECO",null,null,"COL0179618","Tomografía óptica coherente",{"$f":"COUNTIF(BA$4:BA33,BA33)","v":6},{"$f":"ROW()","v":33},1,null,"COL0050982",0]
[null,null,null,null,null,null,null,null,null,null,null,null,null,null,null,null,null,null,null,null,null,null,null,null,null,null,16,"Programa","DIS","Ingeniería Industrial (Distancia)",34,null,null,null,null,null,21,29,1,31,"ECO","GECS (Grupo de Estudios en Educación Contabilidad y Sociedad)","COL0117722","B","https://scienti.minciencias.gov.co/gruplac/jsp/visualiza/visualizagr.jsp?nro=00000000011887","BB248:BB250",{"$f":"ROW()","v":34},{"$f":"MINA(IF(AQ34=$BA$4:$BA$410,$BD$4:$BD$410))","v":248},{"$f":"MAXA(IF(AQ34=$BA$4:$BA$410,$BD$4:$BD$410))","v":250},"ECO",null,null,"COL0116636","Desarrollo de software y hardware embarcable",{"$f":"COUNTIF(BA$4:BA34,BA34)","v":1},{"$f":"ROW()","v":34},1,null,"COL0062704",1]
[null,null,null,null,null,null,null,null,null,null,null,null,null,null,null,null,null,null,null,null,null,null,null,null,null,null,16,"Programa","DIS","Ingeniería Informática (Distancia)",35,null,null,null,null,null,53,30,1,32,"EES","Estudios Internacionales y Políticos","COL0066768","B","https://scienti.minciencias.gov.co/gruplac/jsp/visualiza/visualizagr.jsp?nro=00000000004270","BB170:BB175",{"$f":"ROW()","v":35},{"$f":"MINA(IF(AQ35=$BA$4:$BA$410,$BD$4:$BD$410))","v":170},{"$f":"MAXA(IF(AQ35=$BA$4:$BA$410,$BD$4:$BD$410))","v":175},"EES",null,null,"COL0116636","Procesamiento digital de señales e imágenes",{"$f":"COUNTIF(BA$4:BA35,BA35)","v":2},{"$f":"ROW()","v":35},1,null,"COL0077814",1]
[null,null,null,null,null,null,null,null,null,null,null,null,null,null,null,null,null,null,null,null,null,null,null,null,null,null,17,"Programa","DIS","Maestría en Gerencia Estratégica de las TIC en las Organizaciones (Distancia)",36,null,null,null,null,null,9,31,{"$f":"COUNTIF($AN$4:$AN$811,AL36)","v":1},33,"EES","Sociedad, Estrategia y Seguridad","COL0066669","C","https://scienti.minciencias.gov.co/gruplac/jsp/visualiza/visualizagr.jsp?nro=00000000004263","BB204:BB208",{"$f":"ROW()","v":36},{"$f":"MINA(IF(AQ36=$BA$4:$BA$410,$BD$4:$BD$410))","v":204},{"$f":"MAXA(IF(AQ36=$BA$4:$BA$410,$BD$4:$BD$410))","v":208},"EES",null,null,"COL0116636","Producción sostenible",{"$f":"COUNTIF(BA$4:BA36,BA36)","v":3},{"$f":"ROW()","v":36},1,null,"COL0067371",{"$f":"COUNTIF($AQ$4:$AQ$79,BG36)","v":0}]
[null,null,null,null,null,null,null,null,null,null,null,null,null,null,null,null,null,null,null,null,null,null,null,null,null,null,17,"Programa","ECO","Administración de Empresas",37,null,null,null,null,null,23,32,1,34,"HUM","LIDERAZGO","COL0015722","A1","https://scienti.minciencias.gov.co/gruplac/jsp/visualiza/visualizagr.jsp?nro=00000000000744","BB42:BB43",{"$f":"ROW()","v":37},{"$f":"MINA(IF(AQ37=$BA$4:$BA$410,$BD$4:$BD$410))","v":42},{"$f":"MAXA(IF(AQ37=$BA$4:$BA$410,$BD$4:$BD$410))","v":43},"HUM",null,null,"COL0116636","Robótica móvil",{"$f":"COUNTIF(BA$4:BA37,BA37)","v":4},{"$f":"ROW()","v":37},1,null,"COL0086179",1]
[null,null,null,null,null,null,null,null,null,null,null,null,null,null,null,null,null,null,null,null,null,null,null,null,null,null,18,"Programa","ECO","Contaduría Pública",38,null,null,null,null,null,38,33,1,35,"HUM","HUMANITAS","COL0101099","A","https://scienti.minciencias.gov.co/gruplac/jsp/visualiza/visualizagr.jsp?nro=00000000010165","BB198:BB201",{"$f":"ROW()","v":38},{"$f":"MINA(IF(AQ38=$BA$4:$BA$410,$BD$4:$BD$410))","v":198},{"$f":"MAXA(IF(AQ38=$BA$4:$BA$410,$BD$4:$BD$410))","v":201},"HUM",null,null,"COL0116636","Sistemas de interacción humano-máquina con actuación convencional y no convencional",{"$f":"COUNTIF(BA$4:BA38,BA38)","v":5},{"$f":"ROW()","v":38},1,null,"COL0077707",1]
[null,null,null,null,null,null,null,null,null,null,null,null,null,null,null,null,null,null,null,null,null,null,null,null,null,null,18,"Programa","ECO","Economía",39,null,null,null,null,null,50,34,1,36,"HUM","Cultura y Desarrollo Humano","COL0002896","A","https://scienti.minciencias.gov.co/gruplac/jsp/visualiza/visualizagr.jsp?nro=00000000000740","BB237:BB240",{"$f":"ROW()","v":39},{"$f":"MINA(IF(AQ39=$BA$4:$BA$410,$BD$4:$BD$410))","v":237},{"$f":"MAXA(IF(AQ39=$BA$4:$BA$410,$BD$4:$BD$410))","v":240},"HUM",null,null,"COL0194866","Bioprocesos",{"$f":"COUNTIF(BA$4:BA39,BA39)","v":1},{"$f":"ROW()","v":39},1,null,"COL0028687",1]
[null,null,null,null,null,null,null,null,null,null,null,null,null,null,null,null,null,null,null,null,null,null,null,null,null,null,18,"Programa","ECO","Especialización en Alta Gerencia",40,null,null,null,null,null,5,35,1,37,"HUM","BioethicsGroup","COL0031824","A","https://scienti.minciencias.gov.co/gruplac/jsp/visualiza/visualizagr.jsp?nro=00000000001353","BB258:BB261",{"$f":"ROW()","v":40},{"$f":"MINA(IF(AQ40=$BA$4:$BA$410,$BD$4:$BD$410))","v":258},{"$f":"MAXA(IF(AQ40=$BA$4:$BA$410,$BD$4:$BD$410))","v":261},"HUM",null,null,"COL0194866","Ingeniería de procesos, modelación y optimización de instalaciones para la recuperación de recursos del agua",{"$f":"COUNTIF(BA$4:BA40,BA40)","v":2},{"$f":"ROW()","v":40},1,null,"COL0096032",1]
[null,null,null,null,null,null,null,null,null,null,null,null,null,null,null,null,null,null,null,null,null,null,null,null,null,null,18,"Programa","ECO","Especialización en Control Interno",41,null,null,null,null,null,10,36,1,38,"ING","Grupo de Investigación en Multimedia -GIM-","COL0044859","A","https://scienti.minciencias.gov.co/gruplac/jsp/visualiza/visualizagr.jsp?nro=00000000002706","BB75:BB79",{"$f":"ROW()","v":41},{"$f":"MINA(IF(AQ41=$BA$4:$BA$410,$BD$4:$BD$410))","v":75},{"$f":"MAXA(IF(AQ41=$BA$4:$BA$410,$BD$4:$BD$410))","v":79},"ING",null,null,"COL0194866","Química del agua, microcontaminantes emergentes y prioritarios",{"$f":"COUNTIF(BA$4:BA41,BA41)","v":3},{"$f":"ROW()","v":41},1,null,"COL0107771",0]
[null,null,null,null,null,null,null,null,null,null,null,null,null,null,null,null,null,null,null,null,null,null,null,null,null,null,18,"Programa","ECO","Especialización en Finanzas y Administración Pública",42,null,null,null,null,null,14,37,1,39,"ING","GEOTECNIA","COL0005439","A","https://scienti.minciencias.gov.co/gruplac/jsp/visualiza/visualizagr.jsp?nro=00000000000739","BB184:BB188",{"$f":"ROW()","v":42},{"$f":"MINA(IF(AQ42=$BA$4:$BA$410,$BD$4:$BD$410))","v":184},{"$f":"MAXA(IF(AQ42=$BA$4:$BA$410,$BD$4:$BD$410))","v":188},"ING",null,null,"COL0015722","Bioética, biopolítica y biojurídica",{"$f":"COUNTIF(BA$4:BA42,BA42)","v":1},{"$f":"ROW()","v":42},1,null,"COL0110329",1]
[null,null,null,null,null,null,null,null,null,null,null,null,null,null,null,null,null,null,null,null,null,null,null,null,null,null,19,"Programa","ECO","Especialización en Gerencia  de Comercio Internacional",43,null,null,null,null,null,16,38,1,40,"ING","TIGUM: Grupo de Investigación en Telemedicina Universidad Militar","COL0052181","A","https://scienti.minciencias.gov.co/gruplac/jsp/visualiza/visualizagr.jsp?nro=00000000003508","BB0:BB87",{"$f":"ROW()","v":43},{"$f":"MINA(IF(AQ43=$BA$4:$BA$410,$BD$4:$BD$410))","v":0},{"$f":"MAXA(IF(AQ43=$BA$4:$BA$410,$BD$4:$BD$410))","v":87},"ING",null,null,"COL0015722","Educación y tecnologías",{"$f":"COUNTIF(BA$4:BA43,BA43)","v":2},{"$f":"ROW()","v":43},1,null,"COL0110436\n",0]
[null,null,null,null,null,null,null,null,null,null,null,null,null,null,null,null,null,null,null,null,null,null,null,null,null,null,20,"Programa","ECO","Especialización en Gestión  de  Desarrollo Administrativo",44,null,null,null,null,null,27,39,1,41,"ING","VOLTA ","COL0065804","A1","https://scienti.minciencias.gov.co/gruplac/jsp/visualiza/visualizagr.jsp?nro=00000000004193","BB114:BB116",{"$f":"ROW()","v":44},{"$f":"MINA(IF(AQ44=$BA$4:$BA$410,$BD$4:$BD$410))","v":114},{"$f":"MAXA(IF(AQ44=$BA$4:$BA$410,$BD$4:$BD$410))","v":116},"ING",null,null,"COL0129689","Cirugía Ortognática y Distracción Osteogénica",{"$f":"COUNTIF(BA$4:BA44,BA44)","v":1},{"$f":"ROW()","v":44},1,null,"COL0114201",0]
[null,null,null,null,null,null,null,null,null,null,null,null,null,null,null,null,null,null,null,null,null,null,null,null,null,null,21,"Programa","ECO","Especialización en Mercadeo de Servicios",45,null,null,null,null,null,29,40,1,42,"ING","PRODUCCION, INNOVACION Y TECNOLOGIA","COL0049999","B","https://scienti.minciencias.gov.co/gruplac/jsp/visualiza/visualizagr.jsp?nro=00000000003290","BB64:BB69",{"$f":"ROW()","v":45},{"$f":"MINA(IF(AQ45=$BA$4:$BA$410,$BD$4:$BD$410))","v":64},{"$f":"MAXA(IF(AQ45=$BA$4:$BA$410,$BD$4:$BD$410))","v":69},"ING",null,null,"COL0129689","Implantología y Cirugía Reconstructiva",{"$f":"COUNTIF(BA$4:BA45,BA45)","v":2},{"$f":"ROW()","v":45},1,null,"COL0116439",1]
[null,null,null,null,null,null,null,null,null,null,null,null,null,null,null,null,null,null,null,null,null,null,null,null,null,null,22,"Programa","ECO","Especialización en Revisoría Fiscal y Auditoria Internacional",46,null,null,null,null,null,31,41,1,43,"ING","GIDAM","COL0116636","B","https://scienti.minciencias.gov.co/gruplac/jsp/visualiza/visualizagr.jsp?nro=00000000011773","BB34:BB38",{"$f":"ROW()","v":46},{"$f":"MINA(IF(AQ46=$BA$4:$BA$410,$BD$4:$BD$410))","v":34},{"$f":"MAXA(IF(AQ46=$BA$4:$BA$410,$BD$4:$BD$410))","v":38},"ING",null,null,"COL0129689","Infecciones, Patología y Cirugía Dentoalveolar",{"$f":"COUNTIF(BA$4:BA46,BA46)","v":3},{"$f":"ROW()","v":46},1,null,"COL0116538",1]
[null,null,null,null,null,null,null,null,null,null,null,null,null,null,null,null,null,null,null,null,null,null,null,null,null,null,23,"Programa","ECO","Maestría en Gestión de Organizaciones",47,null,null,null,null,null,33,42,1,44,"ING","DAVINCI","COL0036025","A1","https://scienti.minciencias.gov.co/gruplac/jsp/visualiza/visualizagr.jsp?nro=00000000001843","BB117:BB120",{"$f":"ROW()","v":47},{"$f":"MINA(IF(AQ47=$BA$4:$BA$410,$BD$4:$BD$410))","v":117},{"$f":"MAXA(IF(AQ47=$BA$4:$BA$410,$BD$4:$BD$410))","v":120},"ING",null,null,"COL0125134","Ayudas Auditivas Implantables",{"$f":"COUNTIF(BA$4:BA47,BA47)","v":1},{"$f":"ROW()","v":47},1,null,"COL0116636",1]
[null,null,null,null,null,null,null,null,null,null,null,null,null,null,null,null,null,null,null,null,null,null,null,null,null,null,24,"Programa","ECO","Tecnología en Contabilidad y Tributaria",48,null,null,null,null,null,34,43,1,45,"ING","Estructuras y sísmica","COL0016999","A1","https://scienti.minciencias.gov.co/gruplac/jsp/visualiza/visualizagr.jsp?nro=00000000000737","BB13:BB17",{"$f":"ROW()","v":48},{"$f":"MINA(IF(AQ48=$BA$4:$BA$410,$BD$4:$BD$410))","v":13},{"$f":"MAXA(IF(AQ48=$BA$4:$BA$410,$BD$4:$BD$410))","v":17},"ING",null,null,"COL0125134","Base de cráneo",{"$f":"COUNTIF(BA$4:BA48,BA48)","v":2},{"$f":"ROW()","v":48},1,null,"COL0117052",1]
[null,null,null,null,null,null,null,null,null,null,null,null,null,null,null,null,null,null,null,null,null,null,null,null,null,null,25,"Programa","EES","Administración de riesgos, seguridad y salud en el trabajo",49,null,null,null,null,null,37,44,1,46,"ING","INGENIERÍA, GEOMÁTICA Y EDUCACIÓN (IGE)","COL0047566","B","https://scienti.minciencias.gov.co/gruplac/jsp/visualiza/visualizagr.jsp?nro=00000000003044","BB265:BB271",{"$f":"ROW()","v":49},{"$f":"MINA(IF(AQ49=$BA$4:$BA$410,$BD$4:$BD$410))","v":265},{"$f":"MAXA(IF(AQ49=$BA$4:$BA$410,$BD$4:$BD$410))","v":271},"ING",null,null,"COL0125134","Cáncer Laríngeo",{"$f":"COUNTIF(BA$4:BA49,BA49)","v":3},{"$f":"ROW()","v":49},1,null,"COL0117722",1]
[null,null,null,null,null,null,null,null,null,null,null,null,null,null,null,null,null,null,null,null,null,null,null,null,null,null,26,"Programa","EES","Especialización en Administración  de la Seguridad",50,null,null,null,null,null,49,45,1,47,"ING","ACCEDER","COL0036749","C","https://scienti.minciencias.gov.co/gruplac/jsp/visualiza/visualizagr.jsp?nro=00000000012996","BB223:BB224",{"$f":"ROW()","v":50},{"$f":"MINA(IF(AQ50=$BA$4:$BA$410,$BD$4:$BD$410))","v":223},{"$f":"MAXA(IF(AQ50=$BA$4:$BA$410,$BD$4:$BD$410))","v":224},"ING",null,null,"COL0125134","Enfermedad de Meniere",{"$f":"COUNTIF(BA$4:BA50,BA50)","v":4},{"$f":"ROW()","v":50},1,null,"COL0125107",0]
[null,null,null,null,null,null,null,null,null,null,null,null,null,null,null,null,null,null,null,null,null,null,null,null,null,null,27,"Programa","EES","Especialización en Administración  de la Seguridad (Cali)",51,null,null,null,null,null,52,46,1,48,"ING","Agua y Energía - AyE","COL0026486","A","https://scienti.minciencias.gov.co/gruplac/jsp/visualiza/visualizagr.jsp?nro=00000000000767","BB159:BB164",{"$f":"ROW()","v":51},{"$f":"MINA(IF(AQ51=$BA$4:$BA$410,$BD$4:$BD$410))","v":159},{"$f":"MAXA(IF(AQ51=$BA$4:$BA$410,$BD$4:$BD$410))","v":164},"ING",null,null,"COL0125134","Oído Crónico",{"$f":"COUNTIF(BA$4:BA51,BA51)","v":5},{"$f":"ROW()","v":51},1,null,"COL0125134",1]
[null,null,null,null,null,null,null,null,null,null,null,null,null,null,null,null,null,null,null,null,null,null,null,null,null,null,28,"Programa","EES","Especialización en Administración  de la Seguridad (Cartagena)",52,null,null,null,null,null,54,47,1,49,"ING","GISSIC: Grupo de Investigación en Seguridad y Sistemas de Comunicaciones","COL0052163","A","https://scienti.minciencias.gov.co/gruplac/jsp/visualiza/visualizagr.jsp?nro=00000000003506","BB232:BB236",{"$f":"ROW()","v":52},{"$f":"MINA(IF(AQ52=$BA$4:$BA$410,$BD$4:$BD$410))","v":232},{"$f":"MAXA(IF(AQ52=$BA$4:$BA$410,$BD$4:$BD$410))","v":236},"ING",null,null,"COL0125134","Rinosinusitis Crónica",{"$f":"COUNTIF(BA$4:BA52,BA52)","v":6},{"$f":"ROW()","v":52},1,null,"COL0126015",1]
[null,null,null,null,null,null,null,null,null,null,null,null,null,null,null,null,null,null,null,null,null,null,null,null,null,null,31,"Programa","EES","Especialización en Alta Gerencia  de Seguridad y  Defensa",53,null,null,null,null,null,57,48,1,50,"ING","GAV","COL0068762","A","https://scienti.minciencias.gov.co/gruplac/jsp/visualiza/visualizagr.jsp?nro=00000000004391","BB18:BB20",{"$f":"ROW()","v":53},{"$f":"MINA(IF(AQ53=$BA$4:$BA$410,$BD$4:$BD$410))","v":18},{"$f":"MAXA(IF(AQ53=$BA$4:$BA$410,$BD$4:$BD$410))","v":20},"ING",null,null,"COL0125134","Trauma de guerra en Otorrinolaringología",{"$f":"COUNTIF(BA$4:BA53,BA53)","v":7},{"$f":"ROW()","v":53},1,null,"COL0126777",1]
[null,null,null,null,null,null,null,null,null,null,null,null,null,null,null,null,null,null,null,null,null,null,null,null,null,null,32,"Programa","EES","Maestría en Relaciones y Negocios Internacionales",54,null,null,null,null,null,60,49,1,51,"ING","Energía alternativa, Centro Multidisciplinario de Investigación","COL0117052","C","https://scienti.minciencias.gov.co/gruplac/jsp/visualiza/visualizagr.jsp?nro=00000000011817","BB189:BB193",{"$f":"ROW()","v":54},{"$f":"MINA(IF(AQ54=$BA$4:$BA$410,$BD$4:$BD$410))","v":189},{"$f":"MAXA(IF(AQ54=$BA$4:$BA$410,$BD$4:$BD$410))","v":193},"ING",null,null,"COL0067504","Gestión Tecnológica",{"$f":"COUNTIF(BA$4:BA54,BA54)","v":1},{"$f":"ROW()","v":54},1,null,"COL0127649",1]
[null,null,null,null,null,null,null,null,null,null,null,null,null,null,null,null,null,null,null,null,null,null,null,null,null,null,33,"Programa","EES","Maestría en Seguridad y Gestión del Riesgo",55,null,null,null,null,null,66,50,1,52,"ING","GI-iTEC - Grupo de Investigación e innovación Tecnológica en Electrónica y Comunicaciones","COL0143731","C","https://scienti.minciencias.gov.co/gruplac/jsp/visualiza/visualizagr.jsp?nro=00000000014576","BB21:BB23",{"$f":"ROW()","v":55},{"$f":"MINA(IF(AQ55=$BA$4:$BA$410,$BD$4:$BD$410))","v":21},{"$f":"MAXA(IF(AQ55=$BA$4:$BA$410,$BD$4:$BD$410))","v":23},"ING",null,null,"COL0067504","Gestión del conocimiento",{"$f":"COUNTIF(BA$4:BA55,BA55)","v":2},{"$f":"ROW()","v":55},1,null,"COL0128047",1]
[null,null,null,null,null,null,null,null,null,null,null,null,null,null,null,null,null,null,null,null,null,null,null,null,null,null,34,"Programa","EES","Relaciones Internacionales y Estudios Políticos",56,null,null,null,null,null,70,51,1,53,"ING","LA TRAMOYA","COL0126777","NR","https://scienti.minciencias.gov.co/gruplac/jsp/visualiza/visualizagr.jsp?nro=00000000012813","BB319:BB324",{"$f":"ROW()","v":56},{"$f":"MINA(IF(AQ56=$BA$4:$BA$410,$BD$4:$BD$410))","v":319},{"$f":"MAXA(IF(AQ56=$BA$4:$BA$410,$BD$4:$BD$410))","v":324},"ING",null,null,"COL0067504","Los Estilos de enseñanza y Aprendizaje",{"$f":"COUNTIF(BA$4:BA56,BA56)","v":3},{"$f":"ROW()","v":56},1,null,"COL0036749",1]
[null,null,null,null,null,null,null,null,null,null,null,null,null,null,null,null,null,null,null,null,null,null,null,null,null,null,34,"Programa","HUM","Doctorado en Bioética",57,null,null,null,null,null,1,52,1,54,"ING","Grupo de Investigación en Ambiente, Ciencia y Tecnología -GREST- ","COL0151789","A","https://scienti.minciencias.gov.co/gruplac/jsp/visualiza/visualizagr.jsp?nro=00000000015386",{"$f":"$AT$2&AV57&\":\"&$AT$2&AW57","v":"BB272:BB277"},{"$f":"ROW()","v":57},{"$f":"MINA(IF(AQ57=$BA$4:$BA$410,$BD$4:$BD$410))","v":272},{"$f":"MAXA(IF(AQ57=$BA$4:$BA$410,$BD$4:$BD$410))","v":277},"ING",null,null,"COL0067504","Mercadeo Cuántico",{"$f":"COUNTIF(BA$4:BA57,BA57)","v":4},{"$f":"ROW()","v":57},1,null,"COL0129689",1]
[null,null,null,null,null,null,null,null,null,null,null,null,null,null,null,null,null,null,null,null,null,null,null,null,null,null,35,"Programa","HUM","Especialización en Docencia Universitaria",58,null,null,null,null,null,6,53,1,55,"ING","PROCESOS, OPERACIONES Y LOGISTICA (PROPYLOG)","COL0196753","C","https://scienti.minciencias.gov.co/gruplac/jsp/visualiza/visualizagr.jsp?nro=00000000019879",{"$f":"$AT$2&AV58&\":\"&$AT$2&AW58","v":"BB251:BB255"},{"$f":"ROW()","v":58},{"$f":"MINA(IF(AQ58=$BA$4:$BA$410,$BD$4:$BD$410))","v":251},{"$f":"MAXA(IF(AQ58=$BA$4:$BA$410,$BD$4:$BD$410))","v":255},"ING",null,null,"COL0067504","Minería Web",{"$f":"COUNTIF(BA$4:BA58,BA58)","v":5},{"$f":"ROW()","v":58},1,null,"COL0138796",1]
[null,null,null,null,null,null,null,null,null,null,null,null,null,null,null,null,null,null,null,null,null,null,null,null,null,null,36,"Programa","HUM","Maestría en Educación e Innovación Pedagógica",59,null,null,null,null,null,7,54,1,56,"ING","Sistemas de Infraestructura de Ingeniería Civil","COL0196799","C","https://scienti.minciencias.gov.co/gruplac/jsp/visualiza/visualizagr.jsp?nro=00000000019883","BB298:BB301",{"$f":"ROW()","v":59},{"$f":"MINA(IF(AQ59=$BA$4:$BA$410,$BD$4:$BD$410))","v":298},{"$f":"MAXA(IF(AQ59=$BA$4:$BA$410,$BD$4:$BD$410))","v":301},"ING",null,null,"COL0067504","Salud Pública, Bioética e Ingeniería",{"$f":"COUNTIF(BA$4:BA59,BA59)","v":6},{"$f":"ROW()","v":59},1,null,"COL0142331",1]
[null,null,null,null,null,null,null,null,null,null,null,null,null,null,null,null,null,null,null,null,null,null,null,null,null,null,37,"Programa","ING"," Ingeniería en Multimedia",60,null,null,null,null,null,15,55,1,57,"MED","Ingeniería de Procesos y Tecnologías Sostenibles","COL0194866","C","https://scienti.minciencias.gov.co/gruplac/jsp/visualiza/visualizagr.jsp?nro=00000000019690","BB39:BB41",{"$f":"ROW()","v":60},{"$f":"MINA(IF(AQ60=$BA$4:$BA$410,$BD$4:$BD$410))","v":39},{"$f":"MAXA(IF(AQ60=$BA$4:$BA$410,$BD$4:$BD$410))","v":41},"ING",null,null,"COL0069296","Modelos de simulación",{"$f":"COUNTIF(BA$4:BA60,BA60)","v":1},{"$f":"ROW()","v":60},1,null,"COL0142449",1]
[null,null,null,null,null,null,null,null,null,null,null,null,null,null,null,null,null,null,null,null,null,null,null,null,null,null,38,"Programa","ING","Doctorado en Ingeniería ",61,null,null,null,null,null,19,56,1,58,"MED","CATCH","COL0049659","NR","https://scienti.minciencias.gov.co/gruplac/jsp/visualiza/visualizagr.jsp?nro=00000000003253","BB305:BB307",{"$f":"ROW()","v":61},{"$f":"MINA(IF(AQ61=$BA$4:$BA$410,$BD$4:$BD$410))","v":305},{"$f":"MAXA(IF(AQ61=$BA$4:$BA$410,$BD$4:$BD$410))","v":307},"MED",null,null,"COL0086179","Búsqueda de marcadores genéticos y estudio de genes ligados a la resistencia a Fusarium en clavel.",{"$f":"COUNTIF(BA$4:BA61,BA61)","v":1},{"$f":"ROW()","v":61},1,null,"COL0016999",1]
[null,null,null,null,null,null,null,null,null,null,null,null,null,null,null,null,null,null,null,null,null,null,null,null,null,null,39,"Programa","ING","Especialización en Geomática",62,null,null,null,null,null,24,57,1,59,"MED","BONE","COL0047762","NR","https://scienti.minciencias.gov.co/gruplac/jsp/visualiza/visualizagr.jsp?nro=00000000003064","BB328:BB329",{"$f":"ROW()","v":62},{"$f":"MINA(IF(AQ62=$BA$4:$BA$410,$BD$4:$BD$410))","v":328},{"$f":"MAXA(IF(AQ62=$BA$4:$BA$410,$BD$4:$BD$410))","v":329},"MED",null,null,"COL0086179","Producción de nuevas variedades de clavel resistentes a parásitos vasculares.",{"$f":"COUNTIF(BA$4:BA62,BA62)","v":2},{"$f":"ROW()","v":62},1,null,"COL0005439",1]
[null,null,null,null,null,null,null,null,null,null,null,null,null,null,null,null,null,null,null,null,null,null,null,null,null,null,40,"Programa","ING","Especialización en Gerencia Estratégica de la Calidad",63,null,null,null,null,null,25,58,1,60,"MED","GRUPO DE PSORIASIS E INMUNODERMATOLOGIA","COL0126015","C","https://scienti.minciencias.gov.co/gruplac/jsp/visualiza/visualizagr.jsp?nro=00000000012737","BB182:BB183",{"$f":"ROW()","v":63},{"$f":"MINA(IF(AQ63=$BA$4:$BA$410,$BD$4:$BD$410))","v":182},{"$f":"MAXA(IF(AQ63=$BA$4:$BA$410,$BD$4:$BD$410))","v":183},"MED",null,null,"COL0086179","Taxonomía y filogenia molecular: desarrollo de instrumentos de análisis",{"$f":"COUNTIF(BA$4:BA63,BA63)","v":3},{"$f":"ROW()","v":63},1,null,"COL0002896",1]
[null,null,null,null,null,null,null,null,null,null,null,null,null,null,null,null,null,null,null,null,null,null,null,null,null,null,41,"Programa","ING","Especialización en Gerencia Integral de Proyectos",64,null,null,null,null,null,35,59,1,61,"MED","ORTOPEDIA Y TRAUMATOLOGIA HMC UMNG","COL0134044","C","https://scienti.minciencias.gov.co/gruplac/jsp/visualiza/visualizagr.jsp?nro=00000000013608","BB225:BB231",{"$f":"ROW()","v":64},{"$f":"MINA(IF(AQ64=$BA$4:$BA$410,$BD$4:$BD$410))","v":225},{"$f":"MAXA(IF(AQ64=$BA$4:$BA$410,$BD$4:$BD$410))","v":231},"MED",null,null,"COL0049999","Calidad y Gestión en la Educación",{"$f":"COUNTIF(BA$4:BA64,BA64)","v":1},{"$f":"ROW()","v":64},1,null,"COL0013719",1]
[null,null,null,null,null,null,null,null,null,null,null,null,null,null,null,null,null,null,null,null,null,null,null,null,null,null,42,"Programa","ING","Especialización en Gerencia Logística Integral",65,null,null,null,null,null,36,60,1,62,"MED","Salud y Comportamiento","COL0033239","NR","https://scienti.minciencias.gov.co/gruplac/jsp/visualiza/visualizagr.jsp?nro=00000000001536","BB325:BB327",{"$f":"ROW()","v":65},{"$f":"MINA(IF(AQ65=$BA$4:$BA$410,$BD$4:$BD$410))","v":325},{"$f":"MAXA(IF(AQ65=$BA$4:$BA$410,$BD$4:$BD$410))","v":327},"MED",null,null,"COL0049999","Gestión y Proyectos",{"$f":"COUNTIF(BA$4:BA65,BA65)","v":2},{"$f":"ROW()","v":65},1,null,"COL0101099",1]
[null,null,null,null,null,null,null,null,null,null,null,null,null,null,null,null,null,null,null,null,null,null,null,null,null,null,43,"Programa","ING","Especialización en Gestión Integral Ambiental",66,null,null,null,null,null,45,61,1,63,"MED","GRUPO NEUROCIENCIAS HMC","COL0138698","C","https://scienti.minciencias.gov.co/gruplac/jsp/visualiza/visualizagr.jsp?nro=00000000014072","BB135:BB153",{"$f":"ROW()","v":66},{"$f":"MINA(IF(AQ66=$BA$4:$BA$410,$BD$4:$BD$410))","v":135},{"$f":"MAXA(IF(AQ66=$BA$4:$BA$410,$BD$4:$BD$410))","v":153},"MED",null,null,"COL0049999","Innovación",{"$f":"COUNTIF(BA$4:BA66,BA66)","v":3},{"$f":"ROW()","v":66},1,null,"COL0044859",1]
[null,null,null,null,null,null,null,null,null,null,null,null,null,null,null,null,null,null,null,null,null,null,null,null,null,null,44,"Programa","ING","Especialización en Ingeniería  de Pavimentos",67,null,null,null,null,null,46,62,1,64,"MED","Grupo de Investigación en Dermatología HMC","COL0116439","C","https://scienti.minciencias.gov.co/gruplac/jsp/visualiza/visualizagr.jsp?nro=00000000011753","BB121:BB124",{"$f":"ROW()","v":67},{"$f":"MINA(IF(AQ67=$BA$4:$BA$410,$BD$4:$BD$410))","v":121},{"$f":"MAXA(IF(AQ67=$BA$4:$BA$410,$BD$4:$BD$410))","v":124},"MED",null,null,"COL0049999","Productividad",{"$f":"COUNTIF(BA$4:BA67,BA67)","v":4},{"$f":"ROW()","v":67},{"$f":"COUNTIF($AQ$3:$AQ$87,BA67)","v":1},null,"COL0149359",1]
[null,null,null,null,null,null,null,null,null,null,null,null,null,null,null,null,null,null,null,null,null,null,null,null,null,null,45,"Programa","ING","Ingeniería Ambiental",68,null,null,null,null,null,48,63,{"$f":"COUNTIF($AN$4:$AN$811,AL68)","v":1},65,"MED","Grupo de Investigación en Cirugía pediátrica y especialidades CIPEMIL","COL0194721","C","https://scienti.minciencias.gov.co/gruplac/jsp/visualiza/visualizagr.jsp?nro=00000000019676","BB209:BB214",{"$f":"ROW()","v":68},{"$f":"MINA(IF(AQ68=$BA$4:$BA$410,$BD$4:$BD$410))","v":209},{"$f":"MAXA(IF(AQ68=$BA$4:$BA$410,$BD$4:$BD$410))","v":214},"MED",null,null,"COL0049999","Sostenibilidad y Medio Ambiente",{"$f":"COUNTIF(BA$4:BA68,BA68)","v":5},{"$f":"ROW()","v":68},1,null,"COL0143731",{"$f":"COUNTIF($AQ$4:$AQ$79,BG68)","v":1}]
[null,null,null,null,null,null,null,null,null,null,null,null,null,null,null,null,null,null,null,null,null,null,null,null,null,null,46,"Programa","ING","Ingeniería Biomédica",69,null,null,null,null,null,51,64,1,66,"MED","GRUPO DE SALUD ORAL Y CIRUGIA MAXILOFACIAL","COL0129689","C","https://scienti.minciencias.gov.co/gruplac/jsp/visualiza/visualizagr.jsp?nro=00000000013172","BB44:BB46",{"$f":"ROW()","v":69},{"$f":"MINA(IF(AQ69=$BA$4:$BA$410,$BD$4:$BD$410))","v":44},{"$f":"MAXA(IF(AQ69=$BA$4:$BA$410,$BD$4:$BD$410))","v":46},"MED",null,null,"COL0049999","Tecnología",{"$f":"COUNTIF(BA$4:BA69,BA69)","v":6},{"$f":"ROW()","v":69},1,null,"\tCOL0151789",0]
[null,null,null,null,null,null,null,null,null,null,null,null,null,null,null,null,null,null,null,null,null,null,null,null,null,null,47,"Programa","ING","Ingeniería Civil",70,null,null,null,null,null,55,65,1,67,"MED","Kokhlias","COL0125134","C","https://scienti.minciencias.gov.co/gruplac/jsp/visualiza/visualizagr.jsp?nro=00000000012649","BB47:BB53",{"$f":"ROW()","v":70},{"$f":"MINA(IF(AQ70=$BA$4:$BA$410,$BD$4:$BD$410))","v":47},{"$f":"MAXA(IF(AQ70=$BA$4:$BA$410,$BD$4:$BD$410))","v":53},"MED",null,null,"COL0136423","Control óptimo estocástico",{"$f":"COUNTIF(BA$4:BA70,BA70)","v":1},{"$f":"ROW()","v":70},1,null,"COL0152472",1]
[null,null,null,null,null,null,null,null,null,null,null,null,null,null,null,null,null,null,null,null,null,null,null,null,null,null,48,"Programa","ING","Ingeniería en Mecatrónica",71,null,null,null,null,null,59,66,1,68,"MED","GRUPO DE REHABILITACION HOMIC-UMNG","COL0120281","C","https://scienti.minciencias.gov.co/gruplac/jsp/visualiza/visualizagr.jsp?nro=00000000012152","BB128:BB133",{"$f":"ROW()","v":71},{"$f":"MINA(IF(AQ71=$BA$4:$BA$410,$BD$4:$BD$410))","v":128},{"$f":"MAXA(IF(AQ71=$BA$4:$BA$410,$BD$4:$BD$410))","v":133},"MED",null,null,"COL0136423","Estadística Multivariada paramétrica y no paramétrica.",{"$f":"COUNTIF(BA$4:BA71,BA71)","v":2},{"$f":"ROW()","v":71},1,null,"COL0152319",1]
[null,null,null,null,null,null,null,null,null,null,null,null,null,null,null,null,null,null,null,null,null,null,null,null,null,null,49,"Programa","ING","Ingeniería en Telecomunicaciones",72,null,null,null,null,null,62,67,1,69,"MED","Grupo de Investigación en Urología HMC","COL0116538","C","https://scienti.minciencias.gov.co/gruplac/jsp/visualiza/visualizagr.jsp?nro=00000000011763","BB292:BB297",{"$f":"ROW()","v":72},{"$f":"MINA(IF(AQ72=$BA$4:$BA$410,$BD$4:$BD$410))","v":292},{"$f":"MAXA(IF(AQ72=$BA$4:$BA$410,$BD$4:$BD$410))","v":297},"MED",null,null,"COL0136423","Métodos estadísticos basados en grafos",{"$f":"COUNTIF(BA$4:BA72,BA72)","v":3},{"$f":"ROW()","v":72},1,null,"COL0152463",1]
[null,null,null,null,null,null,null,null,null,null,null,null,null,null,null,null,null,null,null,null,null,null,null,null,null,null,50,"Programa","ING","Ingeniería Industrial",73,null,null,null,null,null,69,70,1,70,"MED","Epidemiología molecular de enfermedades endocrinas","COL0045848","C","https://scienti.minciencias.gov.co/gruplac/jsp/visualiza/visualizagr.jsp?nro=00000000002874","BB106:BB108",{"$f":"ROW()","v":73},{"$f":"MINA(IF(AQ73=$BA$4:$BA$410,$BD$4:$BD$410))","v":106},{"$f":"MAXA(IF(AQ73=$BA$4:$BA$410,$BD$4:$BD$410))","v":108},"MED",null,null,"COL0136423","Optimización Semidefinida",{"$f":"COUNTIF(BA$4:BA73,BA73)","v":4},{"$f":"ROW()","v":73},1,null,"COL0138698",1]
[null,null,null,null,null,null,null,null,null,null,null,null,null,null,null,null,null,null,null,null,null,null,null,null,null,null,51,"Programa","ING","Maestría en Gerencia  Integral de Proyectos",74,null,null,null,null,null,null,null,null,71,"MED","EDUMECIS","COL0152463","C","https://scienti.minciencias.gov.co/gruplac/jsp/visualiza/visualizagr.jsp?nro=00000000015421","BB194:BB197",{"$f":"ROW()","v":74},{"$f":"MINA(IF(AQ74=$BA$4:$BA$410,$BD$4:$BD$410))","v":194},{"$f":"MAXA(IF(AQ74=$BA$4:$BA$410,$BD$4:$BD$410))","v":197},"MED",null,null,"COL0136423","Optimización Numérica. Máquinas de Vectores de Soportes.",{"$f":"COUNTIF(BA$4:BA74,BA74)","v":5},{"$f":"ROW()","v":74},1,null,"COL0120281",1]
[null,null,null,null,null,null,null,null,null,null,null,null,null,null,null,null,null,null,null,null,null,null,null,null,null,null,52,"Programa","ING","Maestría en Gerencia Logística Integral",75,null,null,null,null,null,null,null,null,72,"MED","BioGenEtica & BioDerecho","COL0096032","NR","https://scienti.minciencias.gov.co/gruplac/jsp/visualiza/visualizagr.jsp?nro=00000000009651","BB311:BB313",{"$f":"ROW()","v":75},{"$f":"MINA(IF(AQ75=$BA$4:$BA$410,$BD$4:$BD$410))","v":311},{"$f":"MAXA(IF(AQ75=$BA$4:$BA$410,$BD$4:$BD$410))","v":313},"MED",null,null,"COL0044859","Interacción Humano Computador",{"$f":"COUNTIF(BA$4:BA75,BA75)","v":1},{"$f":"ROW()","v":75},1,null,"COL0136423",1]
[null,null,null,null,null,null,null,null,null,null,null,null,null,null,null,null,null,null,null,null,null,null,null,null,null,null,53,"Programa","ING","Maestría en Ingeniería Civil",76,null,null,null,null,null,null,null,null,73,"MED","GAFRED","COL0149359","NR","https://scienti.minciencias.gov.co/gruplac/jsp/visualiza/visualizagr.jsp?nro=00000000015141","BB308:BB310",{"$f":"ROW()","v":76},{"$f":"MINA(IF(AQ76=$BA$4:$BA$410,$BD$4:$BD$410))","v":308},{"$f":"MAXA(IF(AQ76=$BA$4:$BA$410,$BD$4:$BD$410))","v":310},"MED",null,null,"COL0044859","Multimedia Educativa",{"$f":"COUNTIF(BA$4:BA76,BA76)","v":2},{"$f":"ROW()","v":76},1]
[null,null,null,null,null,null,null,null,null,null,null,null,null,null,null,null,null,null,null,null,null,null,null,null,null,null,54,"Programa","ING","Maestría en Ingeniería Mecatrónica",77,null,null,null,null,null,null,null,null,74,"MED","Grupo de Inmunología Clínica Aplicada","COL0152472","A1","https://scienti.minciencias.gov.co/gruplac/jsp/visualiza/visualizagr.jsp?nro=00000000015414",{"$f":"$AT$2&AV77&\":\"&$AT$2&AW77","v":"BB283:BB284"},{"$f":"ROW()","v":77},{"$f":"MINA(IF(AQ77=$BA$4:$BA$410,$BD$4:$BD$410))","v":283},{"$f":"MAXA(IF(AQ77=$BA$4:$BA$410,$BD$4:$BD$410))","v":284},"MED",null,null,"COL0044859","Procesamiento digital de imágenes y Visión por computador",{"$f":"COUNTIF(BA$4:BA77,BA77)","v":3},{"$f":"ROW()","v":77},1]
[null,null,null,null,null,null,null,null,null,null,null,null,null,null,null,null,null,null,null,null,null,null,null,null,null,null,55,"Programa","ING","Tecnología en Electrónica y Telecomunicaciones",78,null,null,null,null,null,null,null,null,75,"MED","Epidemiología y Salud Colectiva ","COL0152319","C","https://scienti.minciencias.gov.co/gruplac/jsp/visualiza/visualizagr.jsp?nro=00000000015438",{"$f":"$AT$2&AV78&\":\"&$AT$2&AW78","v":"BB218:BB222"},{"$f":"ROW()","v":78},{"$f":"MINA(IF(AQ78=$BA$4:$BA$410,$BD$4:$BD$410))","v":218},{"$f":"MAXA(IF(AQ78=$BA$4:$BA$410,$BD$4:$BD$410))","v":222},"MED",null,null,"COL0044859","Sistemas Multimedia",{"$f":"COUNTIF(BA$4:BA78,BA78)","v":4},{"$f":"ROW()","v":78},1]
[null,null,null,null,null,null,null,null,null,null,null,null,null,null,null,null,null,null,null,null,null,null,null,null,null,null,56,"Programa","MED","Medicina",79,null,null,null,null,null,null,null,null,76,"MED","GRUPO DE INVESTIGACIONES SOBRE AGENTES RADIOLÓGICOS, BIOLÓGICOS Y QUÍMICOS","COL0191078","C","https://scienti.minciencias.gov.co/gruplac/jsp/visualiza/visualizagr.jsp?nro=00000000019309","BB202:BB203",{"$f":"ROW()","v":79},{"$f":"MINA(IF(AQ79=$BA$4:$BA$410,$BD$4:$BD$410))","v":202},{"$f":"MAXA(IF(AQ79=$BA$4:$BA$410,$BD$4:$BD$410))","v":203},"MED",null,null,"COL0044859","Visualización y Computación Gráfica",{"$f":"COUNTIF(BA$4:BA79,BA79)","v":5},{"$f":"ROW()","v":79},1]
[null,null,null,null,null,null,null,null,null,null,null,null,null,null,null,null,null,null,null,null,null,null,null,null,null,null,57,"Programa","MED","Especialización en  medicina  del dolor  y  cuidados paliativos",80,null,null,null,null,null,null,null,null,77,"MED","Grupo de Investigación en Enfermedades Infecciosas Hospital Militar Central ","COL0175225","A1","https://scienti.minciencias.gov.co/gruplac/jsp/visualiza/visualizagr.jsp?nro=00000000017724","BB80:BB82",{"$f":"ROW()","v":80},{"$f":"MINA(IF(AQ80=$BA$4:$BA$410,$BD$4:$BD$410))","v":80},{"$f":"MAXA(IF(AQ80=$BA$4:$BA$410,$BD$4:$BD$410))","v":82},"MED",null,null,"COL0175225","Enfermedades Tropicales",{"$f":"COUNTIF(BA$4:BA80,BA80)","v":1},{"$f":"ROW()","v":80},1]
[null,null,null,null,null,null,null,null,null,null,null,null,null,null,null,null,null,null,null,null,null,null,null,null,null,null,58,"Programa","MED","Especialización en anestesiología",81,null,null,null,null,null,null,null,null,null,null,null,null,null,null,null,null,null,null,null,null,null,"COL0175225","Enfermedades de Transmisión Sexual",{"$f":"COUNTIF(BA$4:BA81,BA81)","v":2},{"$f":"ROW()","v":81},1]
[null,null,null,null,null,null,null,null,null,null,null,null,null,null,null,null,null,null,null,null,null,null,null,null,null,null,59,"Programa","MED","Especialización en cardiología",82,null,null,null,null,null,null,null,null,null,null,null,null,null,null,null,null,null,null,null,null,null,"COL0175225","Infecciones Asociadas al Cuidado de la Salud",{"$f":"COUNTIF(BA$4:BA82,BA82)","v":3},{"$f":"ROW()","v":82},1]
[null,null,null,null,null,null,null,null,null,null,null,null,null,null,null,null,null,null,null,null,null,null,null,null,null,null,60,"Programa","MED","Especialización en cirugía de cabeza  y cuello",83,null,null,null,null,null,null,null,null,null,null,null,null,null,null,null,null,null,null,null,null,null,"COL0052181","Big Data Analytics",{"$f":"COUNTIF(BA$4:BA83,BA83)","v":1},{"$f":"ROW()","v":83},1]
[null,null,null,null,null,null,null,null,null,null,null,null,null,null,null,null,null,null,null,null,null,null,null,null,null,null,61,"Programa","MED","Especialización en cirugía de columna",84,null,null,null,null,null,null,null,null,null,null,null,null,null,null,null,null,null,null,null,null,null,"COL0052181","Biomecánica e Ingeniería de Rehabilitación",{"$f":"COUNTIF(BA$4:BA84,BA84)","v":2},{"$f":"ROW()","v":84},1]
[null,null,null,null,null,null,null,null,null,null,null,null,null,null,null,null,null,null,null,null,null,null,null,null,null,null,62,"Programa","MED","Especialización en cirugía de la mano y miembro superior",85,null,null,null,null,null,null,null,null,null,null,null,null,null,null,null,null,null,null,null,null,null,"COL0052181","Educación, Gestión y Ecosistemas",{"$f":"COUNTIF(BA$4:BA85,BA85)","v":3},{"$f":"ROW()","v":85},1]
[null,null,null,null,null,null,null,null,null,null,null,null,null,null,null,null,null,null,null,null,null,null,null,null,null,null,63,"Programa","MED","Especialización en cirugía de pie y tobillo",86,null,null,null,null,null,null,null,null,null,null,null,null,null,null,null,null,null,null,null,null,null,"COL0052181","Procesamiento de señales, datos, imagen y video",{"$f":"COUNTIF(BA$4:BA86,BA86)","v":4},{"$f":"ROW()","v":86},1]
[null,null,null,null,null,null,null,null,null,null,null,null,null,null,null,null,null,null,null,null,null,null,null,null,null,null,64,"Programa","MED","Especialización en cirugía general",87,null,null,null,null,null,null,null,null,null,null,null,null,null,null,null,null,null,null,null,null,null,"COL0052181","Tele-cardiología y prevención",{"$f":"COUNTIF(BA$4:BA87,BA87)","v":5},{"$f":"ROW()","v":87},1]
[null,null,null,null,null,null,null,null,null,null,null,null,null,null,null,null,null,null,null,null,null,null,null,null,null,null,65,"Programa","MED","Especialización en cirugía oncológica",88,null,null,null,null,null,null,null,null,null,null,null,null,null,null,null,null,null,null,null,null,null,"COL0052181","Telemetría (IoT-Routing)"]
[null,null,null,null,null,null,null,null,null,null,null,null,null,null,null,null,null,null,null,null,null,null,null,null,null,null,66,"Programa","MED","Especialización en cirugía oral y maxilofacial",89,null,null,null,null,null,null,null,null,null,null,null,null,null,null,null,null,null,null,null,null,null,"COL0077707","(Eco)fisiología vegetal",{"$f":"COUNTIF(BA$4:BA89,BA89)","v":1},{"$f":"ROW()","v":89},1]
[null,null,null,null,null,null,null,null,null,null,null,null,null,null,null,null,null,null,null,null,null,null,null,null,null,null,67,"Programa","MED","Especialización en cirugía pediátrica",90,null,null,null,null,null,null,null,null,null,null,null,null,null,null,null,null,null,null,null,null,null,"COL0077707","Bioprospección de Comunidades Vegetales",{"$f":"COUNTIF(BA$4:BA90,BA90)","v":2},{"$f":"ROW()","v":90},1]
[null,null,null,null,null,null,null,null,null,null,null,null,null,null,null,null,null,null,null,null,null,null,null,null,null,null,68,"Programa","MED","Especialización en cirugía plástica ocular",91,null,null,null,null,null,null,null,null,null,null,null,null,null,null,null,null,null,null,null,null,null,"COL0077707","Búsqueda Biodirigida y Síntesis de Sustancias Bioactivas",{"$f":"COUNTIF(BA$4:BA91,BA91)","v":3},{"$f":"ROW()","v":91},1]
[null,null,null,null,null,null,null,null,null,null,null,null,null,null,null,null,null,null,null,null,null,null,null,null,null,null,69,"Programa","MED","Especialización en cirugía plástica reconstructiva y estética",92,null,null,null,null,null,null,null,null,null,null,null,null,null,null,null,null,null,null,null,null,null,"COL0077707","Ecología Química y Redes Tróficas",{"$f":"COUNTIF(BA$4:BA92,BA92)","v":4},{"$f":"ROW()","v":92},1]
[null,null,null,null,null,null,null,null,null,null,null,null,null,null,null,null,null,null,null,null,null,null,null,null,null,null,70,"Programa","MED","Especialización en cirugía reconstructiva y del reemplazo articular de cadera y rodilla",93,null,null,null,null,null,null,null,null,null,null,null,null,null,null,null,null,null,null,null,null,null,"COL0077707","Fitoquímica Analítica",{"$f":"COUNTIF(BA$4:BA93,BA93)","v":5},{"$f":"ROW()","v":93},1]
[null,null,null,null,null,null,null,null,null,null,null,null,null,null,null,null,null,null,null,null,null,null,null,null,null,null,71,"Programa","MED","Especialización en cirugía vascular y angiología",94,null,null,null,null,null,null,null,null,null,null,null,null,null,null,null,null,null,null,null,null,null,"COL0077707","Metabolómica | Fisiología Molecular | Ecología Metabólica | Respuestas Metabólicas",{"$f":"COUNTIF(BA$4:BA94,BA94)","v":6},{"$f":"ROW()","v":94},1]
[null,null,null,null,null,null,null,null,null,null,null,null,null,null,null,null,null,null,null,null,null,null,null,null,null,null,72,"Programa","MED","Especialización en Coloproctología",95,null,null,null,null,null,null,null,null,null,null,null,null,null,null,null,null,null,null,null,null,null,"COL0077707","Modelado Molecular, Bio- y Quimio-informática",{"$f":"COUNTIF(BA$4:BA95,BA95)","v":7},{"$f":"ROW()","v":95},1]
[null,null,null,null,null,null,null,null,null,null,null,null,null,null,null,null,null,null,null,null,null,null,null,null,null,null,73,"Programa","MED","Especialización en dermatología",96,null,null,null,null,null,null,null,null,null,null,null,null,null,null,null,null,null,null,null,null,null,"COL0077707","Química Ambiental",{"$f":"COUNTIF(BA$4:BA96,BA96)","v":8},{"$f":"ROW()","v":96},1]
[null,null,null,null,null,null,null,null,null,null,null,null,null,null,null,null,null,null,null,null,null,null,null,null,null,null,74,"Programa","MED","Especialización en dermatología oncológica",97,null,null,null,null,null,null,null,null,null,null,null,null,null,null,null,null,null,null,null,null,null,"COL0077707","Química Bioorgánica y Bioquímica",{"$f":"COUNTIF(BA$4:BA97,BA97)","v":9},{"$f":"ROW()","v":97},1]
[null,null,null,null,null,null,null,null,null,null,null,null,null,null,null,null,null,null,null,null,null,null,null,null,null,null,75,"Programa","MED","Especialización en endocrinología",98,null,null,null,null,null,null,null,null,null,null,null,null,null,null,null,null,null,null,null,null,null,"COL0027367","Estudios de migración y desigualdades poblacionales",{"$f":"COUNTIF(BA$4:BA98,BA98)","v":1},{"$f":"ROW()","v":98},1]
[null,null,null,null,null,null,null,null,null,null,null,null,null,null,null,null,null,null,null,null,null,null,null,null,null,null,76,"Programa","MED","Especialización en gastroenterología",99,null,null,null,null,null,null,null,null,null,null,null,null,null,null,null,null,null,null,null,null,null,"COL0027367","Estudios en desarrollo social y sostenibilidad",{"$f":"COUNTIF(BA$4:BA99,BA99)","v":2},{"$f":"ROW()","v":99},1]
[null,null,null,null,null,null,null,null,null,null,null,null,null,null,null,null,null,null,null,null,null,null,null,null,null,null,77,"Programa","MED","Especialización en ginecología oncológica",100,null,null,null,null,null,null,null,null,null,null,null,null,null,null,null,null,null,null,null,null,null,"COL0027367","Estudios sobre desigualdades educativas",{"$f":"COUNTIF(BA$4:BA100,BA100)","v":3},{"$f":"ROW()","v":100},1]
[null,null,null,null,null,null,null,null,null,null,null,null,null,null,null,null,null,null,null,null,null,null,null,null,null,null,78,"Programa","MED","Especialización en ginecología y obstetricia",101,null,null,null,null,null,null,null,null,null,null,null,null,null,null,null,null,null,null,null,null,null,"COL0038084","Acuaponía, recirculación e hidroponía",{"$f":"COUNTIF(BA$4:BA101,BA101)","v":1},{"$f":"ROW()","v":101},1]
[null,null,null,null,null,null,null,null,null,null,null,null,null,null,null,null,null,null,null,null,null,null,null,null,null,null,79,"Programa","MED","Especialización en hematología y oncología clínica",102,null,null,null,null,null,null,null,null,null,null,null,null,null,null,null,null,null,null,null,null,null,"COL0038084","Biología evolutiva de animales",{"$f":"COUNTIF(BA$4:BA102,BA102)","v":2},{"$f":"ROW()","v":102},1]
[null,null,null,null,null,null,null,null,null,null,null,null,null,null,null,null,null,null,null,null,null,null,null,null,null,null,80,"Programa","MED","Especialización en hemato-oncología pediátrica",103,null,null,null,null,null,null,null,null,null,null,null,null,null,null,null,null,null,null,null,null,null,"COL0038084","Ecotoxicología",{"$f":"COUNTIF(BA$4:BA103,BA103)","v":3},{"$f":"ROW()","v":103},1]
[null,null,null,null,null,null,null,null,null,null,null,null,null,null,null,null,null,null,null,null,null,null,null,null,null,null,81,"Programa","MED","Especialización en laringología y vía aérea superior",104,null,null,null,null,null,null,null,null,null,null,null,null,null,null,null,null,null,null,null,null,null,"COL0038084","Energías alternas y recursos ambientales",{"$f":"COUNTIF(BA$4:BA104,BA104)","v":4},{"$f":"ROW()","v":104},1]
[null,null,null,null,null,null,null,null,null,null,null,null,null,null,null,null,null,null,null,null,null,null,null,null,null,null,82,"Programa","MED","Especialización en medicina crítica y cuidados intensivos",105,null,null,null,null,null,null,null,null,null,null,null,null,null,null,null,null,null,null,null,null,null,"COL0038084","modelamiento de especies bajo escenario de calentamiento global",{"$f":"COUNTIF(BA$4:BA105,BA105)","v":5},{"$f":"ROW()","v":105},1]
[null,null,null,null,null,null,null,null,null,null,null,null,null,null,null,null,null,null,null,null,null,null,null,null,null,null,83,"Programa","MED","Especialización en medicina física y rehabilitación",106,null,null,null,null,null,63,null,null,null,null,null,null,null,null,null,null,null,null,null,null,null,"COL0045848","Epidemiología Clínica de Diabetes e Insulino resistencia",{"$f":"COUNTIF(BA$4:BA106,BA106)","v":1},{"$f":"ROW()","v":106},1]
[null,null,null,null,null,null,null,null,null,null,null,null,null,null,null,null,null,null,null,null,null,null,null,null,null,null,84,"Programa","MED","Especialización en medicina interna",107,null,null,null,null,null,65,null,null,null,null,null,null,null,null,null,null,null,null,null,null,null,"COL0045848","Genética de diabetes mellitus e insulino resistencia",{"$f":"COUNTIF(BA$4:BA107,BA107)","v":2},{"$f":"ROW()","v":107},1]
[null,null,null,null,null,null,null,null,null,null,null,null,null,null,null,null,null,null,null,null,null,null,null,null,null,null,85,"Programa","MED","Especialización en nefrología",108,null,null,null,null,null,null,null,null,null,null,null,null,null,null,null,null,null,null,null,null,null,"COL0045848","Prevención Cardiovascular",{"$f":"COUNTIF(BA$4:BA108,BA108)","v":3},{"$f":"ROW()","v":108},1]
[null,null,null,null,null,null,null,null,null,null,null,null,null,null,null,null,null,null,null,null,null,null,null,null,null,null,86,"Programa","MED","Especialización en neonatología",109,null,null,null,null,null,null,null,null,null,null,null,null,null,null,null,null,null,null,null,null,null,"COL0031959","Análisis de redes de interacción planta-polinizador a partir de técnicas palinológicas",{"$f":"COUNTIF(BA$4:BA109,BA109)","v":1},{"$f":"ROW()","v":109},1]
[null,null,null,null,null,null,null,null,null,null,null,null,null,null,null,null,null,null,null,null,null,null,null,null,null,null,87,"Programa","MED","Especialización en neumología",110,null,null,null,null,null,null,null,null,null,null,null,null,null,null,null,null,null,null,null,null,null,"COL0031959","Cría de especies del género Bombus para su utilización como polinizadores en cultivos de la sabana Cundi-boyacense.",{"$f":"COUNTIF(BA$4:BA110,BA110)","v":2},{"$f":"ROW()","v":110},1]
[null,null,null,null,null,null,null,null,null,null,null,null,null,null,null,null,null,null,null,null,null,null,null,null,null,null,88,"Programa","MED","Especialización en neurocirugía",111,null,null,null,null,null,null,null,null,null,null,null,null,null,null,null,null,null,null,null,null,null,"COL0031959","Diversidad, biología y taxonomía de polinizadores colombianos",{"$f":"COUNTIF(BA$4:BA111,BA111)","v":3},{"$f":"ROW()","v":111},1]
[null,null,null,null,null,null,null,null,null,null,null,null,null,null,null,null,null,null,null,null,null,null,null,null,null,null,89,"Programa","MED","Especialización en neurología",112,null,null,null,null,null,null,null,null,null,null,null,null,null,null,null,null,null,null,null,null,null,"COL0031959","Ecología de la polinización: estudios del uso sostenible de especies de abejas silvestres como polinizadores de hortalizas y frutales",{"$f":"COUNTIF(BA$4:BA112,BA112)","v":4},{"$f":"ROW()","v":112},1]
[null,null,null,null,null,null,null,null,null,null,null,null,null,null,null,null,null,null,null,null,null,null,null,null,null,null,90,"Programa","MED","Especialización en neurología pediátrica",113,null,null,null,null,null,null,null,null,null,null,null,null,null,null,null,null,null,null,null,null,null,"COL0031959","Modelos biológicos y ecológicos de insectos benéficos",{"$f":"COUNTIF(BA$4:BA113,BA113)","v":5},{"$f":"ROW()","v":113},1]
[null,null,null,null,null,null,null,null,null,null,null,null,null,null,null,null,null,null,null,null,null,null,null,null,null,null,91,"Programa","MED","Especialización en neurología pediátrica para especialistas en pediatría",114,null,null,null,null,null,null,null,null,null,null,null,null,null,null,null,null,null,null,null,null,null,"COL0065804","Desarrollos mecatrónicos",{"$f":"COUNTIF(BA$4:BA114,BA114)","v":1},{"$f":"ROW()","v":114},1]
[null,null,null,null,null,null,null,null,null,null,null,null,null,null,null,null,null,null,null,null,null,null,null,null,null,null,92,"Programa","MED","Especialización en oftalmología",115,null,null,null,null,null,null,null,null,null,null,null,null,null,null,null,null,null,null,null,null,null,"COL0065804","Energías Renovables",{"$f":"COUNTIF(BA$4:BA115,BA115)","v":2},{"$f":"ROW()","v":115},1]
[null,null,null,null,null,null,null,null,null,null,null,null,null,null,null,null,null,null,null,null,null,null,null,null,null,null,93,"Programa","MED","Especialización en oncología radioterápica",116,null,null,null,null,null,null,null,null,null,null,null,null,null,null,null,null,null,null,null,null,null,"COL0065804","Materiales y Procesos de Manufactura",{"$f":"COUNTIF(BA$4:BA116,BA116)","v":3},{"$f":"ROW()","v":116},1]
[null,null,null,null,null,null,null,null,null,null,null,null,null,null,null,null,null,null,null,null,null,null,null,null,null,null,94,"Programa","MED","Especialización en ortopedia oncológica",117,null,null,null,null,null,null,null,null,null,null,null,null,null,null,null,null,null,null,null,null,null,"COL0036025","Biomecatrónica",{"$f":"COUNTIF(BA$4:BA117,BA117)","v":1},{"$f":"ROW()","v":117},1]
[null,null,null,null,null,null,null,null,null,null,null,null,null,null,null,null,null,null,null,null,null,null,null,null,null,null,95,"Programa","MED","Especialización en ortopedia y traumatología",118,null,null,null,null,null,null,null,null,null,null,null,null,null,null,null,null,null,null,null,null,null,"COL0036025","Optimización y Control de sistemas dinámicos",{"$f":"COUNTIF(BA$4:BA118,BA118)","v":2},{"$f":"ROW()","v":118},1]
[null,null,null,null,null,null,null,null,null,null,null,null,null,null,null,null,null,null,null,null,null,null,null,null,null,null,96,"Programa","MED","Especialización en otología",119,null,null,null,null,null,null,null,null,null,null,null,null,null,null,null,null,null,null,null,null,null,"COL0036025","Robótica híbrida",{"$f":"COUNTIF(BA$4:BA119,BA119)","v":3},{"$f":"ROW()","v":119},1]
[null,null,null,null,null,null,null,null,null,null,null,null,null,null,null,null,null,null,null,null,null,null,null,null,null,null,97,"Programa","MED","Especialización en otorrinolaringología",120,null,null,null,null,null,null,null,null,null,null,null,null,null,null,null,null,null,null,null,null,null,"COL0036025","Simulación y Realidad Virtual",{"$f":"COUNTIF(BA$4:BA120,BA120)","v":4},{"$f":"ROW()","v":120},1]
[null,null,null,null,null,null,null,null,null,null,null,null,null,null,null,null,null,null,null,null,null,null,null,null,null,null,98,"Programa","MED","Especialización en patología",121,null,null,null,null,null,null,null,null,null,null,null,null,null,null,null,null,null,null,null,null,null,"COL0116439","Cirugía Dermatológica",{"$f":"COUNTIF(BA$4:BA121,BA121)","v":1},{"$f":"ROW()","v":121},1]
[null,null,null,null,null,null,null,null,null,null,null,null,null,null,null,null,null,null,null,null,null,null,null,null,null,null,99,"Programa","MED","Especialización en pediatría",122,null,null,null,null,null,null,null,null,null,null,null,null,null,null,null,null,null,null,null,null,null,"COL0116439","Dermatología Pediátrica",{"$f":"COUNTIF(BA$4:BA122,BA122)","v":2},{"$f":"ROW()","v":122},1]
[null,null,null,null,null,null,null,null,null,null,null,null,null,null,null,null,null,null,null,null,null,null,null,null,null,null,100,"Programa","MED","Especialización en psiquiatría",123,null,null,null,null,null,null,null,null,null,null,null,null,null,null,null,null,null,null,null,null,null,"COL0116439","Fotobiología y Fototerapia",{"$f":"COUNTIF(BA$4:BA123,BA123)","v":3},{"$f":"ROW()","v":123},1]
[null,null,null,null,null,null,null,null,null,null,null,null,null,null,null,null,null,null,null,null,null,null,null,null,null,null,101,"Programa","MED","Especialización en radiología e imágenes diagnósticas",124,null,null,null,null,null,null,null,null,null,null,null,null,null,null,null,null,null,null,null,null,null,"COL0116439","Leishmaniasis",{"$f":"COUNTIF(BA$4:BA124,BA124)","v":4},{"$f":"ROW()","v":124},1]
[null,null,null,null,null,null,null,null,null,null,null,null,null,null,null,null,null,null,null,null,null,null,null,null,null,null,102,"Programa","MED","Especialización en rehabilitación oncológica",125,null,null,null,null,null,null,null,null,null,null,null,null,null,null,null,null,null,null,null,null,null,"COL0142331","Competitividad industrial",{"$f":"COUNTIF(BA$4:BA125,BA125)","v":1},{"$f":"ROW()","v":125},1]
[null,null,null,null,null,null,null,null,null,null,null,null,null,null,null,null,null,null,null,null,null,null,null,null,null,null,103,"Programa","MED","Especialización en reumatología",126,null,null,null,null,null,null,null,null,null,null,null,null,null,null,null,null,null,null,null,null,null,"COL0142331","Innovación y educación en Ingeniería",{"$f":"COUNTIF(BA$4:BA126,BA126)","v":2},{"$f":"ROW()","v":126},1]
[null,null,null,null,null,null,null,null,null,null,null,null,null,null,null,null,null,null,null,null,null,null,null,null,null,null,104,"Programa","MED","Especialización en urología",127,null,null,null,null,null,null,null,null,null,null,null,null,null,null,null,null,null,null,null,null,null,"COL0142331","Productividad industrial",{"$f":"COUNTIF(BA$4:BA127,BA127)","v":3},{"$f":"ROW()","v":127},1]
[null,null,null,null,null,null,null,null,null,null,null,null,null,null,null,null,null,null,null,null,null,null,null,null,null,null,105,"Programa","MED","Especialización en urología oncológica",128,null,null,null,null,null,null,null,null,null,null,null,null,null,null,null,null,null,null,null,null,null,"COL0120281","Medicina Electrodiagnostica",{"$f":"COUNTIF(BA$4:BA128,BA128)","v":1},{"$f":"ROW()","v":128},1]
[null,null,null,null,null,null,null,null,null,null,null,null,null,null,null,null,null,null,null,null,null,null,null,null,null,null,106,"Programa","MED","Tecnología en Atención Prehospitalaria",129,null,null,null,null,null,null,null,null,null,null,null,null,null,null,null,null,null,null,null,null,null,"COL0120281","Rehabilitación Neurológica",{"$f":"COUNTIF(BA$4:BA129,BA129)","v":2},{"$f":"ROW()","v":129},1]
[null,null,null,null,null,null,null,null,null,null,null,null,null,null,null,null,null,null,null,null,null,null,null,null,null,null,1,"Tipo Proyecto","INO","Innovación",{"$f":"AC130","v":"INO"},null,null,null,null,null,null,null,null,null,null,null,null,null,null,null,null,null,null,null,null,null,"COL0120281","Rehabilitación cardio-pulmonar",{"$f":"COUNTIF(BA$4:BA130,BA130)","v":3},{"$f":"ROW()","v":130},1]
[null,null,null,null,null,null,null,null,null,null,null,null,null,null,null,null,null,null,null,null,null,null,null,null,null,null,2,"Tipo Proyecto","EMP0","Emprendimiento Fase 0","EMP0",null,null,null,null,null,null,null,null,null,null,null,null,null,null,null,null,null,null,null,null,null,"COL0120281","Rehabilitación musculo esquelética",{"$f":"COUNTIF(BA$4:BA131,BA131)","v":4},{"$f":"ROW()","v":131},1]
[null,null,null,null,null,null,null,null,null,null,null,null,null,null,null,null,null,null,null,null,null,null,null,null,null,null,3,"Tipo Proyecto","EMP1","Emprendimiento Fase 1","EMP1",null,null,null,null,null,null,null,null,null,null,null,null,null,null,null,null,null,null,null,null,null,"COL0120281","Rehabilitación Infantil",{"$f":"COUNTIF(BA$4:BA132,BA132)","v":5},{"$f":"ROW()","v":132},{"$f":"COUNTIF($AQ$3:$AQ$87,BA132)","v":1}]
[null,null,null,null,null,null,null,null,null,null,null,null,null,null,null,null,null,null,null,null,null,null,null,null,null,null,null,null,null,0,null,null,null,null,null,null,null,null,null,null,null,null,null,null,null,null,null,null,null,null,null,null,"COL0120281","Robótica en Rehabilitación",{"$f":"COUNTIF(BA$4:BA133,BA133)","v":6},{"$f":"ROW()","v":133},1]
[null,null,null,null,null,null,null,null,null,null,null,null,null,null,null,null,null,null,null,null,null,null,null,null,null,null,1,"Función","Innovador Principal","Innovador Principal o líder del proyecto","IP",null,null,null,null,null,null,null,null,null,null,null,null,null,null,null,null,null,null,null,null,null,"COL0127649","Línea en Contabilidad Integral",{"$f":"COUNTIF(BA$4:BA134,BA134)","v":1},{"$f":"ROW()","v":134},1]
[null,null,null,null,null,null,null,null,null,null,null,null,null,null,null,null,null,null,null,null,null,null,null,null,null,null,2,"Función","Coinnovador","Innovador que apoya al líder del proyecto","CO",null,null,null,null,null,null,null,null,null,null,null,null,null,null,null,null,null,null,null,null,null,"COL0138698","BIOETICA",{"$f":"COUNTIF(BA$4:BA135,BA135)","v":1},{"$f":"ROW()","v":135},1]
[null,null,null,null,null,null,null,null,null,null,null,null,null,null,null,null,null,null,null,null,null,null,null,null,null,null,3,"Función","Asistente OPS","Asistente de Investigación contratado OPS","OPS",null,null,null,null,null,null,null,null,null,null,null,null,null,null,null,null,null,null,null,null,null,"COL0138698","CEREBROVASCULAR",{"$f":"COUNTIF(BA$4:BA136,BA136)","v":2},{"$f":"ROW()","v":136},1]
[null,null,null,null,null,null,null,null,null,null,null,null,null,null,null,null,null,null,null,null,null,null,null,null,null,null,4,"Función","Egresado","Estudiante egresado de la UMNG","AR",null,null,null,null,null,null,null,null,null,null,null,null,null,null,null,null,null,null,null,null,null,"COL0138698","DEMENCIAS",{"$f":"COUNTIF(BA$4:BA137,BA137)","v":3},{"$f":"ROW()","v":137},1]
[null,null,null,null,null,null,null,null,null,null,null,null,null,null,null,null,null,null,null,null,null,null,null,null,null,null,5,"Función","Estudiante","Estudiante apoya el proyecto","EST",null,null,null,null,null,null,null,null,null,null,null,null,null,null,null,null,null,null,null,null,null,"COL0138698","DISTONIAS",{"$f":"COUNTIF(BA$4:BA138,BA138)","v":4},{"$f":"ROW()","v":138},1]
[null,null,null,null,null,null,null,null,null,null,null,null,null,null,null,null,null,null,null,null,null,null,null,null,null,null,6,"Función","Administrativo","Personal administrativo de planta UMNG","ADM",null,null,null,null,null,null,null,null,null,null,null,null,null,null,null,null,null,null,null,null,null,"COL0138698","ENFERMEDADES HUERFANAS",{"$f":"COUNTIF(BA$4:BA139,BA139)","v":5},{"$f":"ROW()","v":139},1]
[null,null,null,null,null,null,null,null,null,null,null,null,null,null,null,null,null,null,null,null,null,null,null,null,null,null,7,"Función","Asesor","Asesor externo","ASR",null,null,null,null,null,null,null,null,null,null,null,null,null,null,null,null,null,null,null,null,null,"COL0138698","EPILEPSIA",{"$f":"COUNTIF(BA$4:BA140,BA140)","v":6},{"$f":"ROW()","v":140},1]
[null,null,null,null,null,null,null,null,null,null,null,null,null,null,null,null,null,null,null,null,null,null,null,null,null,null,7,"Función","Contratista","contratista con vinculación a UMNG (No proyectos)","CON",null,null,null,null,null,null,null,null,null,null,null,null,null,null,null,null,null,null,null,null,null,"COL0138698","ESCLEROSIS MULTIPLE",{"$f":"COUNTIF(BA$4:BA141,BA141)","v":7},{"$f":"ROW()","v":141},1]
[null,null,null,null,null,null,null,null,null,null,null,null,null,null,null,null,null,null,null,null,null,null,null,null,null,null,1,"Vinculo","Doc. Carrera TC","Docente de Carrera Tiempo Completo","DTC",null,null,null,null,null,null,null,null,null,null,null,null,null,null,null,null,null,null,null,null,null,"COL0138698","MOVIMIENTOS ANORMALES",{"$f":"COUNTIF(BA$4:BA142,BA142)","v":8},{"$f":"ROW()","v":142},1]
[null,null,null,null,null,null,null,null,null,null,null,null,null,null,null,null,null,null,null,null,null,null,null,null,null,null,2,"Vinculo","Doc. Carrera MT","Docente de Carrera Medio Tiempo","DMT",null,null,null,null,null,null,null,null,null,null,null,null,null,null,null,null,null,null,null,null,null,"COL0138698","NEUROCIRUGÍA DE COLUMNA",{"$f":"COUNTIF(BA$4:BA143,BA143)","v":9},{"$f":"ROW()","v":143},1]
[null,null,null,null,null,null,null,null,null,null,null,null,null,null,null,null,null,null,null,null,null,null,null,null,null,null,3,"Vinculo","Doc. Ocasional","Docente de Ocasional","OCA",null,null,null,null,null,null,null,null,null,null,null,null,null,null,null,null,null,null,null,null,null,"COL0138698","NEUROCIRUGÍA FUNCIONAL",{"$f":"COUNTIF(BA$4:BA144,BA144)","v":10},{"$f":"ROW()","v":144},1]
[null,null,null,null,null,null,null,null,null,null,null,null,null,null,null,null,null,null,null,null,null,null,null,null,null,null,4,"Vinculo","OPS - Prestación Servicios","Asistente de Investigación contratado OPS","OPS",null,null,null,null,null,null,null,null,null,null,null,null,null,null,null,null,null,null,null,null,null,"COL0138698","NEUROINFECCIONES",{"$f":"COUNTIF(BA$4:BA145,BA145)","v":11},{"$f":"ROW()","v":145},1]
[null,null,null,null,null,null,null,null,null,null,null,null,null,null,null,null,null,null,null,null,null,null,null,null,null,null,5,"Vinculo","Estudiante","Estudiante activo de pregrado o postgrado","EST",null,null,null,null,null,null,null,null,null,null,null,null,null,null,null,null,null,null,null,null,null,"COL0138698","NEUROMUSCULAR",{"$f":"COUNTIF(BA$4:BA146,BA146)","v":12},{"$f":"ROW()","v":146},1]
[null,null,null,null,null,null,null,null,null,null,null,null,null,null,null,null,null,null,null,null,null,null,null,null,null,null,6,"Vinculo","Externo a la UMNG","Docentes Investigadores externos sin vinculo laboral al U.","EXT",null,null,null,null,null,null,null,null,null,null,null,null,null,null,null,null,null,null,null,null,null,"COL0138698","NEUROONCOLOGIA",{"$f":"COUNTIF(BA$4:BA147,BA147)","v":13},{"$f":"ROW()","v":147},1]
[null,null,null,null,null,null,null,null,null,null,null,null,null,null,null,null,null,null,null,null,null,null,null,null,null,null,1,"NBC",11,"Programas y certificaciones básicas",11,null,null,null,null,null,null,null,null,null,null,null,null,null,null,null,null,null,null,null,null,null,"COL0138698","PARALISIS CEREBRAL",{"$f":"COUNTIF(BA$4:BA148,BA148)","v":14},{"$f":"ROW()","v":148},1]
[null,null,null,null,null,null,null,null,null,null,null,null,null,null,null,null,null,null,null,null,null,null,null,null,null,null,2,"NBC",21,"Alfabetización y aritmética elemental",21,null,null,null,null,null,null,null,null,null,null,null,null,null,null,null,null,null,null,null,null,null,"COL0138698","RETARDO MENTAL",{"$f":"COUNTIF(BA$4:BA149,BA149)","v":15},{"$f":"ROW()","v":149},1]
[null,null,null,null,null,null,null,null,null,null,null,null,null,null,null,null,null,null,null,null,null,null,null,null,null,null,3,"NBC",31,"Competencias personales y desarrollo",31,null,null,null,null,null,null,null,null,null,null,null,null,null,null,null,null,null,null,null,null,null,"COL0138698","SALUD MENTAL",{"$f":"COUNTIF(BA$4:BA150,BA150)","v":16},{"$f":"ROW()","v":150},1]
[null,null,null,null,null,null,null,null,null,null,null,null,null,null,null,null,null,null,null,null,null,null,null,null,null,null,4,"NBC",111,"Ciencias de la educación",111,null,null,null,null,null,null,null,null,null,null,null,null,null,null,null,null,null,null,null,null,null,"COL0138698","SUEÑO",{"$f":"COUNTIF(BA$4:BA151,BA151)","v":17},{"$f":"ROW()","v":151},1]
[null,null,null,null,null,null,null,null,null,null,null,null,null,null,null,null,null,null,null,null,null,null,null,null,null,null,5,"NBC",112,"Formación para docentes de educación pre-primaría",112,null,null,null,null,null,null,null,null,null,null,null,null,null,null,null,null,null,null,null,null,null,"COL0138698","TRASTORNOS DEL NEURODESARROLLO",{"$f":"COUNTIF(BA$4:BA152,BA152)","v":18},{"$f":"ROW()","v":152},1]
[null,null,null,null,null,null,null,null,null,null,null,null,null,null,null,null,null,null,null,null,null,null,null,null,null,null,6,"NBC",113,"Formación para docentes sin asignatura de especialización",113,null,null,null,null,null,null,null,null,null,null,null,null,null,null,null,null,null,null,null,null,null,"COL0138698","TRAUMA DE CRÁNEO Y COLUMNA",{"$f":"COUNTIF(BA$4:BA153,BA153)","v":19},{"$f":"ROW()","v":153},1]
[null,null,null,null,null,null,null,null,null,null,null,null,null,null,null,null,null,null,null,null,null,null,null,null,null,null,7,"NBC",114,"Formación para docentes con asignatura de especialización",114,null,null,null,null,null,null,null,null,null,null,null,null,null,null,null,null,null,null,null,null,null,"COL0013719","Biología y Epidemiología de hongos patógenos humanos.",{"$f":"COUNTIF(BA$4:BA154,BA154)","v":1},{"$f":"ROW()","v":154},1]
[null,null,null,null,null,null,null,null,null,null,null,null,null,null,null,null,null,null,null,null,null,null,null,null,null,null,8,"NBC",211,"Técnicas audiovisuales y producción para medios de comunicación",211,null,null,null,null,null,null,null,null,null,null,null,null,null,null,null,null,null,null,null,null,null,"COL0013719","Diversidad, Ecología y Bioprospección",{"$f":"COUNTIF(BA$4:BA155,BA155)","v":2},{"$f":"ROW()","v":155},1]
[null,null,null,null,null,null,null,null,null,null,null,null,null,null,null,null,null,null,null,null,null,null,null,null,null,null,9,"NBC",212,"Diseño industrial, de modas e interiores",212,null,null,null,null,null,null,null,null,null,null,null,null,null,null,null,null,null,null,null,null,null,"COL0013719","Fitopatología",{"$f":"COUNTIF(BA$4:BA156,BA156)","v":3},{"$f":"ROW()","v":156},1]
[null,null,null,null,null,null,null,null,null,null,null,null,null,null,null,null,null,null,null,null,null,null,null,null,null,null,10,"NBC",213,"Bellas artes",213,null,null,null,null,null,null,null,null,null,null,null,null,null,null,null,null,null,null,null,null,null,"COL0013719","Genómica y bioinformática",{"$f":"COUNTIF(BA$4:BA157,BA157)","v":4},{"$f":"ROW()","v":157},1]
[null,null,null,null,null,null,null,null,null,null,null,null,null,null,null,null,null,null,null,null,null,null,null,null,null,null,11,"NBC",214,"Artesanías",214,null,null,null,null,null,null,null,null,null,null,null,null,null,null,null,null,null,null,null,null,null,"COL0013719","Susceptibilidad a Antifúngicos",{"$f":"COUNTIF(BA$4:BA158,BA158)","v":5},{"$f":"ROW()","v":158},1]
[null,null,null,null,null,null,null,null,null,null,null,null,null,null,null,null,null,null,null,null,null,null,null,null,null,null,12,"NBC",215,"Música y artes escénicas",215,null,null,null,null,null,null,null,null,null,null,null,null,null,null,null,null,null,null,null,null,null,"COL0026486","Bioprocesos",{"$f":"COUNTIF(BA$4:BA159,BA159)","v":1},{"$f":"ROW()","v":159},1]
[null,null,null,null,null,null,null,null,null,null,null,null,null,null,null,null,null,null,null,null,null,null,null,null,null,null,13,"NBC",221,"Religión y Teología",221,null,null,null,null,null,null,null,null,null,null,null,null,null,null,null,null,null,null,null,null,null,"COL0026486","Biorrefinerías para tratamiento de agua",{"$f":"COUNTIF(BA$4:BA160,BA160)","v":2},{"$f":"ROW()","v":160},1]
[null,null,null,null,null,null,null,null,null,null,null,null,null,null,null,null,null,null,null,null,null,null,null,null,null,null,14,"NBC",222,"Historia y arqueología",222,null,null,null,null,null,null,null,null,null,null,null,null,null,null,null,null,null,null,null,null,null,"COL0026486","Ciudades Sostenibles",{"$f":"COUNTIF(BA$4:BA161,BA161)","v":3},{"$f":"ROW()","v":161},1]
[null,null,null,null,null,null,null,null,null,null,null,null,null,null,null,null,null,null,null,null,null,null,null,null,null,null,15,"NBC",223,"Filosofía y ética",223,null,null,null,null,null,null,null,null,null,null,null,null,null,null,null,null,null,null,null,null,null,"COL0026486","Eficiencia Energética en el Tratamiento de Agua",{"$f":"COUNTIF(BA$4:BA162,BA162)","v":4},{"$f":"ROW()","v":162},1]
[null,null,null,null,null,null,null,null,null,null,null,null,null,null,null,null,null,null,null,null,null,null,null,null,null,null,16,"NBC",231,"Adquisición del lenguaje",231,null,null,null,null,null,null,null,null,null,null,null,null,null,null,null,null,null,null,null,null,null,"COL0026486","Energías renovables y asequibles",{"$f":"COUNTIF(BA$4:BA163,BA163)","v":5},{"$f":"ROW()","v":163},1]
[null,null,null,null,null,null,null,null,null,null,null,null,null,null,null,null,null,null,null,null,null,null,null,null,null,null,17,"NBC",232,"Literatura y lingüística",232,null,null,null,null,null,null,null,null,null,null,null,null,null,null,null,null,null,null,null,null,null,"COL0026486","Procesos físico-químicos y de oxidación avanzada",{"$f":"COUNTIF(BA$4:BA164,BA164)","v":6},{"$f":"ROW()","v":164},1]
[null,null,null,null,null,null,null,null,null,null,null,null,null,null,null,null,null,null,null,null,null,null,null,null,null,null,18,"NBC",311,"Economía",311,null,null,null,null,null,null,null,null,null,null,null,null,null,null,null,null,null,null,null,null,null,"COL0028918","Constitución, Derecho Público y Estado",{"$f":"COUNTIF(BA$4:BA165,BA165)","v":1},{"$f":"ROW()","v":165},1]
[null,null,null,null,null,null,null,null,null,null,null,null,null,null,null,null,null,null,null,null,null,null,null,null,null,null,19,"NBC",312,"Ciencias políticas y educación cívica",312,null,null,null,null,null,null,null,null,null,null,null,null,null,null,null,null,null,null,null,null,null,"COL0028918","Derecho Historia y Filosofía",{"$f":"COUNTIF(BA$4:BA166,BA166)","v":2},{"$f":"ROW()","v":166},{"$f":"COUNTIF($AQ$3:$AQ$87,BA166)","v":1}]
[null,null,null,null,null,null,null,null,null,null,null,null,null,null,null,null,null,null,null,null,null,null,null,null,null,null,20,"NBC",313,"Psicología",313,null,null,null,null,null,null,null,null,null,null,null,null,null,null,null,null,null,null,null,null,null,"COL0028918","Derecho Internacional, Derechos Humanos, Derecho Internacional Humanitario",{"$f":"COUNTIF(BA$4:BA167,BA167)","v":3},{"$f":"ROW()","v":167},1]
[null,null,null,null,null,null,null,null,null,null,null,null,null,null,null,null,null,null,null,null,null,null,null,null,null,null,21,"NBC",314,"Sociología y estudios culturales",314,null,null,null,null,null,null,null,null,null,null,null,null,null,null,null,null,null,null,null,null,null,"COL0028918","Derecho Penal y Justicia Militar",{"$f":"COUNTIF(BA$4:BA168,BA168)","v":4},{"$f":"ROW()","v":168},1]
[null,null,null,null,null,null,null,null,null,null,null,null,null,null,null,null,null,null,null,null,null,null,null,null,null,null,22,"NBC",321,"Periodismo y reportajes",321,null,null,null,null,null,null,null,null,null,null,null,null,null,null,null,null,null,null,null,null,null,"COL0028918","Derecho, Educación y Sociedad",{"$f":"COUNTIF(BA$4:BA169,BA169)","v":5},{"$f":"ROW()","v":169},1]
[null,null,null,null,null,null,null,null,null,null,null,null,null,null,null,null,null,null,null,null,null,null,null,null,null,null,23,"NBC",322,"Bibliotecología, información y archivología",322,null,null,null,null,null,null,null,null,null,null,null,null,null,null,null,null,null,null,null,null,null,"COL0066768","DERECHO DE LAS RELACIONES INTERNACIONALES",{"$f":"COUNTIF(BA$4:BA170,BA170)","v":1},{"$f":"ROW()","v":170},1]
[null,null,null,null,null,null,null,null,null,null,null,null,null,null,null,null,null,null,null,null,null,null,null,null,null,null,24,"NBC",411,"Contabilidad e impuestos",411,null,null,null,null,null,null,null,null,null,null,null,null,null,null,null,null,null,null,null,null,null,"COL0066768","ECONOMIA Y NEGOCIOS INTERNACIONALES",{"$f":"COUNTIF(BA$4:BA171,BA171)","v":2},{"$f":"ROW()","v":171},1]
[null,null,null,null,null,null,null,null,null,null,null,null,null,null,null,null,null,null,null,null,null,null,null,null,null,null,25,"NBC",412,"Gestión financiera, administración bancaria y seguros",412,null,null,null,null,null,null,null,null,null,null,null,null,null,null,null,null,null,null,null,null,null,"COL0066768","ESTUDIOS POLÍTICOS",{"$f":"COUNTIF(BA$4:BA172,BA172)","v":3},{"$f":"ROW()","v":172},1]
[null,null,null,null,null,null,null,null,null,null,null,null,null,null,null,null,null,null,null,null,null,null,null,null,null,null,26,"NBC",413,"Gestión y administración",413,null,null,null,null,null,null,null,null,null,null,null,null,null,null,null,null,null,null,null,null,null,"COL0066768","ESTUDIOS REGIONALES",{"$f":"COUNTIF(BA$4:BA173,BA173)","v":4},{"$f":"ROW()","v":173},1]
[null,null,null,null,null,null,null,null,null,null,null,null,null,null,null,null,null,null,null,null,null,null,null,null,null,null,27,"NBC",414,"Mercadotecnia y publicidad",414,null,null,null,null,null,null,null,null,null,null,null,null,null,null,null,null,null,null,null,null,null,"COL0066768","HISTORIA INTERNACIONAL",{"$f":"COUNTIF(BA$4:BA174,BA174)","v":5},{"$f":"ROW()","v":174},1]
[null,null,null,null,null,null,null,null,null,null,null,null,null,null,null,null,null,null,null,null,null,null,null,null,null,null,28,"NBC",415,"Secretariado y trabajo de oficina",415,null,null,null,null,null,null,null,null,null,null,null,null,null,null,null,null,null,null,null,null,null,"COL0066768","RELACIONES INTERNACIONALES",{"$f":"COUNTIF(BA$4:BA175,BA175)","v":6},{"$f":"ROW()","v":175},1]
[null,null,null,null,null,null,null,null,null,null,null,null,null,null,null,null,null,null,null,null,null,null,null,null,null,null,29,"NBC",416,"Ventas al por mayor y al por menor",416,null,null,null,null,null,null,null,null,null,null,null,null,null,null,null,null,null,null,null,null,null,"COL0142449","CULTURA CONSTITUCIONAL, PAZ Y JUSTICIA TRANSICIONAL",{"$f":"COUNTIF(BA$4:BA176,BA176)","v":1},{"$f":"ROW()","v":176},1]
[null,null,null,null,null,null,null,null,null,null,null,null,null,null,null,null,null,null,null,null,null,null,null,null,null,null,30,"NBC",417,"Competencias laborales",417,null,null,null,null,null,null,null,null,null,null,null,null,null,null,null,null,null,null,null,null,null,"COL0142449","BIOÉTICA, DERECHOS HUMANOS Y EDUCACIÓN",{"$f":"COUNTIF(BA$4:BA177,BA177)","v":2},{"$f":"ROW()","v":177},1]
[null,null,null,null,null,null,null,null,null,null,null,null,null,null,null,null,null,null,null,null,null,null,null,null,null,null,31,"NBC",421,"Derecho",421,null,null,null,null,null,null,null,null,null,null,null,null,null,null,null,null,null,null,null,null,null,"COL0142449","POLÍTICA CRIMINAL, DERECHO PENAL Y CRIMINOLOGÍA",{"$f":"COUNTIF(BA$4:BA178,BA178)","v":3},{"$f":"ROW()","v":178},1]
[null,null,null,null,null,null,null,null,null,null,null,null,null,null,null,null,null,null,null,null,null,null,null,null,null,null,32,"NBC",511,"Biología",511,null,null,null,null,null,null,null,null,null,null,null,null,null,null,null,null,null,null,null,null,null,"COL0142449","POLÍTICAS PÚBLICAS, DERECHO ADMINISTRATIVO Y DESARROLLO",{"$f":"COUNTIF(BA$4:BA179,BA179)","v":4},{"$f":"ROW()","v":179},1]
[null,null,null,null,null,null,null,null,null,null,null,null,null,null,null,null,null,null,null,null,null,null,null,null,null,null,33,"NBC",512,"Bioquímica",512,null,null,null,null,null,null,null,null,null,null,null,null,null,null,null,null,null,null,null,null,null,"COL0142449","PROPIEDAD INTELECTUAL Y TRANSFERENCIA TECNOLÓGICA",{"$f":"COUNTIF(BA$4:BA180,BA180)","v":5},{"$f":"ROW()","v":180},1]
[null,null,null,null,null,null,null,null,null,null,null,null,null,null,null,null,null,null,null,null,null,null,null,null,null,null,34,"NBC",521,"Ciencias del medio ambiente",521,null,null,null,null,null,null,null,null,null,null,null,null,null,null,null,null,null,null,null,null,null,"COL0142449","SOCIOLOGÍA JURÍDICA, DERECHO PÚBLICO Y TEORÍA JURÍDICA",{"$f":"COUNTIF(BA$4:BA181,BA181)","v":6},{"$f":"ROW()","v":181},1]
[null,null,null,null,null,null,null,null,null,null,null,null,null,null,null,null,null,null,null,null,null,null,null,null,null,null,35,"NBC",522,"Medio ambiente natural y vida silvestre",522,null,null,null,null,null,null,null,null,null,null,null,null,null,null,null,null,null,null,null,null,null,"COL0126015","INMUNODERMATOLOGIA",{"$f":"COUNTIF(BA$4:BA182,BA182)","v":1},{"$f":"ROW()","v":182},1]
[null,null,null,null,null,null,null,null,null,null,null,null,null,null,null,null,null,null,null,null,null,null,null,null,null,null,36,"NBC",531,"Química",531,null,null,null,null,null,null,null,null,null,null,null,null,null,null,null,null,null,null,null,null,null,"COL0126015","PSORIASIS",{"$f":"COUNTIF(BA$4:BA183,BA183)","v":2},{"$f":"ROW()","v":183},1]
[null,null,null,null,null,null,null,null,null,null,null,null,null,null,null,null,null,null,null,null,null,null,null,null,null,null,37,"NBC",532,"Ciencias de la tierra",532,null,null,null,null,null,null,null,null,null,null,null,null,null,null,null,null,null,null,null,null,null,"COL0005439","MODELACIÓN NUMÉRICA",{"$f":"COUNTIF(BA$4:BA184,BA184)","v":1},{"$f":"ROW()","v":184},1]
[null,null,null,null,null,null,null,null,null,null,null,null,null,null,null,null,null,null,null,null,null,null,null,null,null,null,38,"NBC",533,"Física",533,null,null,null,null,null,null,null,null,null,null,null,null,null,null,null,null,null,null,null,null,null,"COL0005439","ORDENACIÓN DEL TERRITORIO",{"$f":"COUNTIF(BA$4:BA185,BA185)","v":2},{"$f":"ROW()","v":185},1]
[null,null,null,null,null,null,null,null,null,null,null,null,null,null,null,null,null,null,null,null,null,null,null,null,null,null,39,"NBC",541,"Matemáticas",541,null,null,null,null,null,null,null,null,null,null,null,null,null,null,null,null,null,null,null,null,null,"COL0005439","PAVIMENTOS",{"$f":"COUNTIF(BA$4:BA186,BA186)","v":3},{"$f":"ROW()","v":186},1]
[null,null,null,null,null,null,null,null,null,null,null,null,null,null,null,null,null,null,null,null,null,null,null,null,null,null,40,"NBC",542,"Estadística",542,null,null,null,null,null,null,null,null,null,null,null,null,null,null,null,null,null,null,null,null,null,"COL0005439","SUELOS",{"$f":"COUNTIF(BA$4:BA187,BA187)","v":4},{"$f":"ROW()","v":187},1]
[null,null,null,null,null,null,null,null,null,null,null,null,null,null,null,null,null,null,null,null,null,null,null,null,null,null,41,"NBC",611,"Uso de computadores",611,null,null,null,null,null,null,null,null,null,null,null,null,null,null,null,null,null,null,null,null,null,"COL0005439","TRANSPORTES",{"$f":"COUNTIF(BA$4:BA188,BA188)","v":5},{"$f":"ROW()","v":188},1]
[null,null,null,null,null,null,null,null,null,null,null,null,null,null,null,null,null,null,null,null,null,null,null,null,null,null,42,"NBC",612,"Diseño y administración de redes y bases de datos",612,null,null,null,null,null,null,null,null,null,null,null,null,null,null,null,null,null,null,null,null,null,"COL0117052","Ambiental",{"$f":"COUNTIF(BA$4:BA189,BA189)","v":1},{"$f":"ROW()","v":189},1]
[null,null,null,null,null,null,null,null,null,null,null,null,null,null,null,null,null,null,null,null,null,null,null,null,null,null,43,"NBC",613,"Desarrollo y análisis de software y aplicaciones",613,null,null,null,null,null,null,null,null,null,null,null,null,null,null,null,null,null,null,null,null,null,"COL0117052","Arte y Tecnología",{"$f":"COUNTIF(BA$4:BA190,BA190)","v":2},{"$f":"ROW()","v":190},1]
[null,null,null,null,null,null,null,null,null,null,null,null,null,null,null,null,null,null,null,null,null,null,null,null,null,null,44,"NBC",711,"Ingeniería y procesos químicos",711,null,null,null,null,null,null,null,null,null,null,null,null,null,null,null,null,null,null,null,null,null,"COL0117052","Energía",{"$f":"COUNTIF(BA$4:BA191,BA191)","v":3},{"$f":"ROW()","v":191},1]
[null,null,null,null,null,null,null,null,null,null,null,null,null,null,null,null,null,null,null,null,null,null,null,null,null,null,45,"NBC",712,"Tecnología de protección del medio ambiente",712,null,null,null,null,null,null,null,null,null,null,null,null,null,null,null,null,null,null,null,null,null,"COL0117052","Gestión e Innovación",{"$f":"COUNTIF(BA$4:BA192,BA192)","v":4},{"$f":"ROW()","v":192},1]
[null,null,null,null,null,null,null,null,null,null,null,null,null,null,null,null,null,null,null,null,null,null,null,null,null,null,46,"NBC",713,"Electricidad y energía",713,null,null,null,null,null,null,null,null,null,null,null,null,null,null,null,null,null,null,null,null,null,"COL0117052","Materiales",{"$f":"COUNTIF(BA$4:BA193,BA193)","v":5},{"$f":"ROW()","v":193},1]
[null,null,null,null,null,null,null,null,null,null,null,null,null,null,null,null,null,null,null,null,null,null,null,null,null,null,47,"NBC",714,"Electrónica y automatización",714,null,null,null,null,null,null,null,null,null,null,null,null,null,null,null,null,null,null,null,null,null,"COL0152463","CURRÍCULO Y EVALUACIÓN",{"$f":"COUNTIF(BA$4:BA194,BA194)","v":1},{"$f":"ROW()","v":194},1]
[null,null,null,null,null,null,null,null,null,null,null,null,null,null,null,null,null,null,null,null,null,null,null,null,null,null,48,"NBC",715,"Mecánica y profesiones afines a la metalistería",715,null,null,null,null,null,null,null,null,null,null,null,null,null,null,null,null,null,null,null,null,null,"COL0152463","DOCENCIA Y PEDAGOGÍA",{"$f":"COUNTIF(BA$4:BA195,BA195)","v":2},{"$f":"ROW()","v":195},1]
[null,null,null,null,null,null,null,null,null,null,null,null,null,null,null,null,null,null,null,null,null,null,null,null,null,null,49,"NBC",716,"Vehículos, barcos y aeronaves motorizadas",716,null,null,null,null,null,null,null,null,null,null,null,null,null,null,null,null,null,null,null,null,null,"COL0152463","INVESTIGACIÓN CLINICA",{"$f":"COUNTIF(BA$4:BA196,BA196)","v":3},{"$f":"ROW()","v":196},1]
[null,null,null,null,null,null,null,null,null,null,null,null,null,null,null,null,null,null,null,null,null,null,null,null,null,null,50,"NBC",721,"Procesamiento de alimentos",721,null,null,null,null,null,null,null,null,null,null,null,null,null,null,null,null,null,null,null,null,null,"COL0152463","Proyección Social y contexto de formación en Salud Pública",{"$f":"COUNTIF(BA$4:BA197,BA197)","v":4},{"$f":"ROW()","v":197},{"$f":"COUNTIF($AQ$3:$AQ$87,BA197)","v":1}]
[null,null,null,null,null,null,null,null,null,null,null,null,null,null,null,null,null,null,null,null,null,null,null,null,null,null,51,"NBC",722,"Materiales (vidrio, papel, plástico y madera)",722,null,null,null,null,null,null,null,null,null,null,null,null,null,null,null,null,null,null,null,null,null,"COL0101099","Educación y Sociedad",{"$f":"COUNTIF(BA$4:BA198,BA198)","v":1},{"$f":"ROW()","v":198},1]
[null,null,null,null,null,null,null,null,null,null,null,null,null,null,null,null,null,null,null,null,null,null,null,null,null,null,52,"NBC",723,"Producción textiles (ropa, calzado y artículos de cuero)",723,null,null,null,null,null,null,null,null,null,null,null,null,null,null,null,null,null,null,null,null,null,"COL0101099","FILOSOFIA POLITICA Y REPONSABILIDAD SOCIAL",{"$f":"COUNTIF(BA$4:BA199,BA199)","v":2},{"$f":"ROW()","v":199},1]
[null,null,null,null,null,null,null,null,null,null,null,null,null,null,null,null,null,null,null,null,null,null,null,null,null,null,53,"NBC",724,"Minería y extracción",724,null,null,null,null,null,null,null,null,null,null,null,null,null,null,null,null,null,null,null,null,null,"COL0101099","HUMANIDADES, CULTURA Y UNIVERSIDAD",{"$f":"COUNTIF(BA$4:BA200,BA200)","v":3},{"$f":"ROW()","v":200},1]
[null,null,null,null,null,null,null,null,null,null,null,null,null,null,null,null,null,null,null,null,null,null,null,null,null,null,54,"NBC",731,"Arquitectura y urbanismo",731,null,null,null,null,null,null,null,null,null,null,null,null,null,null,null,null,null,null,null,null,null,"COL0101099","Liderazgo y gestión en educación.",{"$f":"COUNTIF(BA$4:BA201,BA201)","v":4},{"$f":"ROW()","v":201},1]
[null,null,null,null,null,null,null,null,null,null,null,null,null,null,null,null,null,null,null,null,null,null,null,null,null,null,55,"NBC",732,"Construcción e ingeniería civil",732,null,null,null,null,null,null,null,null,null,null,null,null,null,null,null,null,null,null,null,null,null,"COL0191078","Enfermedades agudas y crónicas por exposición a agentes químicos y radiológicos",{"$f":"COUNTIF(BA$4:BA202,BA202)","v":1},{"$f":"ROW()","v":202},1]
[null,null,null,null,null,null,null,null,null,null,null,null,null,null,null,null,null,null,null,null,null,null,null,null,null,null,56,"NBC",811,"Producción agrícola y ganadera",811,null,null,null,null,null,null,null,null,null,null,null,null,null,null,null,null,null,null,null,null,null,"COL0191078","TOXINOLOGÍA",{"$f":"COUNTIF(BA$4:BA203,BA203)","v":2},{"$f":"ROW()","v":203},1]
[null,null,null,null,null,null,null,null,null,null,null,null,null,null,null,null,null,null,null,null,null,null,null,null,null,null,57,"NBC",812,"Horticultura",812,null,null,null,null,null,null,null,null,null,null,null,null,null,null,null,null,null,null,null,null,null,"COL0066669","Estrategia y Seguridad",{"$f":"COUNTIF(BA$4:BA204,BA204)","v":1},{"$f":"ROW()","v":204},1]
[null,null,null,null,null,null,null,null,null,null,null,null,null,null,null,null,null,null,null,null,null,null,null,null,null,null,58,"NBC",821,"Silvicultura",821,null,null,null,null,null,null,null,null,null,null,null,null,null,null,null,null,null,null,null,null,null,"COL0066669","Paz y Posconflicto",{"$f":"COUNTIF(BA$4:BA205,BA205)","v":2},{"$f":"ROW()","v":205},1]
[null,null,null,null,null,null,null,null,null,null,null,null,null,null,null,null,null,null,null,null,null,null,null,null,null,null,59,"NBC",831,"Pesca",831,null,null,null,null,null,null,null,null,null,null,null,null,null,null,null,null,null,null,null,null,null,"COL0066669","Seguridad Física",{"$f":"COUNTIF(BA$4:BA206,BA206)","v":3},{"$f":"ROW()","v":206},1]
[null,null,null,null,null,null,null,null,null,null,null,null,null,null,null,null,null,null,null,null,null,null,null,null,null,null,60,"NBC",841,"Veterinaria",841,null,null,null,null,null,null,null,null,null,null,null,null,null,null,null,null,null,null,null,null,null,"COL0066669","Seguridad de Personas",{"$f":"COUNTIF(BA$4:BA207,BA207)","v":4},{"$f":"ROW()","v":207},1]
[null,null,null,null,null,null,null,null,null,null,null,null,null,null,null,null,null,null,null,null,null,null,null,null,null,null,61,"NBC",911,"Odontología",911,null,null,null,null,null,null,null,null,null,null,null,null,null,null,null,null,null,null,null,null,null,"COL0066669","Seguridad y Salud en el Trabajo",{"$f":"COUNTIF(BA$4:BA208,BA208)","v":5},{"$f":"ROW()","v":208},1]
[null,null,null,null,null,null,null,null,null,null,null,null,null,null,null,null,null,null,null,null,null,null,null,null,null,null,62,"NBC",912,"Medicina",912,null,null,null,null,null,null,null,null,null,null,null,null,null,null,null,null,null,null,null,null,null,"COL0194721","Cirugía Abdominal, Tórax y Mínimamente Invasiva",{"$f":"COUNTIF(BA$4:BA209,BA209)","v":1},{"$f":"ROW()","v":209},1]
[null,null,null,null,null,null,null,null,null,null,null,null,null,null,null,null,null,null,null,null,null,null,null,null,null,null,63,"NBC",913,"Enfermería y partería",913,null,null,null,null,null,null,null,null,null,null,null,null,null,null,null,null,null,null,null,null,null,"COL0194721","Cirugía Vascular",{"$f":"COUNTIF(BA$4:BA210,BA210)","v":2},{"$f":"ROW()","v":210},1]
[null,null,null,null,null,null,null,null,null,null,null,null,null,null,null,null,null,null,null,null,null,null,null,null,null,null,64,"NBC",914,"Tecnología de diagnóstico y tratamiento médico",914,null,null,null,null,null,null,null,null,null,null,null,null,null,null,null,null,null,null,null,null,null,"COL0194721","Congénitas",{"$f":"COUNTIF(BA$4:BA211,BA211)","v":3},{"$f":"ROW()","v":211},1]
[null,null,null,null,null,null,null,null,null,null,null,null,null,null,null,null,null,null,null,null,null,null,null,null,null,null,65,"NBC",915,"Terapia y rehabilitación",915,null,null,null,null,null,null,null,null,null,null,null,null,null,null,null,null,null,null,null,null,null,"COL0194721","Educación",{"$f":"COUNTIF(BA$4:BA212,BA212)","v":4},{"$f":"ROW()","v":212},1]
[null,null,null,null,null,null,null,null,null,null,null,null,null,null,null,null,null,null,null,null,null,null,null,null,null,null,66,"NBC",916,"Farmacia",916,null,null,null,null,null,null,null,null,null,null,null,null,null,null,null,null,null,null,null,null,null,"COL0194721","Oncología",{"$f":"COUNTIF(BA$4:BA213,BA213)","v":5},{"$f":"ROW()","v":213},1]
[null,null,null,null,null,null,null,null,null,null,null,null,null,null,null,null,null,null,null,null,null,null,null,null,null,null,67,"NBC",917,"Medicina y terapia tradicional y complementaria",917,null,null,null,null,null,null,null,null,null,null,null,null,null,null,null,null,null,null,null,null,null,"COL0194721","Trauma",{"$f":"COUNTIF(BA$4:BA214,BA214)","v":6},{"$f":"ROW()","v":214},1]
[null,null,null,null,null,null,null,null,null,null,null,null,null,null,null,null,null,null,null,null,null,null,null,null,null,null,68,"NBC",921,"Asistencia a adultos mayores y discapacitados",921,null,null,null,null,null,null,null,null,null,null,null,null,null,null,null,null,null,null,null,null,null,"COL0048492","Estudios moleculares, ecológicos, morfológicos, nutricionales, ontogénicos y de cultivo de organismos acuáticos.",{"$f":"COUNTIF(BA$4:BA215,BA215)","v":1},{"$f":"ROW()","v":215},1]
[null,null,null,null,null,null,null,null,null,null,null,null,null,null,null,null,null,null,null,null,null,null,null,null,null,null,69,"NBC",922,"Asistencia a la infancia y servicios para Jóvenes",922,null,null,null,null,null,null,null,null,null,null,null,null,null,null,null,null,null,null,null,null,null,"COL0048492","Estudios morfológicos, tróficos, ecológicos, bióticos y abióticos de humedales colombianos.",{"$f":"COUNTIF(BA$4:BA216,BA216)","v":2},{"$f":"ROW()","v":216},1]
[null,null,null,null,null,null,null,null,null,null,null,null,null,null,null,null,null,null,null,null,null,null,null,null,null,null,70,"NBC",923,"Trabajo social y orientación",923,null,null,null,null,null,null,null,null,null,null,null,null,null,null,null,null,null,null,null,null,null,"COL0048492","Impacto antropogénico en ecosistemas acuáticos.",{"$f":"COUNTIF(BA$4:BA217,BA217)","v":3},{"$f":"ROW()","v":217},1]
[null,null,null,null,null,null,null,null,null,null,null,null,null,null,null,null,null,null,null,null,null,null,null,null,null,null,71,"NBC",1011,"Servicios domésticos",1011,null,null,null,null,null,null,null,null,null,null,null,null,null,null,null,null,null,null,null,null,null,"COL0152319","Epidemiología Clínica",{"$f":"COUNTIF(BA$4:BA218,BA218)","v":1},{"$f":"ROW()","v":218},1]
[null,null,null,null,null,null,null,null,null,null,null,null,null,null,null,null,null,null,null,null,null,null,null,null,null,null,72,"NBC",1012,"Peluquería y tratamientos de belleza",1012,null,null,null,null,null,null,null,null,null,null,null,null,null,null,null,null,null,null,null,null,null,"COL0152319","Epidemiología General.",{"$f":"COUNTIF(BA$4:BA219,BA219)","v":2},{"$f":"ROW()","v":219},1]
[null,null,null,null,null,null,null,null,null,null,null,null,null,null,null,null,null,null,null,null,null,null,null,null,null,null,73,"NBC",1013,"Hotelería, restaurantes y servicios de banquetes",1013,null,null,null,null,null,null,null,null,null,null,null,null,null,null,null,null,null,null,null,null,null,"COL0152319","Formación del Recurso Humano en Salud en Epidemiología y Salud Colectiva",{"$f":"COUNTIF(BA$4:BA220,BA220)","v":3},{"$f":"ROW()","v":220},1]
[null,null,null,null,null,null,null,null,null,null,null,null,null,null,null,null,null,null,null,null,null,null,null,null,null,null,74,"NBC",1014,"Deportes",1014,null,null,null,null,null,null,null,null,null,null,null,null,null,null,null,null,null,null,null,null,null,"COL0152319","Las Tecnologías de la Información y de la comunicación en Epidemiología y Salud Colectiva",{"$f":"COUNTIF(BA$4:BA221,BA221)","v":4},{"$f":"ROW()","v":221},1]
[null,null,null,null,null,null,null,null,null,null,null,null,null,null,null,null,null,null,null,null,null,null,null,null,null,null,75,"NBC",1015,"Viajes, turismo y actividades recreativas",1015,null,null,null,null,null,null,null,null,null,null,null,null,null,null,null,null,null,null,null,null,null,"COL0152319","Medicina tradicional complementaria.",{"$f":"COUNTIF(BA$4:BA222,BA222)","v":5},{"$f":"ROW()","v":222},1]
[null,null,null,null,null,null,null,null,null,null,null,null,null,null,null,null,null,null,null,null,null,null,null,null,null,null,76,"NBC",1021,"Saneamiento de la comunidad",1021,null,null,null,null,null,null,null,null,null,null,null,null,null,null,null,null,null,null,null,null,null,"COL0036749","Accesibilidad",{"$f":"COUNTIF(BA$4:BA223,BA223)","v":1},{"$f":"ROW()","v":223},1]
[null,null,null,null,null,null,null,null,null,null,null,null,null,null,null,null,null,null,null,null,null,null,null,null,null,null,77,"NBC",1022,"Salud y protección laboral",1022,null,null,null,null,null,null,null,null,null,null,null,null,null,null,null,null,null,null,null,null,null,"COL0036749","Multimedia Analítica",{"$f":"COUNTIF(BA$4:BA224,BA224)","v":2},{"$f":"ROW()","v":224},1]
[null,null,null,null,null,null,null,null,null,null,null,null,null,null,null,null,null,null,null,null,null,null,null,null,null,null,78,"NBC",1031,"Educación militar y de defensa",1031,null,null,null,null,null,null,null,null,null,null,null,null,null,null,null,null,null,null,null,null,null,"COL0134044","ORTOPEDIA INFANTIL",{"$f":"COUNTIF(BA$4:BA225,BA225)","v":1},{"$f":"ROW()","v":225},1]
[null,null,null,null,null,null,null,null,null,null,null,null,null,null,null,null,null,null,null,null,null,null,null,null,null,null,79,"NBC",1032,"Protección de las personas y de la propiedad",1032,null,null,null,null,null,null,null,null,null,null,null,null,null,null,null,null,null,null,null,null,null,"COL0134044","PATOLOGIA DE CADERA",{"$f":"COUNTIF(BA$4:BA226,BA226)","v":2},{"$f":"ROW()","v":226},1]
[null,null,null,null,null,null,null,null,null,null,null,null,null,null,null,null,null,null,null,null,null,null,null,null,null,null,80,"NBC",1041,"Servicios de transporte",1041,null,null,null,null,null,null,null,null,null,null,null,null,null,null,null,null,null,null,null,null,null,"COL0134044","PATOLOGIA DE COLUMNA, PELVIS Y ACETABULO",{"$f":"COUNTIF(BA$4:BA227,BA227)","v":3},{"$f":"ROW()","v":227},1]
[null,null,null,null,null,null,null,null,null,null,null,null,null,null,null,null,null,null,null,null,null,null,null,null,null,null,1,"Nivel",1,"Postdoctorado",{"$f":"AC228","v":1},null,null,null,null,null,null,null,null,null,null,null,null,null,null,null,null,null,null,null,null,null,"COL0134044","PATOLOGIA DE MANO Y MIEMBRO SUPERIOR",{"$f":"COUNTIF(BA$4:BA228,BA228)","v":4},{"$f":"ROW()","v":228},1]
[null,null,null,null,null,null,null,null,null,null,null,null,null,null,null,null,null,null,null,null,null,null,null,null,null,null,2,"Nivel",2,"Doctorado",{"$f":"AC229","v":2},null,null,null,null,null,null,null,null,null,null,null,null,null,null,null,null,null,null,null,null,null,"COL0134044","PATOLOGIA DE PIE Y TOBILLO",{"$f":"COUNTIF(BA$4:BA229,BA229)","v":5},{"$f":"ROW()","v":229},1]
[null,null,null,null,null,null,null,null,null,null,null,null,null,null,null,null,null,null,null,null,null,null,null,null,null,null,3,"Nivel",3,"Maestría",3,null,null,null,null,null,null,null,null,null,null,null,null,null,null,null,null,null,null,null,null,null,"COL0134044","PATOLOGIA DE RODILLA",{"$f":"COUNTIF(BA$4:BA230,BA230)","v":6},{"$f":"ROW()","v":230},1]
[null,null,null,null,null,null,null,null,null,null,null,null,null,null,null,null,null,null,null,null,null,null,null,null,null,null,4,"Nivel",4,"Esp. universitaria",4,null,null,null,null,null,null,null,null,null,null,null,null,null,null,null,null,null,null,null,null,null,"COL0134044","TRAUMA Y FIJACION EXTERNA",{"$f":"COUNTIF(BA$4:BA231,BA231)","v":7},{"$f":"ROW()","v":231},1]
[null,null,null,null,null,null,null,null,null,null,null,null,null,null,null,null,null,null,null,null,null,null,null,null,null,null,5,"Nivel",5,"Esp. Técnica Profesional",5,null,null,null,null,null,null,null,null,null,null,null,null,null,null,null,null,null,null,null,null,null,"COL0052163","Internet de las Cosas",{"$f":"COUNTIF(BA$4:BA232,BA232)","v":1},{"$f":"ROW()","v":232},1]
[null,null,null,null,null,null,null,null,null,null,null,null,null,null,null,null,null,null,null,null,null,null,null,null,null,null,6,"Nivel",6,"Esp. Tecnológica",6,null,null,null,null,null,null,null,null,null,null,null,null,null,null,null,null,null,null,null,null,null,"COL0052163","Procesamiento de Señales",{"$f":"COUNTIF(BA$4:BA233,BA233)","v":2},{"$f":"ROW()","v":233},1]
[null,null,null,null,null,null,null,null,null,null,null,null,null,null,null,null,null,null,null,null,null,null,null,null,null,null,7,"Nivel",7,"Universitario",7,null,null,null,null,null,null,null,null,null,null,null,null,null,null,null,null,null,null,null,null,null,"COL0052163","Seguridad Informática",{"$f":"COUNTIF(BA$4:BA234,BA234)","v":3},{"$f":"ROW()","v":234},1]
[null,null,null,null,null,null,null,null,null,null,null,null,null,null,null,null,null,null,null,null,null,null,null,null,null,null,8,"Nivel",8,"Tecnológico",8,null,null,null,null,null,null,null,null,null,null,null,null,null,null,null,null,null,null,null,null,null,"COL0052163","Sistemas bioinspirados",{"$f":"COUNTIF(BA$4:BA235,BA235)","v":4},{"$f":"ROW()","v":235},1]
[null,null,null,null,null,null,null,null,null,null,null,null,null,null,null,null,null,null,null,null,null,null,null,null,null,null,9,"Nivel",9,"Técnico profesional",9,null,null,null,null,null,null,null,null,null,null,null,null,null,null,null,null,null,null,null,null,null,"COL0052163","Sistemas de comunicaciones",{"$f":"COUNTIF(BA$4:BA236,BA236)","v":5},{"$f":"ROW()","v":236},1]
[null,null,null,null,null,null,null,null,null,null,null,null,null,null,null,null,null,null,null,null,null,null,null,null,null,null,10,"Nivel",10,"Estudiante pregrado",10,null,null,null,null,null,null,null,null,null,null,null,null,null,null,null,null,null,null,null,null,null,"COL0002896","Bioética, Educación y Desarrollo Humano y Social Sostenible",{"$f":"COUNTIF(BA$4:BA237,BA237)","v":1},{"$f":"ROW()","v":237},1]
[null,null,null,null,null,null,null,null,null,null,null,null,null,null,null,null,null,null,null,null,null,null,null,null,null,null,1,"A",100,"Puede aplicar al máximo de presupuesto dependiendo los puntos comprometidos",null,null,null,null,null,null,null,null,null,null,null,null,null,null,null,null,null,null,null,null,null,null,"COL0002896","Educación y Sociedad",{"$f":"COUNTIF(BA$4:BA238,BA238)","v":2},{"$f":"ROW()","v":238},1]
[null,null,null,null,null,null,null,null,null,null,null,null,null,null,null,null,null,null,null,null,null,null,null,null,null,null,8,"A1",100,"Puede aplicar al máximo de presupuesto dependiendo los puntos comprometidos",null,null,null,null,null,null,null,null,null,null,null,null,null,null,null,null,null,null,null,null,null,null,"COL0002896","Educación y cultura",{"$f":"COUNTIF(BA$4:BA239,BA239)","v":3},{"$f":"ROW()","v":239},1]
[null,null,null,null,null,null,null,null,null,null,null,null,null,null,null,null,null,null,null,null,null,null,null,null,null,null,9,"B",100,"Puede aplicar al máximo de presupuesto dependiendo los puntos comprometidos",null,null,null,null,null,null,null,null,null,null,null,null,null,null,null,null,null,null,null,null,null,null,"COL0002896","Línea Bioética Medica y Salud Publica",{"$f":"COUNTIF(BA$4:BA240,BA240)","v":4},{"$f":"ROW()","v":240},1]
[null,null,null,null,null,null,null,null,null,null,null,null,null,null,null,null,null,null,null,null,null,null,null,null,null,null,10,"C",100,"Puede aplicar al máximo de presupuesto dependiendo los puntos comprometidos",null,null,null,null,null,null,null,null,null,null,null,null,null,null,null,null,null,null,null,null,null,null,"COL0018448","Ambiente Virtuales de Aprendizaje",{"$f":"COUNTIF(BA$4:BA241,BA241)","v":1},{"$f":"ROW()","v":241},1]
[null,null,null,null,null,null,null,null,null,null,null,null,null,null,null,null,null,null,null,null,null,null,null,null,null,null,11,"D",50,"Puede aplicar hasta 50 millones de presupuesto dependiendo los puntos comprometidos",null,null,null,null,null,null,null,null,null,null,null,null,null,null,null,null,null,null,null,null,null,null,"COL0018448","Formación pedagógica y didáctica del docente",{"$f":"COUNTIF(BA$4:BA242,BA242)","v":2},{"$f":"ROW()","v":242},1]
[null,null,null,null,null,null,null,null,null,null,null,null,null,null,null,null,null,null,null,null,null,null,null,null,null,null,2,"R",50,"Puede aplicar hasta 50 millones de presupuesto dependiendo los puntos comprometidos",null,null,null,null,null,null,null,null,null,null,null,null,null,null,null,null,null,null,null,null,null,null,"COL0018448","Gestión del conocimiento y calidad de la educación superior",{"$f":"COUNTIF(BA$4:BA243,BA243)","v":3},{"$f":"ROW()","v":243},1]
[null,null,null,null,null,null,null,null,null,null,null,null,null,null,null,null,null,null,null,null,null,null,null,null,null,null,2,"NR",25,"Puede aplicar hasta 25 millones de presupuesto dependiendo los puntos comprometidos",null,null,null,null,null,null,null,null,null,null,null,null,null,null,null,null,null,null,null,null,null,null,"COL0110436","Bioquímica",{"$f":"COUNTIF(BA$4:BA244,BA244)","v":1},{"$f":"ROW()","v":244},1]
[null,null,null,null,null,null,null,null,null,null,null,null,null,null,null,null,null,null,null,null,null,null,null,null,null,null,1,"Tipo Entidad",1,"Centro Investigación",null,null,null,null,null,null,null,null,null,null,null,null,null,null,null,null,null,null,null,null,null,null,"COL0110436","Química Ambiental",{"$f":"COUNTIF(BA$4:BA245,BA245)","v":2},{"$f":"ROW()","v":245},1]
[null,null,null,null,null,null,null,null,null,null,null,null,null,null,null,null,null,null,null,null,null,null,null,null,null,null,2,"Tipo Entidad",2,"Centro de Desarrollo Tecnológico",null,null,null,null,null,null,null,null,null,null,null,null,null,null,null,null,null,null,null,null,null,null,"COL0110436","Química Inorgánica y Bioinorgánica",{"$f":"COUNTIF(BA$4:BA246,BA246)","v":3},{"$f":"ROW()","v":246},1]
[null,null,null,null,null,null,null,null,null,null,null,null,null,null,null,null,null,null,null,null,null,null,null,null,null,null,3,"Tipo Entidad",3,"Centro empresarial",null,null,null,null,null,null,null,null,null,null,null,null,null,null,null,null,null,null,null,null,null,null,"COL0110436","Química de coordinación y catálisis ambiental.",{"$f":"COUNTIF(BA$4:BA247,BA247)","v":4},{"$f":"ROW()","v":247},1]
[null,null,null,null,null,null,null,null,null,null,null,null,null,null,null,null,null,null,null,null,null,null,null,null,null,null,4,"Tipo Entidad",4,"Empresa",null,null,null,null,null,null,null,null,null,null,null,null,null,null,null,null,null,null,null,null,null,null,"COL0117722","Estudios disciplinares en contabilidad auditoria, contabilidad de gestión y tributación.",{"$f":"COUNTIF(BA$4:BA248,BA248)","v":1},{"$f":"ROW()","v":248},1]
[null,null,null,null,null,null,null,null,null,null,null,null,null,null,null,null,null,null,null,null,null,null,null,null,null,null,5,"Tipo Entidad",5,"Instituto Público",null,null,null,null,null,null,null,null,null,null,null,null,null,null,null,null,null,null,null,null,null,null,"COL0117722","Estudios en educación en ciencias económicas",{"$f":"COUNTIF(BA$4:BA249,BA249)","v":2},{"$f":"ROW()","v":249},1]
[null,null,null,null,null,null,null,null,null,null,null,null,null,null,null,null,null,null,null,null,null,null,null,null,null,null,6,"Tipo Entidad",6,"Sector Defensa",null,null,null,null,null,null,null,null,null,null,null,null,null,null,null,null,null,null,null,null,null,null,"COL0117722","Ética, transparencia y control social",{"$f":"COUNTIF(BA$4:BA250,BA250)","v":3},{"$f":"ROW()","v":250},1]
[null,null,null,null,null,null,null,null,null,null,null,null,null,null,null,null,null,null,null,null,null,null,null,null,null,null,7,"Tipo Entidad",7,"Salud Publica",null,null,"Mod-1. Transferencia - TRL mayor o igual a 7",null,null,null,null,null,null,null,null,null,null,null,null,null,null,null,null,null,null,null,"COL0196753","Gerencia de proyectos en Ingeniería",{"$f":"COUNTIF(BA$4:BA251,BA251)","v":1},{"$f":"ROW()","v":251},1]
[null,null,null,null,null,null,null,null,null,null,null,null,null,null,null,null,null,null,null,null,null,null,null,null,null,null,1,"Modalidad",{"$f":"LEFT(AB252,3)&\"-\"&AA252","v":"Mod-1"},"Modalidad 1. Oportunidades de Transferencia y prototipado para productos - TRL menor o igual a 3",20,null,"Mod-2. Transferencia - TRL menor a 3",null,null,null,null,null,null,null,null,null,null,null,null,null,null,null,null,null,null,null,"COL0196753","Gestión de organizaciones y creación de valor",{"$f":"COUNTIF(BA$4:BA252,BA252)","v":2},{"$f":"ROW()","v":252},1]
[null,null,null,null,null,null,null,null,null,null,null,null,null,null,null,null,null,null,null,null,null,null,null,null,null,null,2,"Modalidad",{"$f":"LEFT(AB253,3)&\"-\"&AA253","v":"Mod-2"},"Modalidad 2. Oportunidades de Transferencia y prototipado de productos TRL 4 a TRL 6",50,null,"Mod-3. Productos susceptibles de ser patentados o protegidos",null,null,null,null,null,null,null,null,null,null,null,null,null,null,null,null,null,null,null,"COL0196753","Logística en empresas y cadena de suministro",{"$f":"COUNTIF(BA$4:BA253,BA253)","v":3},{"$f":"ROW()","v":253},1]
[null,null,null,null,null,null,null,null,null,null,null,null,null,null,null,null,null,null,null,null,null,null,null,null,null,null,3,"Modalidad",{"$f":"LEFT(AB254,3)&\"-\"&AA254","v":"Mod-3"},"Modalidad 3. Productos patentados o en proceso de patente - TRL mayor o igual a 7",20,null,"Mod-4. para productos o servicios no patentables",null,null,null,null,null,null,null,null,null,null,null,null,null,null,null,null,null,null,null,"COL0196753","Procesos empresariales sustentables",{"$f":"COUNTIF(BA$4:BA254,BA254)","v":4},{"$f":"ROW()","v":254},1]
[null,null,null,null,null,null,null,null,null,null,null,null,null,null,null,null,null,null,null,null,null,null,null,null,null,null,4,"Modalidad",{"$f":"LEFT(AB255,3)&\"-\"&AA255","v":"Mod-4"},"Modalidad 4. Oportunidades de Transferencia para productos o servicios no patentables",20,null,null,null,null,null,null,null,null,null,null,null,null,null,null,null,null,null,null,null,null,null,"COL0196753","Producción y mejoramiento de procesos",{"$f":"COUNTIF(BA$4:BA255,BA255)","v":5},{"$f":"ROW()","v":255},1]
[null,null,null,null,null,null,null,null,null,null,null,null,null,null,null,null,null,null,null,null,null,null,null,null,null,null,1,"Tiempos Est","1 a 3 Meses","1 a 3 Meses",null,null,null,null,null,null,null,null,null,null,null,null,null,null,null,null,null,null,null,null,null,null,"COL0028687","Fitoplasmas",{"$f":"COUNTIF(BA$4:BA256,BA256)","v":1},{"$f":"ROW()","v":256},1]
[null,null,null,null,null,null,null,null,null,null,null,null,null,null,null,null,null,null,null,null,null,null,null,null,null,null,2,"Tiempos Est","4 a 6 Meses","4 a 6 Meses",null,null,null,null,null,null,null,null,null,null,null,null,null,null,null,null,null,null,null,null,null,null,"COL0028687","Virus",{"$f":"COUNTIF(BA$4:BA257,BA257)","v":2},{"$f":"ROW()","v":257},1]
[null,null,null,null,null,null,null,null,null,null,null,null,null,null,null,null,null,null,null,null,null,null,null,null,null,null,3,"Tiempos Est","7 a 9 Meses","7 a 9 Meses",null,null,null,null,null,null,null,null,null,null,null,null,null,null,null,null,null,null,null,null,null,null,"COL0031824","Bioética Global y Complejidad",{"$f":"COUNTIF(BA$4:BA258,BA258)","v":1},{"$f":"ROW()","v":258},1]
[null,null,null,null,null,null,null,null,null,null,null,null,null,null,null,null,null,null,null,null,null,null,null,null,null,null,4,"Tiempos Est","10 a 12 Meses","10 a 12 Meses",null,null,null,null,null,null,null,null,null,null,null,null,null,null,null,null,null,null,null,null,null,null,"COL0031824","Bioética Médica y salud pública",{"$f":"COUNTIF(BA$4:BA259,BA259)","v":2},{"$f":"ROW()","v":259},1]
[null,null,null,null,null,null,null,null,null,null,null,null,null,null,null,null,null,null,null,null,null,null,null,null,null,null,5,"Tiempos Est",null,null,null,null,null,null,null,null,null,null,null,null,null,null,null,null,null,null,null,null,null,null,null,null,"COL0031824","Bioética, Biopolítica y Biojurídica",{"$f":"COUNTIF(BA$4:BA260,BA260)","v":3},{"$f":"ROW()","v":260},1]
[null,null,null,null,null,null,null,null,null,null,null,null,null,null,null,null,null,null,null,null,null,null,null,null,null,null,1,"Valor estimado tecnología","Hasta 30 millones","Menos de 30.000.000",null,null,null,null,null,null,null,null,null,null,null,null,null,null,null,null,null,null,null,null,null,null,"COL0031824","Bioética, educación y cultura",{"$f":"COUNTIF(BA$4:BA261,BA261)","v":4},{"$f":"ROW()","v":261},{"$f":"COUNTIF($AQ$3:$AQ$87,BA261)","v":1}]
[null,null,null,null,null,null,null,null,null,null,null,null,null,null,null,null,null,null,null,null,null,null,null,null,null,null,2,"Valor estimado tecnología","Hasta 150 millones","Menos de 150.000.000",null,null,null,null,null,null,null,null,null,null,null,null,null,null,null,null,null,null,null,null,null,null,"COL0028767","Estrategia y control de gestión",{"$f":"COUNTIF(BA$4:BA262,BA262)","v":1},{"$f":"ROW()","v":262},1]
[null,null,null,null,null,null,null,null,null,null,null,null,null,null,null,null,null,null,null,null,null,null,null,null,null,null,3,"Valor estimado tecnología","Hasta 300 millones","Menos de 300.000.000",null,null,null,null,null,null,null,null,null,null,null,null,null,null,null,null,null,null,null,null,null,null,"COL0028767","Estudios Organizacionales (EO) y responsabilidad social (RS)",{"$f":"COUNTIF(BA$4:BA263,BA263)","v":2},{"$f":"ROW()","v":263},1]
[null,null,null,null,null,null,null,null,null,null,null,null,null,null,null,null,null,null,null,null,null,null,null,null,null,null,4,"Valor estimado tecnología","Desde 300 millones","Más de 300.000.000",null,null,null,null,null,null,null,null,null,null,null,null,null,null,null,null,null,null,null,null,null,null,"COL0028767","Estudios en Ciencia, Tecnología, Innovación y Emprendimiento (desde la gestión, economía y política pública)",{"$f":"COUNTIF(BA$4:BA264,BA264)","v":3},{"$f":"ROW()","v":264},1]
[null,null,null,null,null,null,null,null,null,null,null,null,null,null,null,null,null,null,null,null,null,null,null,null,null,null,1,"Resultado esperado",null,"Elaboración de prototipo",null,null,null,null,null,null,null,null,null,null,null,null,null,null,null,null,null,null,null,null,null,null,"COL0047566","EDUCACIÓN EN INGENIERÍA",{"$f":"COUNTIF(BA$4:BA265,BA265)","v":1},{"$f":"ROW()","v":265},1]
[null,null,null,null,null,null,null,null,null,null,null,null,null,null,null,null,null,null,null,null,null,null,null,null,null,null,2,"Resultado esperado",null,"Definición de estrategia de protección",null,null,null,null,null,null,null,null,null,null,null,null,null,null,null,null,null,null,null,null,null,null,"COL0047566","GEOMATICA",{"$f":"COUNTIF(BA$4:BA266,BA266)","v":2},{"$f":"ROW()","v":266},{"$f":"COUNTIF($AQ$3:$AQ$87,BA266)","v":1}]
[null,null,null,null,null,null,null,null,null,null,null,null,null,null,null,null,null,null,null,null,null,null,null,null,null,null,3,"Resultado esperado",null,"Ficha de divulgación comercial de la tecnología",null,null,null,null,null,null,null,null,null,null,null,null,null,null,null,null,null,null,null,null,null,null,"COL0047566","GERENCIA DE PROYECTOS",{"$f":"COUNTIF(BA$4:BA267,BA267)","v":3},{"$f":"ROW()","v":267},1]
[null,null,null,null,null,null,null,null,null,null,null,null,null,null,null,null,null,null,null,null,null,null,null,null,null,null,4,"Resultado esperado",null,"Estudio de mercado, que incluya validación técnica y comercial",null,null,null,null,null,null,null,null,null,null,null,null,null,null,null,null,null,null,null,null,null,null,"COL0047566","HIDROLOGÍA",{"$f":"COUNTIF(BA$4:BA268,BA268)","v":4},{"$f":"ROW()","v":268},1]
[null,null,null,null,null,null,null,null,null,null,null,null,null,null,null,null,null,null,null,null,null,null,null,null,null,null,5,"Resultado esperado",null,"Estrategia de propiedad intelectual ",null,null,null,null,null,null,null,null,null,null,null,null,null,null,null,null,null,null,null,null,null,null,"COL0047566","Micro y Nanoestructuras",{"$f":"COUNTIF(BA$4:BA269,BA269)","v":5},{"$f":"ROW()","v":269},1]
[null,null,null,null,null,null,null,null,null,null,null,null,null,null,null,null,null,null,null,null,null,null,null,null,null,null,6,"Resultado esperado",null,"Estrategia de negocio y valoración económica",null,null,null,null,null,null,null,null,null,null,null,null,null,null,null,null,null,null,null,null,null,null,"COL0047566","PROCESOS ESTOCÁSTICOS",{"$f":"COUNTIF(BA$4:BA270,BA270)","v":6},{"$f":"ROW()","v":270},1]
[null,null,null,null,null,null,null,null,null,null,null,null,null,null,null,null,null,null,null,null,null,null,null,null,null,null,7,"Resultado esperado",null,"Estrategia de transferencia - Hoja de ruta para la transferencia ",null,null,null,null,null,null,null,null,null,null,null,null,null,null,null,null,null,null,null,null,null,null,"COL0047566","PRODUCTIVIDAD E IMPACTO AMBIENTAL EN PROYECTOS DE INGENIERIA CIVIL (CONSTRUCCIÓN SOSTENIBLE)",{"$f":"COUNTIF(BA$4:BA271,BA271)","v":7},{"$f":"ROW()","v":271},1]
[null,null,null,null,null,null,null,null,null,null,null,null,null,null,null,null,null,null,null,null,null,null,null,null,null,null,8,"Resultado esperado",null,"Acercamiento y negociación con clientes potenciales (contacto y acompañamiento inicial)",null,null,null,null,null,null,null,null,null,null,null,null,null,null,null,null,null,null,null,null,null,null,"COL0151789","Diseño de Producto",{"$f":"COUNTIF(BA$4:BA272,BA272)","v":1},{"$f":"ROW()","v":272},1]
[null,null,null,null,null,null,null,null,null,null,null,null,null,null,null,null,null,null,null,null,null,null,null,null,null,null,null,null,null,null,null,null,null,null,null,null,null,null,null,null,null,null,null,null,null,null,null,null,null,null,null,null,"COL0151789","Ergonomía y Tecnología Biomédica",{"$f":"COUNTIF(BA$4:BA273,BA273)","v":2},{"$f":"ROW()","v":273},1]
[null,null,null,null,null,null,null,null,null,null,null,null,null,null,null,null,null,null,null,null,null,null,null,null,null,null,1,"Rubros habitados",null,"Personal",null,null,null,null,null,null,null,null,null,null,null,null,null,null,null,null,null,null,null,null,null,null,"COL0151789","Gestión de Procesos de Planeación y de Construcción.",{"$f":"COUNTIF(BA$4:BA274,BA274)","v":3},{"$f":"ROW()","v":274},1]
[null,null,null,null,null,null,null,null,null,null,null,null,null,null,null,null,null,null,null,null,null,null,null,null,null,null,2,"Rubros habitados",null,"Materiales",null,null,null,null,null,null,null,null,null,null,null,null,null,null,null,null,null,null,null,null,null,null,"COL0151789","Gestión de Procesos, Proyectos, Seguridad y Medio Ambiente",{"$f":"COUNTIF(BA$4:BA275,BA275)","v":4},{"$f":"ROW()","v":275},1]
[null,null,null,null,null,null,null,null,null,null,null,null,null,null,null,null,null,null,null,null,null,null,null,null,null,null,4,"Rubros habitados",null,"Estímulo a estudiantes Pregrado",null,null,null,null,null,null,null,null,null,null,null,null,null,null,null,null,null,null,null,null,null,null,"COL0151789","Procesos y Contaminación Ambiental",{"$f":"COUNTIF(BA$4:BA276,BA276)","v":5},{"$f":"ROW()","v":276},1]
[null,null,null,null,null,null,null,null,null,null,null,null,null,null,null,null,null,null,null,null,null,null,null,null,null,null,5,"Rubros habitados",null,"Estímulo a estudiantes Posgrado",null,null,null,null,null,null,null,null,null,null,null,null,null,null,null,null,null,null,null,null,null,null,"COL0151789","Sistemas Información e Interacción",{"$f":"COUNTIF(BA$4:BA277,BA277)","v":6},{"$f":"ROW()","v":277},1]
[null,null,null,null,null,null,null,null,null,null,null,null,null,null,null,null,null,null,null,null,null,null,null,null,null,null,6,"Rubros habitados",null,"Equipos",null,null,null,null,null,null,null,null,null,null,null,null,null,null,null,null,null,null,null,null,null,null,"COL0039321","Análisis de Matrices",{"$f":"COUNTIF(BA$4:BA278,BA278)","v":1},{"$f":"ROW()","v":278},1]
[null,null,null,null,null,null,null,null,null,null,null,null,null,null,null,null,null,null,null,null,null,null,null,null,null,null,7,"Rubros habitados",null,"Equipos en proceso",null,null,null,null,null,null,null,null,null,null,null,null,null,null,null,null,null,null,null,null,null,null,"COL0039321","Filosofía de la Ciencia: Filosofía de la Física",{"$f":"COUNTIF(BA$4:BA279,BA279)","v":2},{"$f":"ROW()","v":279},1]
[null,null,null,null,null,null,null,null,null,null,null,null,null,null,null,null,null,null,null,null,null,null,null,null,null,null,8,"Rubros habitados",null,"Servicios Técnicos",null,null,null,null,null,null,null,null,null,null,null,null,null,null,null,null,null,null,null,null,null,null,"COL0039321","LEYES DE CONSERVACION HIPERBOLICA",{"$f":"COUNTIF(BA$4:BA280,BA280)","v":3},{"$f":"ROW()","v":280},1]
[null,null,null,null,null,null,null,null,null,null,null,null,null,null,null,null,null,null,null,null,null,null,null,null,null,null,1,"Datos de impactos",null,"Político",null,null,null,null,null,null,null,null,null,null,null,null,null,null,null,null,null,null,null,null,null,null,"COL0039321","Matemáticas aplicadas",{"$f":"COUNTIF(BA$4:BA281,BA281)","v":4},{"$f":"ROW()","v":281},1]
[null,null,null,null,null,null,null,null,null,null,null,null,null,null,null,null,null,null,null,null,null,null,null,null,null,null,2,"Datos de impactos",null,"Salud",null,null,null,null,null,null,null,null,null,null,null,null,null,null,null,null,null,null,null,null,null,null,"COL0039321","Solución numérica de ecuaciones diferenciales parciales",{"$f":"COUNTIF(BA$4:BA282,BA282)","v":5},{"$f":"ROW()","v":282},1]
[null,null,null,null,null,null,null,null,null,null,null,null,null,null,null,null,null,null,null,null,null,null,null,null,null,null,3,"Datos de impactos",null,"Tecnológico",null,null,null,null,null,null,null,null,null,null,null,null,null,null,null,null,null,null,null,null,null,null,"COL0152472","Autoinmunidad y Artritis Reumatoide",{"$f":"COUNTIF(BA$4:BA283,BA283)","v":1},{"$f":"ROW()","v":283},1]
[null,null,null,null,null,null,null,null,null,null,null,null,null,null,null,null,null,null,null,null,null,null,null,null,null,null,4,"Datos de impactos",null,"Económico",null,null,null,null,null,null,null,null,null,null,null,null,null,null,null,null,null,null,null,null,null,null,"COL0152472","Espondiloartritis Axial y Artritis Psoriásica",{"$f":"COUNTIF(BA$4:BA284,BA284)","v":2},{"$f":"ROW()","v":284},1]
[null,null,null,null,null,null,null,null,null,null,null,null,null,null,null,null,null,null,null,null,null,null,null,null,null,null,5,"Datos de impactos",null,"Legal",null,null,null,null,null,null,null,null,null,null,null,null,null,null,null,null,null,null,null,null,null,null,"COL0169362","Aprendizaje Automático",{"$f":"COUNTIF(BA$4:BA285,BA285)","v":1},{"$f":"ROW()","v":285},1]
[null,null,null,null,null,null,null,null,null,null,null,null,null,null,null,null,null,null,null,null,null,null,null,null,null,null,6,"Datos de impactos",null,"Cultural",null,null,null,null,null,null,null,null,null,null,null,null,null,null,null,null,null,null,null,null,null,null,"COL0169362","Herramientas computacionales para el análisis de datos",{"$f":"COUNTIF(BA$4:BA286,BA286)","v":2},{"$f":"ROW()","v":286},1]
[null,null,null,null,null,null,null,null,null,null,null,null,null,null,null,null,null,null,null,null,null,null,null,null,null,null,7,"Datos de impactos",null,"Social ",null,null,null,null,null,null,null,null,null,null,null,null,null,null,null,null,null,null,null,null,null,null,"COL0169362","Inteligencia Computacional",{"$f":"COUNTIF(BA$4:BA287,BA287)","v":3},{"$f":"ROW()","v":287},1]
[null,null,null,null,null,null,null,null,null,null,null,null,null,null,null,null,null,null,null,null,null,null,null,null,null,null,8,"Datos de impactos",null,"Ambiental",null,null,null,null,null,null,null,null,null,null,null,null,null,null,null,null,null,null,null,null,null,null,"COL0169362","Optimización",{"$f":"COUNTIF(BA$4:BA288,BA288)","v":4},{"$f":"ROW()","v":288},1]
[null,null,null,null,null,null,null,null,null,null,null,null,null,null,null,null,null,null,null,null,null,null,null,null,null,null,1,"TLR","Evaluación de nivel de maduración tecnológica actual (TRL)",{"$f":"TEXT(AA289,\"00 \")&AE289","v":"01 Observación de los principios básicos "},"Observación de los principios básicos ",null,null,null,null,null,null,null,null,null,null,null,null,null,null,null,null,null,null,null,null,null,"COL0066229","(EO) Estructuras Organizacionales",{"$f":"COUNTIF(BA$4:BA289,BA289)","v":1},{"$f":"ROW()","v":289},1]
[null,null,null,null,null,null,null,null,null,null,null,null,null,null,null,null,null,null,null,null,null,null,null,null,null,null,2,"TLR","Evaluación de nivel de maduración tecnológica actual (TRL)",{"$f":"TEXT(AA290,\"00 \")&AE290","v":"02 Formulación del concepto tecnológico"},"Formulación del concepto tecnológico",null,null,null,null,null,null,null,null,null,null,null,null,null,null,null,null,null,null,null,null,null,"COL0066229","(PI) Procesos de Integración",{"$f":"COUNTIF(BA$4:BA290,BA290)","v":2},{"$f":"ROW()","v":290},1]
[null,null,null,null,null,null,null,null,null,null,null,null,null,null,null,null,null,null,null,null,null,null,null,null,null,null,3,"TLR","Evaluación de nivel de maduración tecnológica actual (TRL)","03 Prueba experimental del concepto","Prueba experimental del concepto",null,null,null,null,null,null,null,null,null,null,null,null,null,null,null,null,null,null,null,null,null,"COL0066229","(R) Regionalización",{"$f":"COUNTIF(BA$4:BA291,BA291)","v":3},{"$f":"ROW()","v":291},1]
[null,null,null,null,null,null,null,null,null,null,null,null,null,null,null,null,null,null,null,null,null,null,null,null,null,null,4,"TLR","Evaluación de nivel de maduración tecnológica actual (TRL)","04 Validación de la tecnología en el laboratorio","Validación de la tecnología en el laboratorio",null,null,null,null,null,null,null,null,null,null,null,null,null,null,null,null,null,null,null,null,null,"COL0116538","Andrología y Salud sexual",{"$f":"COUNTIF(BA$4:BA292,BA292)","v":1},{"$f":"ROW()","v":292},1]
[null,null,null,null,null,null,null,null,null,null,null,null,null,null,null,null,null,null,null,null,null,null,null,null,null,null,5,"TLR","Evaluación de nivel de maduración tecnológica actual (TRL)","05 Validación de tecnología en el entorno pertinente","Validación de tecnología en el entorno pertinente",null,null,null,null,null,null,null,null,null,null,null,null,null,null,null,null,null,null,null,null,null,"COL0116538","Hiperplasia Prostática",{"$f":"COUNTIF(BA$4:BA293,BA293)","v":2},{"$f":"ROW()","v":293},1]
[null,null,null,null,null,null,null,null,null,null,null,null,null,null,null,null,null,null,null,null,null,null,null,null,null,null,6,"TLR","Evaluación de nivel de maduración tecnológica actual (TRL)","06 Demostración en el entorno pertinente","Demostración en el entorno pertinente",null,null,null,null,null,null,null,null,null,null,null,null,null,null,null,null,null,null,null,null,null,"COL0116538","Incontinencia Urinaria",{"$f":"COUNTIF(BA$4:BA294,BA294)","v":3},{"$f":"ROW()","v":294},1]
[null,null,null,null,null,null,null,null,null,null,null,null,null,null,null,null,null,null,null,null,null,null,null,null,null,null,7,"TLR","Evaluación de nivel de maduración tecnológica actual (TRL)","07 Demostración en el entorno operativo","Demostración en el entorno operativo",null,null,null,null,null,null,null,null,null,null,null,null,null,null,null,null,null,null,null,null,null,"COL0116538","Litiasis y endourologia",{"$f":"COUNTIF(BA$4:BA295,BA295)","v":4},{"$f":"ROW()","v":295},1]
[null,null,null,null,null,null,null,null,null,null,null,null,null,null,null,null,null,null,null,null,null,null,null,null,null,null,8,"TLR","Evaluación de nivel de maduración tecnológica actual (TRL)","08 Sistema completo y certificado","Sistema completo y certificado",null,null,null,null,null,null,null,null,null,null,null,null,null,null,null,null,null,null,null,null,null,"COL0116538","Oncología Urológica",{"$f":"COUNTIF(BA$4:BA296,BA296)","v":5},{"$f":"ROW()","v":296},1]
[null,null,null,null,null,null,null,null,null,null,null,null,null,null,null,null,null,null,null,null,null,null,null,null,null,null,9,"TLR","Evaluación de nivel de maduración tecnológica actual (TRL)","09 Despliegue","Despliegue",null,null,null,null,null,null,null,null,null,null,null,null,null,null,null,null,null,null,null,null,null,"COL0116538","Urología Pediátrica",{"$f":"COUNTIF(BA$4:BA297,BA297)","v":6},{"$f":"ROW()","v":297},1]
[null,null,null,null,null,null,null,null,null,null,null,null,null,null,null,null,null,null,null,null,null,null,null,null,null,null,null,null,null,null,null,null,null,null,null,null,null,null,null,null,null,null,null,null,null,null,null,null,null,null,null,null,"COL0196799","Desarrollo y renovación de infraestructura",{"$f":"COUNTIF(BA$4:BA298,BA298)","v":1},{"$f":"ROW()","v":298},1]
[null,null,null,null,null,null,null,null,null,null,null,null,null,null,null,null,null,null,null,null,null,null,null,null,null,null,null,null,null,null,null,null,null,null,null,null,null,null,null,null,null,null,null,null,null,null,null,null,null,null,null,null,"COL0196799","Geomecánica computacional",{"$f":"COUNTIF(BA$4:BA299,BA299)","v":2},{"$f":"ROW()","v":299},1]
[null,null,null,null,null,null,null,null,null,null,null,null,null,null,null,null,null,null,null,null,null,null,null,null,null,null,null,null,null,null,null,null,null,null,null,null,null,null,null,null,null,null,null,null,null,null,null,null,null,null,null,null,"COL0196799","Ingeniería estructural",{"$f":"COUNTIF(BA$4:BA300,BA300)","v":3},{"$f":"ROW()","v":300},1]
[null,null,null,null,null,null,null,null,null,null,null,null,null,null,null,null,null,null,null,null,null,null,null,null,null,null,null,null,null,null,null,null,null,null,null,null,null,null,null,null,null,null,null,null,null,null,null,null,null,null,null,null,"COL0196799","Materiales simples y compuestos",{"$f":"COUNTIF(BA$4:BA301,BA301)","v":4},{"$f":"ROW()","v":301},1]
[null,null,null,null,null,null,null,null,null,null,null,null,null,null,null,null,null,null,null,null,null,null,null,null,null,null,null,null,null,null,null,null,null,null,null,null,null,null,null,null,null,null,null,null,null,null,null,null,null,null,null,null,"COL0032278","Biología y Ecología de plagas y enemigos naturales de cultivos de importancia económica",{"$f":"COUNTIF(BA$4:BA302,BA302)","v":1},{"$f":"ROW()","v":302},1]
[null,null,null,null,null,null,null,null,null,null,null,null,null,null,null,null,null,null,null,null,null,null,null,null,null,null,null,null,null,null,null,null,null,null,null,null,null,null,null,null,null,null,null,null,null,null,null,null,null,null,null,null,"COL0032278","Ecología Química y Redes Tróficas",{"$f":"COUNTIF(BA$4:BA303,BA303)","v":2},{"$f":"ROW()","v":303},1]
[null,null,null,null,null,null,null,null,null,null,null,null,null,null,null,null,null,null,null,null,null,null,null,null,null,null,null,null,null,null,null,null,null,null,null,null,null,null,null,null,null,null,null,null,null,null,null,null,null,null,null,null,"COL0032278","Generación de recomendaciones para el manejo integrado de plagas, mediante el diseño de modelos de simulación de agroecosistemas",{"$f":"COUNTIF(BA$4:BA304,BA304)","v":3},{"$f":"ROW()","v":304},1]
[null,null,null,null,null,null,null,null,null,null,null,null,null,null,null,null,null,null,null,null,null,null,null,null,null,null,null,null,null,null,null,null,null,null,null,null,null,null,null,null,null,null,null,null,null,null,null,null,null,null,null,null,"COL0049659","Actividad física, promoción de la salud y prevención de la enfermedad.",{"$f":"COUNTIF(BA$4:BA305,BA305)","v":1},{"$f":"ROW()","v":305},1]
[null,null,null,null,null,null,null,null,null,null,null,null,null,null,null,null,null,null,null,null,null,null,null,null,null,null,null,null,null,null,null,null,null,null,null,null,null,null,null,null,null,null,null,null,null,null,null,null,null,null,null,null,"COL0049659","Medios de comunicación, educación y salud",{"$f":"COUNTIF(BA$4:BA306,BA306)","v":2},{"$f":"ROW()","v":306},1]
[null,null,null,null,null,null,null,null,null,null,null,null,null,null,null,null,null,null,null,null,null,null,null,null,null,null,null,null,null,null,null,null,null,null,null,null,null,null,null,null,null,null,null,null,null,null,null,null,null,null,null,null,"COL0049659","Salud Pública y Nutrición, Prevención de la Enfermedad y Promoción de la Salud",{"$f":"COUNTIF(BA$4:BA307,BA307)","v":3},{"$f":"ROW()","v":307},1]
[null,null,null,null,null,null,null,null,null,null,null,null,null,null,null,null,null,null,null,null,null,null,null,null,null,null,null,null,null,null,null,null,null,null,null,null,null,null,null,null,null,null,null,null,null,null,null,null,null,null,null,null,"COL0149359","GESTION DE LA EDUCACION Y LA ACADEMIA",{"$f":"COUNTIF(BA$4:BA308,BA308)","v":1},{"$f":"ROW()","v":308},1]
[null,null,null,null,null,null,null,null,null,null,null,null,null,null,null,null,null,null,null,null,null,null,null,null,null,null,null,null,null,null,null,null,null,null,null,null,null,null,null,null,null,null,null,null,null,null,null,null,null,null,null,null,"COL0149359","GESTION DE LA SALUD PUBLICA",{"$f":"COUNTIF(BA$4:BA309,BA309)","v":2},{"$f":"ROW()","v":309},1]
[null,null,null,null,null,null,null,null,null,null,null,null,null,null,null,null,null,null,null,null,null,null,null,null,null,null,null,null,null,null,null,null,null,null,null,null,null,null,null,null,null,null,null,null,null,null,null,null,null,null,null,null,"COL0149359","GESTIÓN DE LA ÉTICA Y EL CONOCIMIENTO",{"$f":"COUNTIF(BA$4:BA310,BA310)","v":3},{"$f":"ROW()","v":310},{"$f":"COUNTIF($AQ$3:$AQ$89,BA310)","v":1}]
[null,null,null,null,null,null,null,null,null,null,null,null,null,null,null,null,null,null,null,null,null,null,null,null,null,null,null,null,null,null,null,null,null,null,null,null,null,null,null,null,null,null,null,null,null,null,null,null,null,null,null,null,"COL0096032","Bioética, Bioderecho, Biomedicina y Biotecnología",{"$f":"COUNTIF(BA$4:BA311,BA311)","v":1},{"$f":"ROW()","v":311},1]
[null,null,null,null,null,null,null,null,null,null,null,null,null,null,null,null,null,null,null,null,null,null,null,null,null,null,null,null,null,null,null,null,null,null,null,null,null,null,null,null,null,null,null,null,null,null,null,null,null,null,null,null,"COL0096032","Células Madre & Medicina Regenerativa",{"$f":"COUNTIF(BA$4:BA312,BA312)","v":2},{"$f":"ROW()","v":312},1]
[null,null,null,null,null,null,null,null,null,null,null,null,null,null,null,null,null,null,null,null,null,null,null,null,null,null,null,null,null,null,null,null,null,null,null,null,null,null,null,null,null,null,null,null,null,null,null,null,null,null,null,null,"COL0096032","Genética Humana",{"$f":"COUNTIF(BA$4:BA313,BA313)","v":3},{"$f":"ROW()","v":313},1]
[null,null,null,null,null,null,null,null,null,null,null,null,null,null,null,null,null,null,null,null,null,null,null,null,null,null,null,null,null,null,null,null,null,null,null,null,null,null,null,null,null,null,null,null,null,null,null,null,null,null,null,null,"COL0138796","Docencia y Didáctica de la Física Universitaria",{"$f":"COUNTIF(BA$4:BA314,BA314)","v":1},{"$f":"ROW()","v":314},1]
[null,null,null,null,null,null,null,null,null,null,null,null,null,null,null,null,null,null,null,null,null,null,null,null,null,null,null,null,null,null,null,null,null,null,null,null,null,null,null,null,null,null,null,null,null,null,null,null,null,null,null,null,"COL0138796","Física Computacional",{"$f":"COUNTIF(BA$4:BA315,BA315)","v":2},{"$f":"ROW()","v":315},1]
[null,null,null,null,null,null,null,null,null,null,null,null,null,null,null,null,null,null,null,null,null,null,null,null,null,null,null,null,null,null,null,null,null,null,null,null,null,null,null,null,null,null,null,null,null,null,null,null,null,null,null,null,"COL0138796","Magnetismo y Aplicaciones",{"$f":"COUNTIF(BA$4:BA316,BA316)","v":3},{"$f":"ROW()","v":316},1]
[null,null,null,null,null,null,null,null,null,null,null,null,null,null,null,null,null,null,null,null,null,null,null,null,null,null,null,null,null,null,null,null,null,null,null,null,null,null,null,null,null,null,null,null,null,null,null,null,null,null,null,null,"COL0138796","Nanotecnología y Sensórica",{"$f":"COUNTIF(BA$4:BA317,BA317)","v":4},{"$f":"ROW()","v":317},1]
[null,null,null,null,null,null,null,null,null,null,null,null,null,null,null,null,null,null,null,null,null,null,null,null,null,null,null,null,null,null,null,null,null,null,null,null,null,null,null,null,null,null,null,null,null,null,null,null,null,null,null,null,"COL0138796","Uso de radiación ionizante para la producción de imágenes médicas",{"$f":"COUNTIF(BA$4:BA318,BA318)","v":5},{"$f":"ROW()","v":318},1]
[null,null,null,null,null,null,null,null,null,null,null,null,null,null,null,null,null,null,null,null,null,null,null,null,null,null,null,null,null,null,null,null,null,null,null,null,null,null,null,null,null,null,null,null,null,null,null,null,null,null,null,null,"COL0126777","Animación 2D y 3D",{"$f":"COUNTIF(BA$4:BA319,BA319)","v":1},{"$f":"ROW()","v":319},1]
[null,null,null,null,null,null,null,null,null,null,null,null,null,null,null,null,null,null,null,null,null,null,null,null,null,null,null,null,null,null,null,null,null,null,null,null,null,null,null,null,null,null,null,null,null,null,null,null,null,null,null,null,"COL0126777","Audio y video",{"$f":"COUNTIF(BA$4:BA320,BA320)","v":2},{"$f":"ROW()","v":320},1]
[null,null,null,null,null,null,null,null,null,null,null,null,null,null,null,null,null,null,null,null,null,null,null,null,null,null,null,null,null,null,null,null,null,null,null,null,null,null,null,null,null,null,null,null,null,null,null,null,null,null,null,null,"COL0126777","Desarrollo Multimedia",{"$f":"COUNTIF(BA$4:BA321,BA321)","v":3},{"$f":"ROW()","v":321},1]
[null,null,null,null,null,null,null,null,null,null,null,null,null,null,null,null,null,null,null,null,null,null,null,null,null,null,null,null,null,null,null,null,null,null,null,null,null,null,null,null,null,null,null,null,null,null,null,null,null,null,null,null,"COL0126777","Museografía y Museología",{"$f":"COUNTIF(BA$4:BA322,BA322)","v":4},{"$f":"ROW()","v":322},1]
[null,null,null,null,null,null,null,null,null,null,null,null,null,null,null,null,null,null,null,null,null,null,null,null,null,null,null,null,null,null,null,null,null,null,null,null,null,null,null,null,null,null,null,null,null,null,null,null,null,null,null,null,"COL0126777","Narrativas digitales",{"$f":"COUNTIF(BA$4:BA323,BA323)","v":5},{"$f":"ROW()","v":323},1]
[null,null,null,null,null,null,null,null,null,null,null,null,null,null,null,null,null,null,null,null,null,null,null,null,null,null,null,null,null,null,null,null,null,null,null,null,null,null,null,null,null,null,null,null,null,null,null,null,null,null,null,null,"COL0126777","Patrimonio",{"$f":"COUNTIF(BA$4:BA324,BA324)","v":6},{"$f":"ROW()","v":324},1]
[null,null,null,null,null,null,null,null,null,null,null,null,null,null,null,null,null,null,null,null,null,null,null,null,null,null,null,null,null,null,null,null,null,null,null,null,null,null,null,null,null,null,null,null,null,null,null,null,null,null,null,null,"COL0033239","Prevención de la enfermedad y promoción de la salud",{"$f":"COUNTIF(BA$4:BA325,BA325)","v":1},{"$f":"ROW()","v":325},1]
[null,null,null,null,null,null,null,null,null,null,null,null,null,null,null,null,null,null,null,null,null,null,null,null,null,null,null,null,null,null,null,null,null,null,null,null,null,null,null,null,null,null,null,null,null,null,null,null,null,null,null,null,"COL0033239","Salud Mental y Calidad de Vida",{"$f":"COUNTIF(BA$4:BA326,BA326)","v":2},{"$f":"ROW()","v":326},1]
[null,null,null,null,null,null,null,null,null,null,null,null,null,null,null,null,null,null,null,null,null,null,null,null,null,null,null,null,null,null,null,null,null,null,null,null,null,null,null,null,null,null,null,null,null,null,null,null,null,null,null,null,"COL0033239","Salud Sexual y Reproductiva",{"$f":"COUNTIF(BA$4:BA327,BA327)","v":3},{"$f":"ROW()","v":327},1]
[null,null,null,null,null,null,null,null,null,null,null,null,null,null,null,null,null,null,null,null,null,null,null,null,null,null,null,null,null,null,null,null,null,null,null,null,null,null,null,null,null,null,null,null,null,null,null,null,null,null,null,null,"COL0047762","Desarrollo de modelos de ingeniería de tejido humano",{"$f":"COUNTIF(BA$4:BA328,BA328)","v":1},{"$f":"ROW()","v":328},1]
[null,null,null,null,null,null,null,null,null,null,null,null,null,null,null,null,null,null,null,null,null,null,null,null,null,null,null,null,null,null,null,null,null,null,null,null,null,null,null,null,null,null,null,null,null,null,null,null,null,null,null,null,"COL0047762","Metabolismo Óseo - Bone Metabolismo",{"$f":"COUNTIF(BA$4:BA329,BA329)","v":2},{"$f":"ROW()","v":329},1]
[null,null,null,null,null,null,null,null,null,null,null,null,null,null,null,null,null,null,null,null,null,null,null,null,null,null,null,null,null,null,null,null,null,null,null,null,null,null,null,null,null,null,null,null,null,null,null,null,null,null,null,null,"COL0062704","Procesos Organizacionales (Prospectiva de las Organizaciones), Programáticos y Políticos para la Promoción del Desarrollo.",{"$f":"COUNTIF(BA$4:BA330,BA330)","v":1},{"$f":"ROW()","v":330},{"$f":"COUNTIF($AQ$3:$AQ$89,BA330)","v":1}]
[null,null,null,null,null,null,null,null,null,null,null,null,null,null,null,null,null,null,null,null,null,null,null,null,null,null,null,null,null,null,null,null,null,null,null,null,null,null,null,null,null,null,null,null,null,null,null,null,null,null,null,null,"COL0062704","Prospectiva de las Organizaciones",{"$f":"COUNTIF(BA$4:BA331,BA331)","v":2},{"$f":"ROW()","v":331},1]
[null,null,null,null,null,null,null,null,null,null,null,null,null,null,null,null,null,null,null,null,null,null,null,null,null,null,null,null,null,null,null,null,null,null,null,null,null,null,null,null,null,null,null,null,null,null,null,null,null,null,null,null,"COL0062704","Responsabilidad Ambiental",{"$f":"COUNTIF(BA$4:BA332,BA332)","v":3},{"$f":"ROW()","v":332},1]
[null,null,null,null,null,null,null,null,null,null,null,null,null,null,null,null,null,null,null,null,null,null,null,null,null,null,null,null,null,null,null,null,null,null,null,null,null,null,null,null,null,null,null,null,null,null,null,null,null,null,null,null,"COL0062704","Responsabilidad Social Empresarial",{"$f":"COUNTIF(BA$4:BA333,BA333)","v":4},{"$f":"ROW()","v":333},1]
[null,null,null,null,null,null,null,null,null,null,null,null,null,null,null,null,null,null,null,null,null,null,null,null,null,null,null,null,null,null,null,null,null,null,null,null,null,null,null,null,null,null,null,null,null,null,null,null,null,null,null,null,"COL0077814","Producción Hortícola Limpia",{"$f":"COUNTIF(BA$4:BA334,BA334)","v":1},{"$f":"ROW()","v":334},1]
[]
[]
[]
[]
[]
[]
[]
[]
[]
[]
[]
[]
[]
[]
[]
[]
[]
[]
[]
[]
[]
[]
[]
[]
[]
[]
[]
[]
[]
[]
[]
[]
[]
[]
[]
[]
[]
[]
[]
[]
[]
[]
[]
[]
[]
[]
[]
[]
[]
[]
[]
[]
[]
[]
[]
[]
[]
[]
[]
[]
[]
[]
[]
[]
[]
[]
[]
[]
[]
[]
[]
[]
[]
[]
[]
[]
[]
[]
[]
[]
[]
[]
[]
[]
[]
[]
[]
[]
[]
[]
[]
[]
[]
[]
[]
[]
[]
[]
[]
[]
[]
[]
[]
[]
[]
[]
[]
[]
[]
[]
[]
[]
[]
[]
[]
[]
[]
[]
[]
[]
[]
[]
[]
[]
[]
[]
[]
[]
[]
[]
[]
[]
[]
[]
[]
[]
[]
[]
[]
[]
[]
[]
[]
[]
[]
[]
[]
[]
[]
[]
[]
[]
[]
[]
[]
[]
[]
[]
[]
[]
[]
[]
[]
[]
[]
[]
[]
[]
[]
[]
[]
[]
[]
[]
[]
[]
[]
[]
[]
[]
[]
[]
[]
[]
[]
[]
[]
[]
[]
[]
[]
[]
[]
[]
[]
[]
[]
[]
[]
[]
[]
[]
[]
[]
[]
[]
[]
[]
[]
[]
[]
[]
[]
[]
[]
[]
[]
[]
[]
[]
[]
[]
[]
[]
[]
[]
[]
[]
[]
[]
[]
[]
[]
[]
[]
[]
[]
[]
[]
[]
[]
[]
[]
[]
[]
[]
[]
[]
[]
[]
[]
[]
[]
[]
[]
[]
[]
[]
[]
[]
[]
[]
[]
[]
[]
[]
[]
[]
[]
[]
[]
[]
[]
[]
[]
[]
[]
[]
[]
[]
[]
[]
[]
[]
[]
[]
[]
[]
[]
[]
[]
[]
[]
[]
[]
[]
[]
[]
[]
[]
[]
[]
[]
[]
[]
[]
[]
[]
[]
[]
[]
[]
[]
[]
[]
[]
[]
[]
[]
[]
[]
[]
[]
[]
[]
[]
[]
[]
[]
[]
[]
[]
[]
[]
[]
[]
[]
[]
[]
[]
[]
[]
[]
[]
[]
[]
[]
[]
[]
[]
[]
[]
[]
[]
[]
[]
[]
[]
[]
[]
[]
[]
[]
[]
[]
[]
[]
[]
[]
[]
[]
[]
[]
[]
[]
[]
[]
[]
[]
[]
[]
[]
[]
[]
[]
[]
[]
[]
[]
[]
[]
[]
[]
[]
[]
[]
[]
[]
[]
[]
[]
[]
[]
[]
[]
[]
[]
[]
[]
[]
[]
[]
[]
[]
[]
[]
[]
[]
[]
[]
[]
[]
[]
[]
[]
[]
[]
[]
[]
[]
[]
[]
[]
[]
[]
[]
[]
[]
[]
[]
[]
[]
[]
[]
[]
[]
[]
[]
[]
[]
[]
[]
[]
[]
[]
[]
[]
[]
[]
[]
[]
[]
[]
[]
[]
[]
[]
[]
[]
[]
[]
[]
[]
[]
[]
[]
[]
[]
[]
[]
[]
[]
[]
[]
[]
[]
[]
[]
[]
[]
[]
[]
[]
[]
[]
[]
[]
[]
[]
[]
[]
[]
[]
[]
[]
[]
[]
[]
[]
[]
[]
[]
[]
[]
[]
[]
[]
[]
[]
[]
[]
[]
[]
[]
[]
[]
[]
[]
[]
[]
[]
[]
[]
[]
[]
[]
[]
[]
[]
[]
[]
[]
[]
[]
[]
[]
[]
[]
[]
[]
[]
[]
[]
[]
[]
[]
[]
[]
[]
[]
[]
[]
[]
[]
[]
[]
[]
[]
[]
[]
[]
[]
[]
[]
[]
[]
[]
[]
[]
[]
[]
[]
[]
[]
[]
[]
[]
[]
[]
[]
[]
[]
[]
[]
[]
[]
[]
[]
[]
[]
[]
[]
[]
[]
[]
[]
[]
[]
[]
[]
[]
[]
[]
[]
[]
[]
[]
[]
[]
[]
[]
[]
[]
[]
[]
[]
[]
[]
[]
[]
[]
[]
[]
[]
[]
[]
[]
[]
[]
[]
[]
[]
[]
[]
[]
[]
[]
[]
[]
[]
[]
[]
[]
[]
[]
[]
[]
[]
[]
[]
[]
[]
[]
[]
[]
[]
[]
[]
[]
[]
[]
[]
[]
[]
[]
[]
[]
[]
[]
[]
[]
[]
[]
[]
[]
[]
[]
[]
[]
[]
[]
[]
[]
[]
[]
[]
[]
[]
[]
[]
[]
[]
[]
[]
[]
[]
[]
[]
[]
[]
[]
[]
[]
[]
[]
[]
[]
[]
[]
[]
[]
[]
[]
[]
[]
[]
[]
[]
[]
[]
[]
[]
[]
[]
[]
[]
[]
[]
[]
[]
[]
[]
[]
[]
[]
[]
[]
[]
[]
[]
[]
[]
[]
[]
[]
[]
[]
[]
[]
[]
[]
[]
[]
[]
[]
[]
[]
[]
[]
[]
[]
[]
[]
[]
[]
[]
[]
[]
[]
[]
[]
[]
[]
[]
[]
[]
[]
[]
[]
[]
[]
[]
[]
[]
[]
[]
[]
[]
[]
[]
[]
[]
[]
[]
[]
[]
[]
[]
[]
[]
[]
[]
[]
[]
[]
[]
[]
[]
[]
[]
[]
[]
[]
[]
[]
[]
[]
[]
[]
[]
[]
[]
[]
[]
[]
[]
[]
[]
[]
[]
[]
[]
[]
[]
[]
[]
[]
[]
[]
[]
[]
[]
[]
[]
[]
[]
[]
[]
[]
[]
[]
[]
[]
[]
[]
[]
[]
[]
[]
[]
[]
[]
[]
[]
[]
[]
[]
[]
[]
[]
[]
[]
[]
[]
[]
[]
[]
[]
[]
[]
[]
[]
[]
[]
[]
[]
[]
[]
[]
[]
[]
[]
[]
[]
[]
[]
[]
[]
[]
[]
[]
[]
[]
[]
[]
[]
[]
[]
[]
[]
[]
[]
[]
[]
[]
[]
[]
[]
[]
[]
[]
[]
[]
[]
[]
[]
[]
[]
[]
[]
[]
[]
[]
[]
[]
[]
[]
[]
[]
[]
[]
[]
[]
[]
[]
[]
[]
[]
[]
[]
[]
[]
[]
[]
[]
[]
[]
[]
[]
[]
[]
[]
[]
[]
[]
[]
[]
[]
[]
[]
[]
[]
[]
[]
[]
[]
[]
[]
[]
[]
[]
[]
[]
[]
[]
[]
[]
[]
[]
[]
[]
[]
[]
[]
[]
[]
[]
[]
[]
[]
[]
[]
[]
[]
[]
[]
[]
[]
[]
[]
[]
[]
[]
[]
[]
[]
[]
[]
[]
[]
[]
[]
[]
[]
[]
[]
[]
[]
[]
[]
[]
[]
[]
[]
[]
[]
[]
[]
[]
[]
[]
[]
[]
[]
[]
[]
[]
[]
[]
[]
[]
[]
[]
[]
[]
[]
[]
[]
[]
[]
[]
[]
[]
[]
[]
[]
[]
[]
[]
[]
[]
[]
[]
[]
[]
[]
[]
[]
[]
[]
[]
[]
[]
[]
[]
[]
[]
[]
[]
[]
[]
[]
[]
[]
[]
[]
[]
[]
[]
[]
[]
[]
[]
[]
[]
[]
[]
[]
[]
[]
[]
[]
[]
[]
[]
[]
[]
[]
[]
[]
[]
[]
[]
[]
[]
[]
[]
[]
[]
[]
[]
[]
[]
[]
[]
[]
[]
[]
[]
[]
[]
[]
[]
[]
[]
[]
[]
[]
[]
[]
[]
[]
[]
[]
[]
[]
[]
[]
[]
[]
[]
[]
[]
[]
[]
[]
[]
[]
[]
[]
[]
[]
[]
[]
[]
[]
[]
[]
[]
[]
[]
[]
[]
[]
[]
[]
[]
[]
[]
[]
[]
[]
[]
[]
[]
[]
[]
[]
[]
[]
[]
[]
[]
[]
[]
[]
[]
[]
[]
[]
[]
[]
[]
[]
[]
[]
[]
[]
[]
[]
[]
[]
[]
[]
[]
[]
[]
[]
[]
[]
[]
[]
[]
[]
[]
[]
[]
[]
[]
[]
[]
[]
[]
[]
[]
[]
[]
[]
[]
[]
[]
[]
[]
[]
[]
[]
[]
[]
[]
[]
[]
[]
[]
[]
[]
[]
[]
[]
[]
[]
[]
[]
[]
[]
[]
[]
[]
[]
[]
[]
[]
[]
[]
[]
[]
[]
[]
[]
[]
[]
[]
[]
[]
[]
[]
[]
[]
[]
[]
[]
[]
[]
[]
[]
[]
[]
[]
[]
[]
[]
[]
[]
[]
[]
[]
[]
[]
[]
[]
[]
[]
[]
[]
[]
[]
[]
[]
[]
[]
[]
[]
[]
[]
[]
[]
[]
[]
[]
[]
[]
[]
[]
[]
[]
[]
[]
[]
[]
[]
[]
[]
[]
[]
[]
[]
[]
[]
[]
[]
[]
[]
[]
[]
[]
[]
[]
[]
[]
[]
[]
[]
[]
[]
[]
[]
[]
[]
[]
[]
[]
[]
[]
[]
[]
[]
[]
[]
[]
[]
[]
[]
[]
[]
[]
[]
[]
[]
[]
[]
[]
[]
[]
[]
[]
[]
[]
[]
[]
[]
[]
[]
[]
[]
[]
[]
[]
[]
[]
[]
[]
[]
[]
[]
[]
[]
[]
[]
[]
[]
[]
[]
[]
[]
[]
[]
[]
[]
[]
[]
[]
[]
[]
[]
[]
[]
[]
[]
[]
[]
[]
[]
[]
[]
[]
[]
[]
[]
[]
[]
[]
[]
[]
[]
[]
[]
[]
[]
[]
[]
[]
[]
[]
[]
[]
[]
[]
[]
[]
[]
[]
[]
[]
[]
[]
[]
[]
[]
[]
[]
[]
[]
[]
[]
[]
[]
[]
[]
[]
[]
[]
[]
[]
[]
[]
[]
[]
[]
[]
[]
[]
[]
[]
[]
[]
[]
[]
[]
[]
[]
[]
[]
[]
[]
[]
[]
[]
[]
[]
[]
[]
[]
[]
[]
[]
[]
[]
[]
[]
[]
[]
[]
[]
[]
[]
[]
[]
[]
[]
[]
[]
[]
[]
[]
[]
[]
[]
[]
[]
[]
[]
[]
[]
[]
[]
[]
[]
[]
[]
[]
[]
[]
[]
[]
[]
[]
[]
[]
[]
[]
[]
[]
[]
[]
[]
[]
[]
[]
[]
[]
[]
[]
[]
[]
[]
[]
[]
[]
[]
[]
[]
[]
[]
[]
[]
[]
[]
[]
[]
[]
[]
[]
[]
[]
[]
[]
[]
[]
[]
[]
[]
[]
[]
[]
[]
[]
[]
[]
[]
[]
[]
[]
[]
[]
[]
[]
[]
[]
[]
[]
[]
[]
[]
[]
[]
[]
[]
[]
[]
[]
[]
[]
[]
[]
[]
[]
[]
[]
[]
[]
[null,null,null,null,null,null,null,null,null,null,null,null,null,null,null,null,null,null,null,null,null,null,null,null,null,null,null,null,null,null,null,null,null,null,null,null,null,null,null,null,null,null,null,null,null,null,null,null,null,null,null,null,null,null,null,null,null,null,null,null,null,null,null,null,null,null,null,null,null,null,null,null,null,null,null,null,null,null,null,null,null,null,null,null,null,null,null,null,null,null,null,null,null,null,null,null,null,null,null,null,null,null,null,null,null,null,null,null,null,null,null,null,null,null,null,null,null,null,null,null,null,null,null,null,null,null,null,null,null,null,null,null,null,null,null,null,null,null,null,null,null,null,null,null,null,null,null,null,null,null,null,null,null,null,null,null,null,null,null,null,null,null,null,null,null,null,null,null,null,null,null,null,null,null,null,null,null,null,null,null,null,null,null,null,null,null,null,null,null,null,null,null,null,null,null,null,null,null,null,null,null,null,null,null,null,null,null,null,null,null,null,null,null,null,null,null,null,null,null,null,null,null,null,null,null,null,null,null,null,null,null,null,null,null,null,null,null,null,null,null,null,null,null,null,null,null,null,null,null,null,null,null,null,null,null,null,null,null,null,null,null,null,null,null,null,null,null,null,null,null,null,null,null,null,null,null,null,null,null,null,null,null,null,null,null,null,null,null,null,null,null,null,null,null,null,null,null,null,null,null,null,null,null,null,null,null,null,null,null,null,null,null,null,null,null,null,null,null,null,null,null,null,null,null,null,null,null,null,null,null,null,null,null,null,null,null,null,null,null,null,null,null,null,null,null,null,null,null,null,null,null,null,null,null,null,null,null,null,null,null,null,null,null,null,null,null,null,null,null,null,null,null,null,null,null,null,null,null,null,null,null,null,null,null,null,null,null,null,null,null,null,null,null,null,null,null,null,null,null,null,null,null,null,null,null,null,null,null,null,null,null,null,null,null,null,null,null,null,null,null,null,null,null,null,null,null,null,null,null,null,null,null,null,null,null,null,null,null,null,null,null,null,null,null,null,null,null,null,null,null,null,null,null,null,null,null,null,null,null,null,null,null,null,null,null,null,null,null,null,null,null,null,null,null,null,null,null,null,null,null,null,null,null,null,null,null,null,null,null,null,null,null,null,null,null,null,null,null,null,null,null,null,null,null,null,null,null,null,null,null,null,null,null,null,null,null,null,null,null,null,null,null,null,null,null,null,null,null,null,null,null,null,null,null,null,null,null,null,null,null,null,null,null,null,null,null,null,null,null,null,null,null,null,null,null,null,null,null,null,null,null,null,null,null,null,null,null,null,null,null,null,null,null,null,null,null,null,null,null,null,null,null,null,null,null,null,null,null,null,null,null,null,null,null,null,null,null,null,null,null,null,null,null,null,null,null,null,null,null,null,null,null,null,null,null,null,null,null,null,null,null,null,null,null,null,null,null,null,null,null,null,null,null,null,null,null,null,null,null,null,null,null,null,null,null,null,null,"Luis.chirivi"]
[null,null,null,null,null,null,null,null,null,null,null,null,null,null,null,null,null,null,null,null,null,null,null,null,null,null,null,null,null,null,null,null,null,null,null,null,null,null,null,null,null,null,null,null,null,null,null,null,null,null,null,null,null,null,null,null,null,null,null,null,null,null,null,null,null,null,null,null,null,null,null,null,null,null,null,null,null,null,null,null,null,null,null,null,null,null,null,null,null,null,null,null,null,null,null,null,null,null,null,null,null,null,null,null,null,null,null,null,null,null,null,null,null,null,null,null,null,null,null,null,null,null,null,null,null,null,null,null,null,null,null,null,null,null,null,null,null,null,null,null,null,null,null,null,null,null,null,null,null,null,null,null,null,null,null,null,null,null,null,null,null,null,null,null,null,null,null,null,null,null,null,null,null,null,null,null,null,null,null,null,null,null,null,null,null,null,null,null,null,null,null,null,null,null,null,null,null,null,null,null,null,null,null,null,null,null,null,null,null,null,null,null,null,null,null,null,null,null,null,null,null,null,null,null,null,null,null,null,null,null,null,null,null,null,null,null,null,null,null,null,null,null,null,null,null,null,null,null,null,null,null,null,null,null,null,null,null,null,null,null,null,null,null,null,null,null,null,null,null,null,null,null,null,null,null,null,null,null,null,null,null,null,null,null,null,null,null,null,null,null,null,null,null,null,null,null,null,null,null,null,null,null,null,null,null,null,null,null,null,null,null,null,null,null,null,null,null,null,null,null,null,null,null,null,null,null,null,null,null,null,null,null,null,null,null,null,null,null,null,null,null,null,null,null,null,null,null,null,null,null,null,null,null,null,null,null,null,null,null,null,null,null,null,null,null,null,null,null,null,null,null,null,null,null,null,null,null,null,null,null,null,null,null,null,null,null,null,null,null,null,null,null,null,null,null,null,null,null,null,null,null,null,null,null,null,null,null,null,null,null,null,null,null,null,null,null,null,null,null,null,null,null,null,null,null,null,null,null,null,null,null,null,null,null,null,null,null,null,null,null,null,null,null,null,null,null,null,null,null,null,null,null,null,null,null,null,null,null,null,null,null,null,null,null,null,null,null,null,null,null,null,null,null,null,null,null,null,null,null,null,null,null,null,null,null,null,null,null,null,null,null,null,null,null,null,null,null,null,null,null,null,null,null,null,null,null,null,null,null,null,null,null,null,null,null,null,null,null,null,null,null,null,null,null,null,null,null,null,null,null,null,null,null,null,null,null,null,null,null,null,null,null,null,null,null,null,null,null,null,null,null,null,null,null,null,null,null,null,null,null,null,null,null,null,null,null,null,null,null,null,null,null,null,null,null,null,null,null,null,null,null,null,null,null,null,null,null,null,null,null,null,null,null,null,null,null,null,null,null,null,null,null,null,null,null,null,null,null,null,null,null,null,null,null,null,null,null,null,null,null,null,null,null,null,null,null,null,null,null,null,null,null,null,null,null,null,null,null,null,null,null,null,null,null,null,null,null,"Luis.chirivi"]

{"sheet":"General","index":1,"n_rows":62,"n_cols":24,"rows_kept":62,"cut":false,"hidden":false,"merged":[[59,1,59,8],[40,2,40,8],[44,2,44,8],[28,2,28,8],[30,3,30,8],[32,2,32,8],[34,3,34,8],[36,2,36,8],[41,2,41,6],[42,2,42,6],[43,2,43,6],[46,2,46,8],[47,2,47,6],[48,2,48,6],[11,2,11,5],[11,7,11,8],[12,2,12,8],[21,2,21,7],[50,2,50,8],[13,7,13,8],[13,2,13,5],[49,2,49,6],[26,3,26,8],[22,2,22,5],[22,7,22,8],[1,1,2,6],[8,1,8,8],[9,2,9,5],[9,7,9,8],[10,7,10,8],[10,2,10,5],[6,2,6,5],[6,7,6,8]]}
[1,null,null,null,null,null,null,{"$f":"IFERROR(VLOOKUP($C$7,Dt!AD130:AE133,2,0),\"INV\")","v":"INO"},{"$f":"IFERROR(VLOOKUP($C$23,Dt!$AC$6:$AD$13,2,0),\"NT\")","v":"CIAS"},null,null,null,null,7,"A",{"$f":"COUNTIF($I$28:$I$36,O1)","v":0},{"$f":"IF(P1>0,$N1,0)","v":0},null,null,null,null,null,null,"Número de Paginas del documento final , se puede ajustar."]
[null,"PRESENTACIÓN DE PROPUESTAS DE IDEAS \nINNOVADORAS 2025-1",null,null,null,null,null,"Fecha de Emisión: 2018/03/06","IN-IE-F-7",null,null,null,null,6,"A1",{"$f":"COUNTIF($I$28:$I$36,O2)","v":0},0,null,null,null,null,null,null,11]
[null,null,null,null,null,null,null,"Revisión N°:\n4",{"$f":"\"Página \"&A1&\" de \"&Dt_TPG","v":"Página 1 de 11"},null,null,null,null,5,"B",0,0,null,"Innovación"]
[null,null,null,null,null,null,null,null,null,null,null,null,null,null,null,0,0]
["1.-","Información general del proyecto.",null,null,null,null,null,null,"Vrs. 30-08b",null,null,null,null,4,"C",0,0,null,null,null,null,null,null,"Hoy es "]
[null,null,null,null,null,null,null,null,null,null,null,null,null,null,null,0,0]
[null,"Convocatoria:","Innovación",null,null,null,"Código / Radicado",null,null,null,null,null,null,3,"D",0,0,null,null,null,null,null,null,{"$f":"NOW()","v":"2024-08-30T13:20:49.270"}]
[null,null,null,null,null,null,null,null,null,null,null,null,null,2,"R",0,0]
[null,null,null,null,null,null,null,null,null,null,null,null,null,1,"NR",0,0]
[null,"Líder: ",null,null,null,null,"Teléfonos :",null,null,null,null,null,null,null,null,null,null,null,null,null,null,null,null,"2017-03-02"]
[null,"Correo:",null,null,null,null," Sede:"]
[null,"Dirección",null,null,null,null,"Ciudad:"]
[null,"Modalidad 1","Modalidad 4. Oportunidades de Transferencia para productos o servicios no patentables"]
[null,"Tiempo estimado",null,null,null,null,"Valor Estimado"]
[null,"Resultado esperado (Seleccionar por lo menos uno)."]
[null,"Elaboración de prototipo",null,null,null,null,"Definición de estrategia de protección"]
[null,"Ficha de divulgación comercial de la tecnología",null,null,null,null,"Estrategia de propiedad intelectual"]
[null,"Estudio de mercado, que incluya validación técnica y comercial",null,null,null,null,"Estrategia de negocio y valoración económica"]
[null,"Estrategia de transferencia - Hoja de ruta para la transferencia "]
[null,"Acercamiento y negociación con clientes potenciales (contacto y acompañamiento inicial)"]
[]
[null,"Mapeo Tecnológico","¿Cuenta con un descriptivo que permita identificar el potencial de mercado?",null,null,null,null,null,"No"]
[null,"Facultad ","Ciencias Básicas",null,null,null,"Programa",null,null,null,null,"Clasificación Grupo Máximo",{"$f":"IFERROR(VLOOKUP($N$23,$N$1:$O$9,2,0),\"NR\")","v":"NR"},{"$f":"MAX(Q1:Q9)","v":0}]
[]
["2.-","Información de Grupos de Investigación UMNG asociados al proyecto"]
[]
[null,"Grupo Principal",null,null,null,null,null,null,null,null,{"$f":"IF(AND(Cel_TP=\"IMP\",L28>0),D27,1)","v":1},{"$f":"IFERROR(VLOOKUP($D27,Dt!$AP$3:$AQ$79,2,0),0)","v":0},null,null,null,null,null,null,null,null,null,null,null,"DEBE SER RECONOCIDO"]
[null,"Link Colciencias:",{"$f":"IFERROR(VLOOKUP(L27,Dt!$AQ$3:$AS$79,3,0),\"\")","v":""},null,null,null,null,null,{"$f":"IFERROR(VLOOKUP(L27,Dt!$AQ$3:$AS$79,2,0),\"\")","v":""},null,{"$f":"I28","v":""},{"$f":"COUNTIF($O$7:$O$9,I28)","v":0}]
[null,"Líneas",null,null,null,null,null,null,null,null,{"$f":"\"Puntos:\"&Productos!#REF!","v":{"$error":"#REF!"}},{"$f":"IFERROR(\"DT!\"&VLOOKUP($D27,Dt!$AP$3:$AT$79,5,0),0)","v":0}]
[]
[{"$f":"IFERROR(VLOOKUP(D31,Dt!$AP$3:$AU$79,5,0),\"\")","v":""},"Grupo Aliado 1",null,null,null,null,null,null,null,null,null,{"$f":"IFERROR(VLOOKUP($D31,Dt!$AP$3:$AQ$79,2,0),0)","v":0}]
[null,"Link Colciencias:",{"$f":"IFERROR(VLOOKUP(L31,Dt!$AQ$3:$AS$79,3,0),\"\")","v":""},null,null,null,null,null,{"$f":"IFERROR(VLOOKUP(L31,Dt!$AQ$3:$AS$79,2,0),\"\")","v":""}]
[{"$f":"IFERROR(VLOOKUP($C33,Dt!$BB$3:$BD$298,3,0),\"\")","v":""},"Líneas",null,null,null,null,null,null,null,null,null,{"$f":"IFERROR(\"DT!\"&VLOOKUP($D31,Dt!$AP$3:$AT$79,5,0),0)","v":0}]
[]
[null,"Grupo Aliado 2",null,null,null,null,null,null,null,null,null,{"$f":"IFERROR(VLOOKUP($D35,Dt!$AP$3:$AQ$79,2,0),0)","v":0}]
[null,"Link Colciencias:",{"$f":"IFERROR(VLOOKUP(L35,Dt!$AQ$3:$AS$79,3,0),\"\")","v":""},null,null,null,null,null,{"$f":"\"Clasif.:\"&IFERROR(VLOOKUP(L35,Dt!$AQ$3:$AS$79,2,0),\"\")","v":"Clasif.:"}]
[null,"Líneas",null,null,null,null,null,null,null,null,null,{"$f":"IFERROR(\"DT!\"&VLOOKUP($D35,Dt!$AP$3:$AT$79,5,0),0)","v":0}]
[]
["3.-","Instituciones Externas participantes.",null,null,null,null,null,null,null,null,null,null,null,null,null,null,null,null,null,null,null,null,null,"2 Instituciones Externas "]
[]
[null,"Nombre"]
[null,"Grupo",null,null,null,null,null,"Clasificación"]
[null,"Investigadores",null,null,null,null,null,"Presupuesto en plan de compras:",{"$f":"Presupuesto!H157","v":0}]
[null,"Tipo de Entidad",null,null,null,null,null,"Universidad ","No."]
[null,"Link Colciencias:",null,null,null,null,null,null,null,null,{"$f":"IF(L45=0,C45,0)","v":0},{"$f":"IFERROR(SEARCH(M45,C45,1),0)","v":0},"http://scienti.colciencias.gov"]
[]
[null,"Nombre"]
[null,"Grupo",null,null,null,null,null,"Clasificación"]
[null,"Investigadores",null,null,null,null,null,"Presupuesto en plan de compras:",{"$f":"Presupuesto!H157","v":0}]
[null,"Tipo de Entidad",null,null,null,null,null,"Universidad ","No."]
[null,"Link Colciencias:",null,null,null,null,null,null,null,null,{"$f":"IF(L51=0,C51,0)","v":0},{"$f":"IFERROR(SEARCH(M51,C51,1),0)","v":0},"http://scienti.colciencias.gov"]
[]
[null,"Datos comprometidos."]
[]
[null,null,null,"$ Vicein:",{"$f":"Presupuesto!F157","v":0},null,{"$f":"S55","v":4},null,{"$f":"\"Límite en millones \"&Integrantes!T4","v":"Límite en millones "},null,{"$f":"IF(Productos!#REF!>0,1,0)","v":{"$error":"#REF!"}},null,null,null,null,null,null,null,{"$f":"ABS(RIGHT(LEFT(C13,11),1))","v":4}]
[null,"* Las áreas sombreadas de color azul no son editables "]
[]
[null,"Observaciones o recomendaciones (no valida para calificación de Propuesta):"]
[]
[]
[]
[null,"Calificación del formato"]

{"sheet":"Resumen","index":2,"n_rows":163,"n_cols":9,"rows_kept":163,"cut":false,"hidden":false,"merged":[[158,2,158,4],[159,2,159,4],[78,2,78,4],[80,2,80,4],[81,2,81,4],[82,2,82,4],[74,2,74,4],[75,2,75,4],[76,2,76,4],[155,2,155,4],[156,2,156,4],[117,2,117,4],[113,2,113,4],[119,2,119,4],[123,2,123,4],[125,2,125,4],[124,2,124,4],[130,2,130,4],[138,2,138,4],[112,2,112,4],[111,2,111,4],[118,2,118,4],[108,2,108,4],[110,2,110,4],[28,2,28,4],[30,2,30,4],[31,2,31,4],[32,2,32,4],[42,2,42,4],[43,2,43,4],[44,2,44,4],[38,2,38,4],[157,2,157,4],[150,2,150,4],[151,2,151,4],[147,2,147,4],[144,2,144,4],[145,2,145,4],[148,2,148,4],[149,2,149,4],[131,2,131,4],[132,2,132,4],[133,2,133,4],[134,2,134,4],[146,2,146,4],[139,2,139,4],[140,2,140,4],[109,2,109,4],[15,2,15,4],[16,2,16,4],[20,2,20,4],[22,2,22,4],[58,2,58,4],[102,2,102,4],[103,2,103,4],[67,2,67,4],[68,2,68,4],[84,2,84,4],[99,2,99,4],[73,2,73,4],[60,2,60,4],[62,2,62,4],[46,2,46,4],[33,2,33,4],[34,2,34,4],[36,2,36,4],[40,2,40,4],[41,2,41,4],[54,2,54,4],[56,2,56,4],[57,2,57,4],[26,2,26,4],[7,2,7,4],[1,2,2,2],[6,2,6,4],[10,2,10,4],[9,2,9,4],[89,2,89,4],[90,2,90,4],[91,2,91,4],[92,2,92,4],[8,2,8,4],[23,2,23,4],[24,2,24,4],[25,2,25,4],[59,2,59,4],[48,2,48,4],[49,2,49,4],[50,2,50,4],[51,2,51,4],[52,2,52,4],[17,2,17,4],[18,2,18,4],[4,2,4,4],[12,2,12,4],[14,2,14,4],[126,2,126,4],[83,2,83,4],[64,2,64,4],[65,2,65,4],[66,2,66,4],[100,2,100,4],[101,2,101,4],[70,2,70,4],[72,2,72,4],[93,2,93,4],[94,2,94,4]]}
[2,null,null,null,null,null,"*Pueden  Ocultar las Filas que no se utilicen."]
[null,null,{"$f":"General!B2","v":"PRESENTACIÓN DE PROPUESTAS DE IDEAS \nINNOVADORAS 2025-1"},{"$f":"General!$H$2","v":"Fecha de Emisión: 2018/03/06"},{"$f":"General!$I$2","v":"IN-IE-F-7"},null,{"$f":"SUM(G7:G11)","v":0},"<=== N° palabras en total"]
[null,null,null,{"$f":"General!$H$3","v":"Revisión N°:\n4"},{"$f":"\"Página \"&A1&\" de \"&Dt_TPG","v":"Página 2 de 11"},null,"Palabras","Largo L","Limite"]
[]
["4.-","#","Resumen de la propuesta ",null,null,null,{"$f":"SUM(G6:G12)","v":0},{"$f":"SUM(H6:H12)","v":0},30000]
[null,null,null,null,null,null,null,null,{"$f":"I5","v":30000}]
[null,{"$f":"ROW()-6","v":1},null,null,null,null,{"$f":"IF(C7=\"\",0,LEN(TRIM(C7))-LEN(SUBSTITUTE(TRIM(C7),\" \",\"\"))+1)","v":0},{"$f":"LEN(C7)","v":0},30000]
[null,{"$f":"ROW()-6","v":2},null,null,null,null,{"$f":"IF(C8=\"\",0,LEN(TRIM(C8))-LEN(SUBSTITUTE(TRIM(C8),\" \",\"\"))+1)","v":0},{"$f":"LEN(C8)","v":0},30000]
[null,{"$f":"ROW()-6","v":3},null,null,null,null,{"$f":"IF(C9=\"\",0,LEN(TRIM(C9))-LEN(SUBSTITUTE(TRIM(C9),\" \",\"\"))+1)","v":0},{"$f":"LEN(C9)","v":0},30000]
[null,{"$f":"ROW()-6","v":4},null,null,null,null,{"$f":"IF(C10=\"\",0,LEN(TRIM(C10))-LEN(SUBSTITUTE(TRIM(C10),\" \",\"\"))+1)","v":0},{"$f":"LEN(C10)","v":0},30000]
[null,{"$f":"ROW()-6","v":5},null,null,null,null,{"$f":"IF(C11=\"\",0,LEN(TRIM(C11))-LEN(SUBSTITUTE(TRIM(C11),\" \",\"\"))+1)","v":0},{"$f":"LEN(C11)","v":0},30000]
[]
["4.a-","#","Origen de la tecnología",null,null,null,{"$f":"SUM(G14:G20)","v":0},{"$f":"SUM(H14:H20)","v":0},30000]
[null,null,null,null,null,null,null,null,{"$f":"I13","v":30000}]
[null,{"$f":"ROW()-14","v":1},null,null,null,null,{"$f":"IF(C15=\"\",0,LEN(TRIM(C15))-LEN(SUBSTITUTE(TRIM(C15),\" \",\"\"))+1)","v":0},{"$f":"LEN(C15)","v":0},30000]
[null,{"$f":"ROW()-14","v":2},null,null,null,null,{"$f":"IF(C16=\"\",0,LEN(TRIM(C16))-LEN(SUBSTITUTE(TRIM(C16),\" \",\"\"))+1)","v":0},{"$f":"LEN(C16)","v":0},30000]
[null,{"$f":"ROW()-14","v":3},null,null,null,null,{"$f":"IF(C17=\"\",0,LEN(TRIM(C17))-LEN(SUBSTITUTE(TRIM(C17),\" \",\"\"))+1)","v":0},{"$f":"LEN(C17)","v":0},30000]
[null,{"$f":"ROW()-14","v":4},null,null,null,null,{"$f":"IF(C18=\"\",0,LEN(TRIM(C18))-LEN(SUBSTITUTE(TRIM(C18),\" \",\"\"))+1)","v":0},{"$f":"LEN(C18)","v":0},30000]
[null,{"$f":"ROW()-14","v":5},null,null,null,null,{"$f":"IF(C19=\"\",0,LEN(TRIM(C19))-LEN(SUBSTITUTE(TRIM(C19),\" \",\"\"))+1)","v":0},{"$f":"LEN(C19)","v":0},30000]
[]
["4.b-","#","Nombre de la tecnología",null,null,null,{"$f":"SUM(G22:G28)","v":0},{"$f":"SUM(H22:H28)","v":0},30000]
[null,null,null,null,null,null,null,null,{"$f":"I21","v":30000}]
[null,{"$f":"ROW()-14","v":9},null,null,null,null,{"$f":"IF(C23=\"\",0,LEN(TRIM(C23))-LEN(SUBSTITUTE(TRIM(C23),\" \",\"\"))+1)","v":0},{"$f":"LEN(C23)","v":0},30000]
[null,{"$f":"ROW()-14","v":10},null,null,null,null,{"$f":"IF(C24=\"\",0,LEN(TRIM(C24))-LEN(SUBSTITUTE(TRIM(C24),\" \",\"\"))+1)","v":0},{"$f":"LEN(C24)","v":0},30000]
[null,{"$f":"ROW()-14","v":11},null,null,null,null,{"$f":"IF(C25=\"\",0,LEN(TRIM(C25))-LEN(SUBSTITUTE(TRIM(C25),\" \",\"\"))+1)","v":0},{"$f":"LEN(C25)","v":0},30000]
[null,{"$f":"ROW()-14","v":12},null,null,null,null,{"$f":"IF(C26=\"\",0,LEN(TRIM(C26))-LEN(SUBSTITUTE(TRIM(C26),\" \",\"\"))+1)","v":0},{"$f":"LEN(C26)","v":0},30000]
[null,{"$f":"ROW()-14","v":13},null,null,null,null,{"$f":"IF(C27=\"\",0,LEN(TRIM(C27))-LEN(SUBSTITUTE(TRIM(C27),\" \",\"\"))+1)","v":0},{"$f":"LEN(C27)","v":0},30000]
[]
["4.c-","#","Elemento visual ",null,null,null,{"$f":"SUM(G30:G36)","v":0},{"$f":"SUM(H30:H36)","v":0},30000]
[null,null,null,null,null,null,null,null,{"$f":"I29","v":30000}]
[null,{"$f":"ROW()-14","v":17},null,null,null,null,{"$f":"IF(C31=\"\",0,LEN(TRIM(C31))-LEN(SUBSTITUTE(TRIM(C31),\" \",\"\"))+1)","v":0},{"$f":"LEN(C31)","v":0},30000]
[null,{"$f":"ROW()-14","v":18},null,null,null,null,{"$f":"IF(C32=\"\",0,LEN(TRIM(C32))-LEN(SUBSTITUTE(TRIM(C32),\" \",\"\"))+1)","v":0},{"$f":"LEN(C32)","v":0},30000]
[null,{"$f":"ROW()-14","v":19},null,null,null,null,{"$f":"IF(C33=\"\",0,LEN(TRIM(C33))-LEN(SUBSTITUTE(TRIM(C33),\" \",\"\"))+1)","v":0},{"$f":"LEN(C33)","v":0},30000]
[null,{"$f":"ROW()-14","v":20},null,null,null,null,{"$f":"IF(C34=\"\",0,LEN(TRIM(C34))-LEN(SUBSTITUTE(TRIM(C34),\" \",\"\"))+1)","v":0},{"$f":"LEN(C34)","v":0},30000]
[null,{"$f":"ROW()-14","v":21},null,null,null,null,{"$f":"IF(C35=\"\",0,LEN(TRIM(C35))-LEN(SUBSTITUTE(TRIM(C35),\" \",\"\"))+1)","v":0},{"$f":"LEN(C35)","v":0},30000]
[]
["4.d-","#","Detalles de la tecnología",null,null,null,{"$f":"SUM(G38:G86)","v":0},{"$f":"SUM(H38:H86)","v":0},30000]
[null,null,null,null,null,null,null,null,{"$f":"I37","v":30000}]
[null,null,"Describa de forma clara y concisa la tecnología, producto o servicio. Indique sus principales características, especialmente aquellas que la distinguen de soluciones competidoras o alternativas. Describa los antecedentes científicos y tecnológicos de la temática propuesta."]
[]
[null,{"$f":"ROW()-14","v":27},null,null,null,null,{"$f":"IF(C41=\"\",0,LEN(TRIM(C41))-LEN(SUBSTITUTE(TRIM(C41),\" \",\"\"))+1)","v":0},{"$f":"LEN(C41)","v":0},{"$f":"I38","v":30000}]
[null,{"$f":"ROW()-14","v":28},null,null,null,null,{"$f":"IF(C42=\"\",0,LEN(TRIM(C42))-LEN(SUBSTITUTE(TRIM(C42),\" \",\"\"))+1)","v":0},{"$f":"LEN(C42)","v":0},{"$f":"I41","v":30000}]
[null,{"$f":"ROW()-14","v":29},null,null,null,null,{"$f":"IF(C43=\"\",0,LEN(TRIM(C43))-LEN(SUBSTITUTE(TRIM(C43),\" \",\"\"))+1)","v":0},{"$f":"LEN(C43)","v":0},{"$f":"I42","v":30000}]
[null,{"$f":"ROW()-14","v":30},null,null,null,null,{"$f":"IF(C44=\"\",0,LEN(TRIM(C44))-LEN(SUBSTITUTE(TRIM(C44),\" \",\"\"))+1)","v":0},{"$f":"LEN(C44)","v":0},{"$f":"I43","v":30000}]
[null,{"$f":"ROW()-14","v":31},null,null,null,null,{"$f":"IF(C45=\"\",0,LEN(TRIM(C45))-LEN(SUBSTITUTE(TRIM(C45),\" \",\"\"))+1)","v":0},{"$f":"LEN(C45)","v":0},{"$f":"I44","v":30000}]
[null,null,null,null,null,null,null,null,{"$f":"I45","v":30000}]
["4.c-","#","Beneficios potenciales:",null,null,null,{"$f":"SUM(G48:G54)","v":0},{"$f":"SUM(H48:H54)","v":0},30000]
[null,null,null,null,null,null,null,null,{"$f":"I47","v":30000}]
[null,{"$f":"ROW()-14","v":35},null,null,null,null,{"$f":"IF(C49=\"\",0,LEN(TRIM(C49))-LEN(SUBSTITUTE(TRIM(C49),\" \",\"\"))+1)","v":0},{"$f":"LEN(C49)","v":0},30000]
[null,{"$f":"ROW()-14","v":36},null,null,null,null,{"$f":"IF(C50=\"\",0,LEN(TRIM(C50))-LEN(SUBSTITUTE(TRIM(C50),\" \",\"\"))+1)","v":0},{"$f":"LEN(C50)","v":0},30000]
[null,{"$f":"ROW()-14","v":37},null,null,null,null,{"$f":"IF(C51=\"\",0,LEN(TRIM(C51))-LEN(SUBSTITUTE(TRIM(C51),\" \",\"\"))+1)","v":0},{"$f":"LEN(C51)","v":0},30000]
[null,{"$f":"ROW()-14","v":38},null,null,null,null,{"$f":"IF(C52=\"\",0,LEN(TRIM(C52))-LEN(SUBSTITUTE(TRIM(C52),\" \",\"\"))+1)","v":0},{"$f":"LEN(C52)","v":0},30000]
[null,{"$f":"ROW()-14","v":39},null,null,null,null,{"$f":"IF(C53=\"\",0,LEN(TRIM(C53))-LEN(SUBSTITUTE(TRIM(C53),\" \",\"\"))+1)","v":0},{"$f":"LEN(C53)","v":0},30000]
[]
["4.d-","#","Estado de la Propiedad Intelectual:",null,null,null,{"$f":"SUM(G56:G61)","v":0},{"$f":"SUM(H56:H61)","v":0},30000]
[null,null,null,null,null,null,null,null,{"$f":"I55","v":30000}]
[null,{"$f":"ROW()-14","v":43},null,null,null,null,{"$f":"IF(C57=\"\",0,LEN(TRIM(C57))-LEN(SUBSTITUTE(TRIM(C57),\" \",\"\"))+1)","v":0},{"$f":"LEN(C57)","v":0},30000]
[null,{"$f":"ROW()-14","v":44},null,null,null,null,{"$f":"IF(C58=\"\",0,LEN(TRIM(C58))-LEN(SUBSTITUTE(TRIM(C58),\" \",\"\"))+1)","v":0},{"$f":"LEN(C58)","v":0},30000]
[null,{"$f":"ROW()-14","v":45},null,null,null,null,{"$f":"IF(C59=\"\",0,LEN(TRIM(C59))-LEN(SUBSTITUTE(TRIM(C59),\" \",\"\"))+1)","v":0},{"$f":"LEN(C59)","v":0},30000]
[null,{"$f":"ROW()-14","v":46},null,null,null,null,{"$f":"IF(C60=\"\",0,LEN(TRIM(C60))-LEN(SUBSTITUTE(TRIM(C60),\" \",\"\"))+1)","v":0},{"$f":"LEN(C60)","v":0},30000]
[null,{"$f":"ROW()-14","v":47},null,null,null,null,{"$f":"IF(C61=\"\",0,LEN(TRIM(C61))-LEN(SUBSTITUTE(TRIM(C61),\" \",\"\"))+1)","v":0},{"$f":"LEN(C61)","v":0},30000]
[]
["4.d-","#","Mercados potenciales e interés del mercado:",null,null,null,{"$f":"SUM(G64:G86)","v":0},{"$f":"SUM(H64:H86)","v":0},30000]
[null,null,null,null,null,null,null,null,{"$f":"I63","v":30000}]
[null,{"$f":"ROW()-14","v":51},null,null,null,null,{"$f":"IF(C65=\"\",0,LEN(TRIM(C65))-LEN(SUBSTITUTE(TRIM(C65),\" \",\"\"))+1)","v":0},{"$f":"LEN(C65)","v":0},30000]
[null,{"$f":"ROW()-14","v":52},null,null,null,null,{"$f":"IF(C66=\"\",0,LEN(TRIM(C66))-LEN(SUBSTITUTE(TRIM(C66),\" \",\"\"))+1)","v":0},{"$f":"LEN(C66)","v":0},30000]
[null,{"$f":"ROW()-14","v":53},null,null,null,null,{"$f":"IF(C67=\"\",0,LEN(TRIM(C67))-LEN(SUBSTITUTE(TRIM(C67),\" \",\"\"))+1)","v":0},{"$f":"LEN(C67)","v":0},30000]
[null,{"$f":"ROW()-14","v":54},null,null,null,null,{"$f":"IF(C68=\"\",0,LEN(TRIM(C68))-LEN(SUBSTITUTE(TRIM(C68),\" \",\"\"))+1)","v":0},{"$f":"LEN(C68)","v":0},30000]
[null,{"$f":"ROW()-14","v":55},null,null,null,null,{"$f":"IF(C69=\"\",0,LEN(TRIM(C69))-LEN(SUBSTITUTE(TRIM(C69),\" \",\"\"))+1)","v":0},{"$f":"LEN(C69)","v":0},30000]
[]
["4.e-","#","Competencia:",null,null,null,{"$f":"SUM(G72:G94)","v":0},{"$f":"SUM(H72:H94)","v":0},30000]
[null,null,null,null,null,null,null,null,{"$f":"I71","v":30000}]
[null,{"$f":"ROW()-14","v":59},null,null,null,null,{"$f":"IF(C73=\"\",0,LEN(TRIM(C73))-LEN(SUBSTITUTE(TRIM(C73),\" \",\"\"))+1)","v":0},{"$f":"LEN(C73)","v":0},30000]
[null,{"$f":"ROW()-14","v":60},null,null,null,null,{"$f":"IF(C74=\"\",0,LEN(TRIM(C74))-LEN(SUBSTITUTE(TRIM(C74),\" \",\"\"))+1)","v":0},{"$f":"LEN(C74)","v":0},30000]
[null,{"$f":"ROW()-14","v":61},null,null,null,null,{"$f":"IF(C75=\"\",0,LEN(TRIM(C75))-LEN(SUBSTITUTE(TRIM(C75),\" \",\"\"))+1)","v":0},{"$f":"LEN(C75)","v":0},30000]
[null,{"$f":"ROW()-14","v":62},null,null,null,null,{"$f":"IF(C76=\"\",0,LEN(TRIM(C76))-LEN(SUBSTITUTE(TRIM(C76),\" \",\"\"))+1)","v":0},{"$f":"LEN(C76)","v":0},30000]
[null,{"$f":"ROW()-14","v":63},null,null,null,null,{"$f":"IF(C77=\"\",0,LEN(TRIM(C77))-LEN(SUBSTITUTE(TRIM(C77),\" \",\"\"))+1)","v":0},{"$f":"LEN(C77)","v":0},30000]
[]
["4.f-","#","Desafíos y retos:",null,null,null,{"$f":"SUM(G80:G102)","v":0},{"$f":"SUM(H80:H102)","v":0},30000]
[null,null,null,null,null,null,null,null,{"$f":"I79","v":30000}]
[null,{"$f":"ROW()-14","v":67},null,null,null,null,{"$f":"IF(C81=\"\",0,LEN(TRIM(C81))-LEN(SUBSTITUTE(TRIM(C81),\" \",\"\"))+1)","v":0},{"$f":"LEN(C81)","v":0},30000]
[null,{"$f":"ROW()-14","v":68},null,null,null,null,{"$f":"IF(C82=\"\",0,LEN(TRIM(C82))-LEN(SUBSTITUTE(TRIM(C82),\" \",\"\"))+1)","v":0},{"$f":"LEN(C82)","v":0},30000]
[null,{"$f":"ROW()-14","v":69},null,null,null,null,{"$f":"IF(C83=\"\",0,LEN(TRIM(C83))-LEN(SUBSTITUTE(TRIM(C83),\" \",\"\"))+1)","v":0},{"$f":"LEN(C83)","v":0},30000]
[null,{"$f":"ROW()-14","v":70},null,null,null,null,{"$f":"IF(C84=\"\",0,LEN(TRIM(C84))-LEN(SUBSTITUTE(TRIM(C84),\" \",\"\"))+1)","v":0},{"$f":"LEN(C84)","v":0},30000]
[null,{"$f":"ROW()-14","v":71},null,null,null,null,{"$f":"IF(C85=\"\",0,LEN(TRIM(C85))-LEN(SUBSTITUTE(TRIM(C85),\" \",\"\"))+1)","v":0},{"$f":"LEN(C85)","v":0},30000]
[]
["5.-","#","Descripción de la propuesta .",null,null,null,{"$f":"SUM(G89:G417)","v":0},"<=== Palabras en total"]
["a.-","#","Planteamiento del problema u oportunidad identificada",null,null,null,{"$f":"SUM(G89:G403)","v":0},"<=== Palabras en total"]
[null,null,null,null,null,null,{"$f":"IF(C89=\"\",0,LEN(TRIM(C89))-LEN(SUBSTITUTE(TRIM(C89),\" \",\"\"))+1)","v":0}]
[null,{"$f":"ROW()-19","v":71},null,null,null,null,0]
[null,72,null,null,null,null,0]
[null,73,null,null,null,null,0]
[null,74,null,null,null,null,0]
[null,75,null,null,null,null,0]
[null,76,null,null,null,null,0]
[null,null,null,null,null,null,null,null,{"$f":"\"Supera el número de palabra permitidas para el resumen por favor quitar \"&(G2-250)&\" palabras.\"","v":"Supera el número de palabra permitidas para el resumen por favor quitar -250 palabras."}]
[]
["b.-","#","Pertinencia",null,null,null,{"$f":"SUM(G99:G417)","v":0},"<=== Palabras en total"]
[null,null,null,null,null,null,{"$f":"IF(C99=\"\",0,LEN(TRIM(C99))-LEN(SUBSTITUTE(TRIM(C99),\" \",\"\"))+1)","v":0}]
[null,{"$f":"ROW()-19","v":81},null,null,null,null,0]
[null,{"$f":"ROW()-19","v":82},null,null,null,null,0]
[null,{"$f":"ROW()-19","v":83},null,null,null,null,0]
[null,{"$f":"ROW()-19","v":84},null,null,null,null,0]
[null,{"$f":"ROW()-19","v":85},null,null,null,null,0]
[]
[]
["c.-","#","Metodología",null,null,null,{"$f":"SUM(G108:G418)","v":0},"<=== Palabras en total"]
[null,null,null,null,null,null,{"$f":"IF(C108=\"\",0,LEN(TRIM(C108))-LEN(SUBSTITUTE(TRIM(C108),\" \",\"\"))+1)","v":0}]
[null,{"$f":"ROW()-19","v":90},null,null,null,null,0]
[null,91,null,null,null,null,0]
[null,92,null,null,null,null,0]
[null,93,null,null,null,null,0]
[null,94,null,null,null,null,0]
[null,95,null,null,null,null,0]
[]
["d.-","#","Avance en el nivel de madurez tecnológica",null,null,null,{"$f":"SUM(G117:G417)","v":0},"<=== Palabras en total"]
[null,null,null,null,null,null,{"$f":"IF(C117=\"\",0,LEN(TRIM(C117))-LEN(SUBSTITUTE(TRIM(C117),\" \",\"\"))+1)","v":0}]
[null,{"$f":"ROW()-19","v":99},null,null,null,null,{"$f":"IF(C118=\"\",0,LEN(TRIM(C118))-LEN(SUBSTITUTE(TRIM(C118),\" \",\"\"))+1)","v":0}]
[null,{"$f":"ROW()-19","v":100},null,null,null,null,{"$f":"IF(C119=\"\",0,LEN(TRIM(C119))-LEN(SUBSTITUTE(TRIM(C119),\" \",\"\"))+1)","v":0}]
[null,{"$f":"ROW()-19","v":101},null,null,null,null,{"$f":"IF(C120=\"\",0,LEN(TRIM(C120))-LEN(SUBSTITUTE(TRIM(C120),\" \",\"\"))+1)","v":0}]
[]
["e.-","#","Grado de Innovación",null,null,null,{"$f":"SUM(G123:G417)","v":0},"<=== Palabras en total"]
[null,null,null,null,null,null,{"$f":"IF(C123=\"\",0,LEN(TRIM(C123))-LEN(SUBSTITUTE(TRIM(C123),\" \",\"\"))+1)","v":0}]
[null,{"$f":"ROW()-19","v":105},null,null,null,null,{"$f":"IF(C124=\"\",0,LEN(TRIM(C124))-LEN(SUBSTITUTE(TRIM(C124),\" \",\"\"))+1)","v":0}]
[null,{"$f":"ROW()-19","v":106},null,null,null,null,{"$f":"IF(C125=\"\",0,LEN(TRIM(C125))-LEN(SUBSTITUTE(TRIM(C125),\" \",\"\"))+1)","v":0}]
[null,{"$f":"ROW()-19","v":107},null,null,null,null,{"$f":"IF(C126=\"\",0,LEN(TRIM(C126))-LEN(SUBSTITUTE(TRIM(C126),\" \",\"\"))+1)","v":0}]
[]
[]
["f.-","#","Contextualización de la Invención",null,null,null,{"$f":"SUM(G130:G418)","v":0},"<=== Palabras en total"]
[null,null,null,null,null,null,{"$f":"IF(C130=\"\",0,LEN(TRIM(C130))-LEN(SUBSTITUTE(TRIM(C130),\" \",\"\"))+1)","v":0}]
[null,{"$f":"ROW()-19","v":112},null,null,null,null,0]
[null,{"$f":"ROW()-19","v":113},null,null,null,null,0]
[null,{"$f":"ROW()-19","v":114},null,null,null,null,0]
[null,{"$f":"ROW()-19","v":115},null,null,null,null,0]
[null,{"$f":"ROW()-19","v":116},null,null,null,null,0]
[]
["f.-","#","Valor agregado",null,null,null,{"$f":"SUM(G138:G431)","v":0},"<=== Palabras en total"]
[null,null,null,null,null,null,{"$f":"IF(C138=\"\",0,LEN(TRIM(C138))-LEN(SUBSTITUTE(TRIM(C138),\" \",\"\"))+1)","v":0}]
[null,{"$f":"ROW()-19","v":120},null,null,null,null,{"$f":"IF(C139=\"\",0,LEN(TRIM(C139))-LEN(SUBSTITUTE(TRIM(C139),\" \",\"\"))+1)","v":0}]
[null,{"$f":"ROW()-19","v":121},null,null,null,null,{"$f":"IF(C140=\"\",0,LEN(TRIM(C140))-LEN(SUBSTITUTE(TRIM(C140),\" \",\"\"))+1)","v":0}]
[null,{"$f":"ROW()-19","v":122},null,null,null,null,{"$f":"IF(C141=\"\",0,LEN(TRIM(C141))-LEN(SUBSTITUTE(TRIM(C141),\" \",\"\"))+1)","v":0}]
[]
["g.-","#","Antecedentes profesionales o académicos del equipo técnico de trabajo",null,null,null,{"$f":"SUM(G144:G444)","v":0},"<=== Palabras en total"]
[null,null,null,null,null,null,{"$f":"IF(C144=\"\",0,LEN(TRIM(C144))-LEN(SUBSTITUTE(TRIM(C144),\" \",\"\"))+1)","v":0}]
[null,{"$f":"ROW()-19","v":126},null,null,null,null,0]
[null,{"$f":"ROW()-19","v":127},null,null,null,null,0]
[null,128,null,null,null,null,0]
[null,129,null,null,null,null,0]
[null,130,null,null,null,null,0]
[null,131,null,null,null,null,0]
[null,132,null,null,null,null,0]
[null,133,null,null,null,null,0]
[]
["f.-","#","Roles del equipo técnico de trabajo",null,null,null,{"$f":"SUM(G155:G455)","v":0},"<=== Palabras en total"]
[null,null,null,null,null,null,{"$f":"IF(C155=\"\",0,LEN(TRIM(C155))-LEN(SUBSTITUTE(TRIM(C155),\" \",\"\"))+1)","v":0}]
[null,{"$f":"ROW()-19","v":137},null,null,null,null,0]
[null,{"$f":"ROW()-19","v":138},null,null,null,null,0]
[null,{"$f":"ROW()-19","v":139},null,null,null,null,0]
[null,{"$f":"ROW()-19","v":140},null,null,null,null,0]
[null,{"$f":"ROW()-19","v":141},null,null,null,null,0]
[]
[]
[null,"*Pueden  Ocultar las Filas que no se utilicen."]

{"sheet":"Estado_del_arte","index":3,"n_rows":41,"n_cols":8,"rows_kept":41,"cut":false,"hidden":false,"merged":[[36,2,36,4],[1,2,2,2],[31,2,31,4],[32,2,32,4],[33,2,33,4],[34,2,34,4],[19,2,19,4],[20,2,20,4],[21,2,21,4],[22,2,22,4],[23,2,23,4],[24,2,24,4],[13,2,13,4],[14,2,14,4],[15,2,15,4],[16,2,16,4],[17,2,17,4],[35,2,35,4],[25,2,25,4],[26,2,26,4],[27,2,27,4],[28,2,28,4],[29,2,29,4],[30,2,30,4],[18,2,18,4],[12,2,12,4],[7,2,7,4],[8,2,8,4],[9,2,9,4],[10,2,10,4],[11,2,11,4]]}
[3,null,null,null,null,null,"*Pueden  Ocultar las Filas que no se utilicen."]
[null,null,{"$f":"General!B2","v":"PRESENTACIÓN DE PROPUESTAS DE IDEAS \nINNOVADORAS 2025-1"},{"$f":"General!$H$2","v":"Fecha de Emisión: 2018/03/06"},{"$f":"General!$I$2","v":"IN-IE-F-7"}]
[null,null,null,{"$f":"General!$H$3","v":"Revisión N°:\n4"},{"$f":"\"Página \"&A1&\" de \"&Dt_TPG","v":"Página 3 de 11"},null,{"$f":"SUM(G8:G3501)","v":0},"<== Total de palabras"]
[]
["6.-","#","Estado del arte de la propuesta.",null,null,null,"Largo"]
["c.-","#","Antecedentes científicos y tecnológicos.",null,null,null,{"$f":"SUM(G7:G328)","v":0},"<=== Palabras en total"]
[]
[null,{"$f":"ROW()-6","v":2},null,null,null,null,{"$f":"IF(C8=\"\",0,LEN(TRIM(C8))-LEN(SUBSTITUTE(TRIM(C8),\" \",\"\"))+1)","v":0}]
[null,{"$f":"ROW()-6","v":3},null,null,null,null,{"$f":"IF(C9=\"\",0,LEN(TRIM(C9))-LEN(SUBSTITUTE(TRIM(C9),\" \",\"\"))+1)","v":0}]
[null,4,null,null,null,null,0]
[null,5,null,null,null,null,0]
[null,6,null,null,null,null,0]
[null,7,null,null,null,null,0]
[null,8,null,null,null,null,0]
[null,9,null,null,null,null,0]
[null,10,null,null,null,null,0]
[null,11,null,null,null,null,0]
[null,12,null,null,null,null,0]
[null,13,null,null,null,null,0]
[null,14,null,null,null,null,0]
[null,15,null,null,null,null,0]
[null,16,null,null,null,null,0]
[null,17,null,null,null,null,0]
[null,18,null,null,null,null,0]
[null,19,null,null,null,null,0]
[null,20,null,null,null,null,0]
[null,21,null,null,null,null,0]
[null,22,null,null,null,null,0]
[null,23,null,null,null,null,0]
[null,24,null,null,null,null,0]
[null,25,null,null,null,null,0]
[null,26,null,null,null,null,0]
[null,27,null,null,null,null,0]
[null,28,null,null,null,null,0]
[null,29,null,null,null,null,0]
[null,30,null,null,null,null,0]
[null,31,null,null,null,null,0]
[]
[]
[]
[null,"*Pueden  Ocultar las Filas que no se utilicen."]

{"sheet":"Objetivos","index":4,"n_rows":23,"n_cols":8,"rows_kept":23,"cut":false,"hidden":false,"merged":[[18,2,18,4],[17,2,17,4],[22,2,22,4],[21,2,21,4],[20,2,20,4],[19,2,19,4],[1,1,2,2],[7,2,7,4],[8,2,8,4],[9,2,9,4],[10,2,10,4],[6,1,6,4],[11,2,11,4],[13,2,13,4],[14,2,14,4],[15,2,15,4],[16,2,16,4],[12,2,12,4]]}
[4]
[null,{"$f":"General!B2","v":"PRESENTACIÓN DE PROPUESTAS DE IDEAS \nINNOVADORAS 2025-1"},null,{"$f":"General!$H$2","v":"Fecha de Emisión: 2018/03/06"},{"$f":"General!$I$2","v":"IN-IE-F-7"}]
[null,null,null,{"$f":"General!$H$3","v":"Revisión N°:\n4"},{"$f":"\"Página \"&A1&\" de \"&Dt_TPG","v":"Página 4 de 11"},null,{"$f":"SUM(G7:G3500)","v":0},"<== Total de palabras"]
[]
["7.-","Objetivos de la propuesta.",null,null,null,null,"Largo"]
[]
[null,"*El espacio del ítem (0) cero es para definir el objetivo general los demás corresponden a objetivos específicos "]
[null,{"$f":"ROW()-8","v":0},null,null,null,null,{"$f":"IF(C8=\"\",0,LEN(TRIM(C8))-LEN(SUBSTITUTE(TRIM(C8),\" \",\"\"))+1)","v":0}]
[null,{"$f":"ROW()-8","v":1},null,null,null,null,0]
[null,2,null,null,null,null,0]
[null,3,null,null,null,null,0]
[null,4,null,null,null,null,0]
[null,5,null,null,null,null,0]
[null,6,null,null,null,null,0]
[null,7,null,null,null,null,0]
[null,8,null,null,null,null,0]
[null,9,null,null,null,null,0]
[null,10,null,null,null,null,0]
[null,11,null,null,null,null,0]
[null,12,null,null,null,null,0]
[null,13,null,null,null,null,0]
[null,14,null,null,null,null,0]
[null,15,null,null,null,null,0]

{"sheet":"Etica","index":5,"n_rows":69,"n_cols":17,"rows_kept":69,"cut":false,"hidden":false,"merged":[[1,2,2,2],[6,2,6,3],[7,2,7,3]]}
[5,null,null,null,null,null,"*Pueden  Ocultar las Filas que no se utilicen."]
[null,null,{"$f":"Objetivos!B2","v":"PRESENTACIÓN DE PROPUESTAS DE IDEAS \nINNOVADORAS 2025-1"},"Fecha de Emisión: 2019/03/18","IN-IV-F-14",null,null,null,null,"Detalles:"]
[null,null,null,"Revisión N°:\n4",{"$f":"\"Página \"&A1&\" de \"&Dt_TPG","v":"Página 5 de 11"},null,{"$f":"SUM(G5:G3524)","v":429},"<== Total de palabras"]
[]
[null,null,{"$f":"$Q$13","v":"."}]
["8b.-",0,"Consideraciones e implicaciones éticas de la investigación, bioética e integridad científica",null,"( Si  / No  )",null,"Palabras",null,null,null,null,null,"Validaciones"]
[null,1,"Proyecto de investigación en CTeI que  involucra seres humanos",null,"No",null,{"$f":"IF(C7=\"\",0,LEN(TRIM(C7))-LEN(SUBSTITUTE(TRIM(C7),\" \",\"\"))+1)","v":9},{"$f":"I7-J7","v":0},{"$f":"IF(OR(E7=\"No\",E7=0),0,1)","v":0},{"$f":"MAX(I8:I23)","v":0},null,1,{"$f":"VLOOKUP($L7,$B$6:$J$68,7,0)","v":0},"CTeI que  involucra seres humanos",null,{"$f":"LEN(N7)","v":33},{"$f":"IF(M7=0,\"\",N7&\"; \")","v":""}]
[null,"1.1","¿Utiliza información exclusiva o reservada por parte de terceros y prevé su forma de acceso?",null,"No",null,{"$f":"IF(C8=\"\",0,LEN(TRIM(C8))-LEN(SUBSTITUTE(TRIM(C8),\" \",\"\"))+1)","v":15},null,{"$f":"IF(OR(E8=\"No\",E8=0),0,1)","v":0},null,null,2,0,"CTeI involucra animales",null,23,""]
[null,null,{"$f":"$J$2","v":"Detalles:"},null,null,null,{"$f":"IF(C9=\"\",0,LEN(TRIM(C9))-LEN(SUBSTITUTE(TRIM(C9),\" \",\"\"))+1)","v":1},null,{"$f":"IF(OR(E9=\"No\",E9=0),0,1)","v":0},null,null,3,0,"CTeI involucra fuentes documentales",null,35,""]
[null,"1.2","¿Utiliza datos personales?",null,"No",null,3,null,0,null,null,4,0,"CTeI involucra el ambiente",null,26,""]
[null,null,{"$f":"$J$2","v":"Detalles:"},null,null,null,1,null,0,null,null,5,0,"Aspectos de Integridad científica",null,33,""]
[null,"1.3","¿utiliza información confidencial?",null,"No",null,3,null,0,null,null,6,0,"otras razones que ameritan la revisión ",null,39,""]
[null,null,{"$f":"$J$2","v":"Detalles:"},null,null,null,1,null,0,null,null,null,{"$f":"LEN(N13)","v":0},{"$f":"Q7&Q8&Q9&Q10&Q11&Q12","v":""},null,null,{"$f":"IF(M13>0,\"Error, revisar el ítem: \"&N13,\".\")","v":"."}]
[null,"1.4","¿Requiere consentimiento informado?",null,"No",null,3,null,0]
[null,null,{"$f":"$J$2","v":"Detalles:"},null,null,null,1,null,0]
[null,"1.5","¿indica un modelo de recopilación y conservación de información?",null,"No",null,9,null,0]
[null,null,{"$f":"$J$2","v":"Detalles:"},null,null,null,1,null,0]
[null,"1.6","¿Es una investigación con comunidades vulnerables (indígenas, afrodescendientes, menores  o personal subordinado, entre otros)?",null,"No",null,14,null,0]
[null,null,{"$f":"$J$2","v":"Detalles:"},null,null,null,1,null,0]
[null,"1.7","¿Se evidencia conocimiento previo sobre aspectos políticos, económicos sociales y culturales de las comunidades indígenas?",null,"No",null,15,null,0]
[null,null,{"$f":"$J$2","v":"Detalles:"},null,null,null,1,null,0]
[null,"1.8","¿Realiza intervención a través cuestionarios, medicamentos, rutinas, modificación de actividades o estilo de vida?",null,"No",null,14,null,0]
[null,null,{"$f":"$J$2","v":"Detalles:"},null,null,null,1,null,0]
[null,"1.9","¿incluye modelos de consentimiento informado, uso de datos personales u otro?",null,"No",null,11,null,0]
[null,null,{"$f":"$J$2","v":"Detalles:"},null,null,null,1,null,0]
[null,2,"Proyecto de investigación en CTeI involucra animales",null,"No",null,7,{"$f":"I26-J26","v":0},0,{"$f":"MAX(I27:I38)","v":0}]
[null,"2.1","¿Incluye un protocolo de investigación en animales?",null,"No",null,7,null,0]
[null,null,{"$f":"$J$2","v":"Detalles:"},null,null,null,1,null,0]
[null,"2.2","¿Incluye un protocolo de manipulación de recursos biológicos?",null,"No",null,8,null,0]
[null,null,{"$f":"$J$2","v":"Detalles:"},null,null,null,1,null,0]
[null,"2.3","¿Incluye un protocolo de manejo y disposición de sustancias peligrosas, agentes infecciosos y desechos?",null,"No",null,14,null,0]
[null,null,{"$f":"$J$2","v":"Detalles:"},null,null,null,1,null,0]
[null,"2.4","¿hay caracterización de los animales de experimentación criterios de selección de la especie?",null,"No",null,13,null,0]
[null,null,{"$f":"$J$2","v":"Detalles:"},null,null,null,1,null,0]
[null,"2.5","¿se prevé formación previa al equipo de laboratorio por parte del investigador sobre el cuidado permanente del animal y experimentación?",null,"No",null,20,null,0]
[null,null,{"$f":"$J$2","v":"Detalles:"},null,null,null,1,null,0]
[null,"2.6","¿se prevé declaración previa del origen y estado de los animales para experimentación?",null,"No",null,13,null,0]
[null,null,{"$f":"$J$2","v":"Detalles:"},null,null,null,1,null,0]
[null,3,"El proyecto de investigación en CTeI involucra fuentes documentales",null,"No",null,9,{"$f":"I39-J39","v":0},0,{"$f":"MAX(I40:I45)","v":0}]
[null,"3.1","¿hace referencia a la anonimización de datos?",null,"No",null,7,null,0]
[null,null,{"$f":"$J$2","v":"Detalles:"},null,null,null,1,null,0]
[null,"3.2","¿prevé conservación de datos de consulta?",null,"No",null,6,null,0]
[null,null,{"$f":"$J$2","v":"Detalles:"},null,null,null,1,null,0]
[null,"3.3","¿se identifica objetivamente que las bases de consulta de acceso abierto pueden ser calificadas de tal manera?",null,"No",null,17,null,0]
[null,null,{"$f":"$J$2","v":"Detalles:"},null,null,null,1,null,0]
[null,4,"Proyecto de investigación en CTeI involucra el ambiente",null,"No",null,8,{"$f":"I46-J46","v":0},0,{"$f":"MAX(I47:I50)","v":0}]
[null,"4.1","¿requiere permisos o licencias ambientales como recolección de especímenes, colecciones biológicas, manipulación o movilización de recursos bilógicas?",null,"No",null,17,null,0]
[null,null,{"$f":"$J$2","v":"Detalles:"},null,null,null,1,null,0]
[null,"4.2","¿requiere uso de recursos genéticos?",null,"No",null,5,null,0]
[null,null,{"$f":"$J$2","v":"Detalles:"},null,null,null,1,null,0]
[null,5,"Aspectos de Integridad científica",null,"No",null,4,{"$f":"I51-J51","v":0},0,{"$f":"MAX(I52:I62)","v":0}]
[null,"5.1","¿Podría darse un conflicto de interés no declarado entre quienes participan en el proyecto y/o las instituciones coejecutoras y/o las instancias de aprobación y seguimiento?",null,"No",null,25,null,0]
[null,null,{"$f":"$J$2","v":"Detalles:"},null,null,null,1,null,0]
[null,"5.2","¿Hay indicios de que se han fabricado o plagiado datos en la investigación?",null,"No",null,13,null,0]
[null,null,{"$f":"$J$2","v":"Detalles:"},null,null,null,1,null,0]
[null,"5.3","¿se presume que se incluye personal vinculado al proyecto que objetivamente podría no aportar técnica ni intelectualmente al proyecto?",null,"No",null,19,null,0]
[null,null,{"$f":"$J$2","v":"Detalles:"},null,null,null,1,null,0]
[null,"5.4","¿se estima que los recursos y tiempos de dedicación solicitados exceden lo necesario para financiación del proyecto o se prevé que los productos son escasos ante las capacidades y alcance de la propuesta?",null,"No",null,33,null,0]
[null,null,{"$f":"$J$2","v":"Detalles:"},null,null,null,1,null,0]
[null,"5.5","¿Podría darse un conflicto de interés no declarado entre quienes participan en el proyecto y/o las instituciones coejecutoras y/o las instancias de aprobación y seguimiento?",null,"No",null,25,null,0]
[null,null,{"$f":"$J$2","v":"Detalles:"},null,null,null,1,null,0]
[null,null,null,null,"No",null,0,null,0]
[null,6,"Existen otras razones que ameritan la revisión por parte del comité de ética de la investigación (indique cuales).",null,"No",null,18,{"$f":"I63-J63","v":0},0,{"$f":"SUM(I64:I66)","v":0}]
[null,"6.1",{"$f":"$J$2","v":"Detalles:"},null,null,null,1,null,0]
[null,null,"Especificaciones de ética de la investigación, bioética e integridad científica que deban ser ampliadas en detalle (indique cuales).",null,"No",null,18,null,0]
[null,"6.1",{"$f":"$J$2","v":"Detalles:"},null,null,null,{"$f":"IF(C66=\"\",0,LEN(TRIM(C66))-LEN(SUBSTITUTE(TRIM(C66),\" \",\"\"))+1)","v":1},null,0]
[null,null,null,null,null,null,null,null,0]
[null,null,null,null,null,null,{"$f":"IF(C68=\"\",0,LEN(TRIM(C68))-LEN(SUBSTITUTE(TRIM(C68),\" \",\"\"))+1)","v":0},null,0]
[null,null,null,null,null,null,{"$f":"IF(C69=\"\",0,LEN(TRIM(C69))-LEN(SUBSTITUTE(TRIM(C69),\" \",\"\"))+1)","v":0}]

{"sheet":"Cronograma","index":6,"n_rows":33,"n_cols":12,"rows_kept":33,"cut":false,"hidden":false,"merged":[[1,1,2,2]]}
[6,null,null,null,null,null,null,null,"*Pueden  Ocultar las Filas que no se utilicen.",null,null,{"$f":"(\"* Actualmente tiene \"&G7&\" meses de ejecución no superar los \"& G5&\" meses.\")","v":"* Actualmente tiene 0 meses de ejecución no superar los 12 meses."}]
[null,{"$f":"General!B2","v":"PRESENTACIÓN DE PROPUESTAS DE IDEAS \nINNOVADORAS 2025-1"},null,{"$f":"General!$H$2","v":"Fecha de Emisión: 2018/03/06"},{"$f":"General!$I$2","v":"IN-IE-F-7"}]
[null,null,null,{"$f":"General!$H$3","v":"Revisión N°:\n4"},{"$f":"\"Página \"&A1&\" de \"&Dt_TPG","v":"Página 6 de 11"}]
[]
["9.-","Cronograma de actividades a desarrollar",null,null,{"$f":"Integrantes!J6","v":12},null,{"$f":"E5","v":12},"Meses Máximo","Palabras"]
[]
[null,"No","Descripción básica de la actividad","Mes de Inicio","Duración en meses",null,{"$f":"MAX(G8:G27)","v":0},"Meses de ejecución actuales",{"$f":"SUM(I8:I27)","v":0},"<== Total de palabras"]
[null,{"$f":"ROW()-7","v":1},null,null,null,null,{"$f":"SUM(D8:E8)","v":0},null,{"$f":"IF(C8=\"\",0,LEN(TRIM(C8))-LEN(SUBSTITUTE(TRIM(C8),\" \",\"\"))+1)","v":0}]
[null,{"$f":"ROW()-7","v":2},null,null,null,null,{"$f":"SUM(D9:E9)","v":0},null,{"$f":"IF(C9=\"\",0,LEN(TRIM(C9))-LEN(SUBSTITUTE(TRIM(C9),\" \",\"\"))+1)","v":0}]
[null,3,null,null,null,null,0,null,0]
[null,4,null,null,null,null,0,null,0]
[null,5,null,null,null,null,0,null,0]
[null,6,null,null,null,null,0,null,0]
[null,7,null,null,null,null,0,null,0]
[null,8,null,null,null,null,0,null,0]
[null,9,null,null,null,null,0,null,0]
[null,10,null,null,null,null,0,null,0]
[null,11,null,null,null,null,0,null,0]
[null,12,null,null,null,null,0,null,0]
[null,13,null,null,null,null,0,null,0]
[null,14,null,null,null,null,0,null,0]
[null,15,null,null,null,null,0,null,0]
[null,16,null,null,null,null,0,null,0]
[null,17,null,null,null,null,0,null,0]
[null,18,null,null,null,null,0,null,0]
[null,19,null,null,null,null,0,null,0]
[null,20,null,null,null,null,0,null,0]
[]
[null,null,{"$f":"IF(G7>G5,L1,\".\")","v":"."}]
[]
[]
[]
[null,"*Pueden  Ocultar las Filas que no se utilicen."]

{"sheet":"Integrantes","index":7,"n_rows":42,"n_cols":29,"rows_kept":42,"cut":false,"hidden":false,"merged":[[37,6,37,7],[10,6,10,7],[25,25,25,26],[35,1,37,1],[20,1,22,1],[23,1,25,1],[26,1,28,1],[29,1,31,1],[32,1,34,1],[21,5,21,7],[24,5,24,7],[33,5,33,7],[36,5,36,7],[27,5,27,7],[11,1,13,1],[14,1,16,1],[17,1,19,1],[13,6,13,7],[16,6,16,7],[19,6,19,7],[2,1,3,4],[2,6,2,7],[3,6,3,7],[8,1,10,1],[9,5,9,7],[31,6,31,7],[34,6,34,7],[30,5,30,7],[18,5,18,7],[12,5,12,7],[15,5,15,7],[22,6,22,7],[25,6,25,7],[28,6,28,7]]}
[8]
[]
[null,{"$f":"General!B2","v":"PRESENTACIÓN DE PROPUESTAS DE IDEAS \nINNOVADORAS 2025-1"},null,null,null,{"$f":"General!$H$2","v":"Fecha de Emisión: 2018/03/06"},"IN-IV-F-14"]
[null,null,null,null,null,{"$f":"General!$H$3","v":"Revisión N°:\n4"},{"$f":"\"Página \"&A1&\" de \"&Dt_TPG","v":"Página 8 de 11"},{"$f":"\"Página \"&A2&\" de \"&Dt_TPG","v":"Página  de 11"},null,20]
[null,null,null,null,null,null,null,null,null,null,{"$f":"W5","v":0},null,null,null,null,null,null,null,null,null,null,null,{"$f":"IFERROR(VLOOKUP($Y$5,Dt_MsgERR,4,0),\".\")","v":0},"Integrantes",{"$f":"VLOOKUP($X$5,Dt_IndERR,2,0)","v":0}]
["11.-","Investigadores Integrantes del proyecto.",null,null,null,{"$f":"Cel_TP","v":"INO"},{"$f":"Cel_Fac","v":"CIAS"},{"$f":"V_Max","v":0},null,{"$f":"IF(F6=\"INO\",12,6)","v":12},null,null,null,null,null,null,null,null,null,null,null,null,"* Cuadro para tener relación entre Función y Tipo de Vinculo"]
[]
[null,"No","Identificación","Nombres","Apellidos","Nivel Académico","Mes","Horas",null,"Max","Min",null,null,null,null,null,null,null,null,null,null,null,"Función ","y","Vinculo","Mes","Fila","Max","Min"]
[null,1,null,null,null,null,{"$f":"J6","v":12},null,null,{"$f":"AB9","v":6},{"$f":"AC9","v":2},null,null,null,null,null,null,null,null,null,null,null,"Innovador Principal",{"$f":"$X$8&\"9:\"&$X$8&\"10\"","v":"y9:y10"},"Doc. Carrera TC",{"$f":"G9","v":12},{"$f":"ROW()","v":9},6,2]
[null,null,"Función :","Innovador Principal","Doc. Carrera TC",null,null,null,null,{"$f":"IFERROR(VLOOKUP($F10,V_IdNBC,2,0),0)","v":0},null,null,null,null,null,null,null,null,null,null,null,null,"Innovador Principal",{"$f":"$X$8&\"9:\"&$X$8&\"10\"","v":"y9:y10"},"Doc. Carrera MT",{"$f":"Z9","v":12},{"$f":"ROW()","v":10},6,2]
[null,null,"Correo:",null,null,"Teléfono / Celular",null,null,null,{"$f":"IFERROR(VLOOKUP($E10,$Y$8:$Z$23,2,0),12)","v":12},null,null,null,null,null,null,null,null,null,null,null,null,"Coinnovador",{"$f":"$X$8&\"11:\"&$X$8&\"15\"","v":"y11:y15"},"Doc. Carrera TC",{"$f":"Z10","v":12},{"$f":"ROW()","v":11},6,5]
[null,2,null,null,null,null,null,5,null,{"$f":"IFERROR(VLOOKUP($D13,$W$8:$AC$23,6,0),$J$9)","v":6},{"$f":"IFERROR(VLOOKUP($D13,$W$8:$AC$23,7,0),$K$9)","v":5},null,null,null,null,null,null,null,null,null,null,null,"Coinnovador",{"$f":"$X$8&\"11:\"&$X$8&\"15\"","v":"y11:y15"},"Doc. Carrera MT",{"$f":"Z11","v":12},{"$f":"ROW()","v":12},6,5]
[null,{"$f":"+B12","v":2},"Función :","Coinnovador",null,null,null,null,null,{"$f":"IFERROR(VLOOKUP($F13,V_IdNBC,2,0),0)","v":0},null,null,null,null,null,null,null,null,null,null,null,null,"Coinnovador",{"$f":"$X$8&\"11:\"&$X$8&\"15\"","v":"y11:y15"},"Doc. Ocasional",10,{"$f":"ROW()","v":13},6,5]
[null,{"$f":"+B13","v":2},{"$f":"C11","v":"Correo:"},null,null,{"$f":"F11","v":"Teléfono / Celular"},null,null,null,{"$f":"IFERROR(VLOOKUP($E13,$Y$8:$Z$23,2,0),12)","v":12},null,null,null,null,null,null,null,null,null,null,null,null,"Coinnovador",{"$f":"$X$8&\"11:\"&$X$8&\"15\"","v":"y11:y15"},"Estudiante",12,{"$f":"ROW()","v":14},6,5]
[null,{"$f":"B12+1","v":3},null,null,null,null,null,null,null,{"$f":"IFERROR(VLOOKUP($D16,$W$8:$AC$23,6,0),$J$9)","v":6},{"$f":"IFERROR(VLOOKUP($D16,$W$8:$AC$23,7,0),$K$9)","v":2},null,null,null,null,null,null,null,null,null,null,null,"Coinnovador",{"$f":"$X$8&\"11:\"&$X$8&\"15\"","v":"y11:y15"},"Egresado de la UMNG",{"$f":"Z12","v":12},{"$f":"ROW()","v":15},6,5]
[null,{"$f":"+B15","v":3},"Función :",null,null,null,null,null,null,{"$f":"IFERROR(VLOOKUP($F16,V_IdNBC,2,0),0)","v":0},null,null,null,null,null,null,null,null,null,null,null,null,"Egresado",{"$f":"$X$8&AA16&\":\"&$X$8&AA16","v":"y16:y16"},"Egresado de la UMNG",{"$f":"Z15","v":12},{"$f":"ROW()","v":16},6,2]
[null,{"$f":"+B16","v":3},{"$f":"C14","v":"Correo:"},null,null,{"$f":"F14","v":"Teléfono / Celular"},null,null,null,{"$f":"IFERROR(VLOOKUP($E16,$Y$8:$Z$23,2,0),12)","v":12},null,null,null,null,null,null,null,null,null,null,null,null,"Administrativo","y17:y17","Administrativo UMNG",{"$f":"Z16","v":12},{"$f":"ROW()","v":17},6,2]
[null,{"$f":"B15+1","v":4},null,null,null,null,null,null,null,{"$f":"IFERROR(VLOOKUP($D19,$W$8:$AC$23,6,0),$J$9)","v":6},{"$f":"IFERROR(VLOOKUP($D19,$W$8:$AC$23,7,0),$K$9)","v":2},null,null,null,null,null,null,null,null,null,null,null,"Contratista","y18:y18","Contratista UMNG",{"$f":"Z17","v":12},{"$f":"ROW()","v":18},6,2]
[null,{"$f":"+B18","v":4},"Función :",null,null,null,null,null,null,{"$f":"IFERROR(VLOOKUP($F19,V_IdNBC,2,0),0)","v":0},null,null,null,null,null,null,null,null,null,null,null,null,"Asistente OPS","y19:y19","OPS - Prestación Servicios",10,{"$f":"ROW()","v":19},6,2]
[null,{"$f":"+B19","v":4},{"$f":"C17","v":"Correo:"},null,null,{"$f":"F17","v":"Teléfono / Celular"},null,null,null,{"$f":"IFERROR(VLOOKUP($E19,$Y$8:$Z$23,2,0),12)","v":12},null,null,null,null,null,null,null,null,null,null,null,null,"Joven Investigador","y20:y20","OPS - Prestación Servicios",10,{"$f":"ROW()","v":20},6,2]
[null,{"$f":"B18+1","v":5},null,null,null,null,null,null,null,{"$f":"IFERROR(VLOOKUP($D22,$W$8:$AC$23,6,0),$J$9)","v":6},{"$f":"IFERROR(VLOOKUP($D22,$W$8:$AC$23,7,0),$K$9)","v":2},null,null,null,null,null,null,null,null,null,null,null,"Asesor","y21:y21","Externo",10,{"$f":"ROW()","v":21},6,2]
[null,{"$f":"+B21","v":5},"Función :",null,null,null,null,null,null,{"$f":"IFERROR(VLOOKUP($F22,V_IdNBC,2,0),0)","v":0},null,null,null,null,null,null,null,null,null,null,null,null,"Estudiante",{"$f":"$X$8&AA22&\":\"&$X$8&AA23","v":"y22:y23"},"Auxiliar  pregrado",6,{"$f":"ROW()","v":22},6,2]
[null,{"$f":"+B22","v":5},{"$f":"C20","v":"Correo:"},null,null,{"$f":"F20","v":"Teléfono / Celular"},null,null,null,{"$f":"IFERROR(VLOOKUP($E22,$Y$8:$Z$23,2,0),12)","v":12},null,null,null,null,null,null,null,null,null,null,null,null,"Estudiante",{"$f":"$X$8&AA22&\":\"&$X$8&AA23","v":"y22:y23"},"Auxiliar  postgrado",10,{"$f":"ROW()","v":23},6,2]
[null,{"$f":"B21+1","v":6},null,null,null,null,null,null,null,{"$f":"IFERROR(VLOOKUP($D25,$W$8:$AC$23,6,0),$J$9)","v":6},{"$f":"IFERROR(VLOOKUP($D25,$W$8:$AC$23,7,0),$K$9)","v":2}]
[null,{"$f":"+B24","v":6},"Función :",null,null,null,null,null,null,{"$f":"IFERROR(VLOOKUP($F25,V_IdNBC,2,0),0)","v":0}]
[null,{"$f":"+B25","v":6},{"$f":"C23","v":"Correo:"},null,null,{"$f":"F23","v":"Teléfono / Celular"},null,null,null,{"$f":"IFERROR(VLOOKUP($E25,$Y$8:$Z$23,2,0),12)","v":12},null,null,null,null,null,null,null,null,null,null,null,null,"Clasificación de grupo máximo asociado a la propuesta ",null,null,{"$f":"Gp_Max","v":"NR"}]
[null,{"$f":"B24+1","v":7},null,null,null,null,null,null,null,{"$f":"IFERROR(VLOOKUP($D28,$W$8:$AC$23,6,0),$J$9)","v":6},{"$f":"IFERROR(VLOOKUP($D28,$W$8:$AC$23,7,0),$K$9)","v":2},null,null,null,null,null,null,null,null,null,null,null,null,null,null,"Inv IP"]
[null,{"$f":"+B27","v":7},"Función :",null,null,null,null,null,null,{"$f":"IFERROR(VLOOKUP($F28,V_IdNBC,2,0),0)","v":0},null,null,null,null,null,null,null,null,null,null,null,null,"Grupos","Millón","Entre","Max","Min"]
[null,{"$f":"+B28","v":7},{"$f":"C26","v":"Correo:"},null,null,{"$f":"F26","v":"Teléfono / Celular"},null,null,null,{"$f":"IFERROR(VLOOKUP($E28,$Y$8:$Z$23,2,0),12)","v":12},null,null,null,null,null,null,null,null,null,null,null,null,"Avalados ",25,"20- 39",8,4]
[null,{"$f":"B27+1","v":8},null,null,null,null,null,null,null,{"$f":"IFERROR(VLOOKUP($D31,$W$8:$AC$23,6,0),$J$9)","v":6},{"$f":"IFERROR(VLOOKUP($D31,$W$8:$AC$23,7,0),$K$9)","v":2},null,null,null,null,null,null,null,null,null,null,null,"Reconocidos",50,"40-59",12,8]
[null,{"$f":"+B30","v":8},"Función :",null,null,null,null,null,null,{"$f":"IFERROR(VLOOKUP($F31,V_IdNBC,2,0),0)","v":0},null,null,null,null,null,null,null,null,null,null,null,null,"Mayores de Cat. C",75,"60-79",16,12]
[null,{"$f":"+B31","v":8},{"$f":"C29","v":"Correo:"},null,null,{"$f":"F29","v":"Teléfono / Celular"},null,null,null,{"$f":"IFERROR(VLOOKUP($E31,$Y$8:$Z$23,2,0),12)","v":12},null,null,null,null,null,null,null,null,null,null,null,null,"Mayores de Cat. C",100,"80-199",20,16]
[null,{"$f":"B30+1","v":9},null,null,null,null,null,null,null,{"$f":"IFERROR(VLOOKUP($D34,$W$8:$AC$23,6,0),$J$9)","v":6},{"$f":"IFERROR(VLOOKUP($D34,$W$8:$AC$23,7,0),$K$9)","v":2},null,null,null,null,null,null,null,null,null,null,null,"IMP",250,"200-300",24,10]
[null,{"$f":"+B33","v":9},"Función :",null,null,null,null,null,null,{"$f":"IFERROR(VLOOKUP($F34,V_IdNBC,2,0),0)","v":0}]
[null,{"$f":"+B34","v":9},{"$f":"C32","v":"Correo:"},null,null,{"$f":"F32","v":"Teléfono / Celular"},null,null,null,{"$f":"IFERROR(VLOOKUP($E34,$Y$8:$Z$23,2,0),12)","v":12}]
[null,{"$f":"B33+1","v":10},null,null,null,null,null,null,null,{"$f":"IFERROR(VLOOKUP($D37,$W$8:$AC$23,6,0),$J$9)","v":6},{"$f":"IFERROR(VLOOKUP($D37,$W$8:$AC$23,7,0),$K$9)","v":2},null,null,null,null,null,null,null,null,null,null,null,"Coinnovador",{"$f":"COUNTIF($D$8:$D$60,$W36)","v":1},{"$f":"SUMIF($H$13:$H$38,W36,$D$13:$D$38)","v":0}]
[null,{"$f":"+B36","v":10},"Función :",null,null,null,null,null,null,{"$f":"IFERROR(VLOOKUP($F37,V_IdNBC,2,0),0)","v":0},null,null,null,null,null,null,null,null,null,null,null,null,"Asistente OPS",{"$f":"COUNTIF($D$8:$D$60,$W37)","v":0}]
[null,{"$f":"+B37","v":10},{"$f":"C35","v":"Correo:"},null,null,{"$f":"F35","v":"Teléfono / Celular"},null,null,null,{"$f":"IFERROR(VLOOKUP($E37,$Y$8:$Z$23,2,0),12)","v":12},null,null,null,null,null,null,null,null,null,null,null,null,"Egresado",0]
[null,null,null,null,null,null,null,null,null,null,null,null,null,null,null,null,null,null,null,null,null,null,"Estudiante",0]
[null,null,null,null,null,null,null,null,null,null,null,null,null,null,null,null,null,null,null,null,null,null,"Administrativo",{"$f":"COUNTIF($D$8:$D$60,$W40)","v":0}]
[null,null,null,null,null,null,null,null,null,null,null,null,null,null,null,null,null,null,null,null,null,null,"Asesor",{"$f":"COUNTIF($D$8:$D$60,$W41)","v":0}]
[null,null,null,null,null,null,null,null,null,null,null,null,null,null,null,null,null,null,null,null,null,null,"Contratista",0]

{"sheet":"Productos","index":8,"n_rows":55,"n_cols":17,"rows_kept":55,"cut":false,"hidden":false,"merged":[[1,1,2,3],[39,2,39,5],[31,2,31,4],[32,2,32,4],[33,2,33,4],[34,2,34,4],[25,2,25,4],[26,2,26,4],[27,2,27,4],[28,2,28,4],[29,2,29,4],[30,2,30,4],[17,4,17,5],[18,4,18,5],[19,4,19,5],[20,4,20,5],[5,4,5,5],[12,4,12,5],[13,4,13,5],[14,4,14,5],[15,4,15,5],[6,4,6,5],[16,4,16,5],[7,4,7,5],[8,4,8,5],[9,4,9,5],[10,4,10,5],[11,4,11,5]]}
[7]
[null,{"$f":"General!B2","v":"PRESENTACIÓN DE PROPUESTAS DE IDEAS \nINNOVADORAS 2025-1"},null,null,{"$f":"General!$H$2","v":"Fecha de Emisión: 2018/03/06"},{"$f":"General!$I$2","v":"IN-IE-F-7"}]
[null,null,null,null,{"$f":"General!$H$3","v":"Revisión N°:\n4"},{"$f":"\"Página \"&A1&\" de \"&Dt_TPG","v":"Página 7 de 11"},null,null,"N","Ok","Abreviatura","Indicadores","Descripcion","Descripcion","Ok"]
[null,null,null,null,{"$f":"IF(F5=\"INV\",3,4)","v":4},null,null,null,{"$f":"ROW()-3","v":1},{"$f":"ABS(LEFT(K4,3))","v":201},{"$f":"VLOOKUP($I4,Dt_prod2,2,0)&\"- \"&VLOOKUP($I4,Dt_prod2,5,0)","v":"201- Software aprobado para registro ante la DNDA, de acuerdo con procedimientos establecidos por la UMNG."},{"$f":"CLEAN(TRIM(VLOOKUP($I4,Dt_prod2,7,0)))","v":"Soporte lógico registre el aval para el software que incluya : Manual técnico, Manual de usuario todos con la inclusión código de trazabilidad,"},0,null,{"$f":"COUNTIF($G$7:$G$21,$J4)","v":0}]
[null,"Productividad comprometida",null,null,{"$f":"K25","v":"Modalidad 4"},{"$f":"General!$H$1","v":"INO"},null,null,{"$f":"ROW()-3","v":2},{"$f":"ABS(LEFT(K5,3))","v":202},"202- Esquema de trazado de circuito integrado registrado ante la SIC a través de acto administrativo que resuelva la concesión favorable.","Documento en el que se describa el esquema de trazado de circuito integrado obtenido con nombre, autor, fecha, cód. de trazabilidad y autores debidamente registrados según Res. vigente, Acto administrativo de la Superintendencia de Industria y Comercio que resuelva la concesión favorable.",0,null,{"$f":"COUNTIF($G$7:$G$21,$J5)","v":0}]
[null,"N°","Resultado/Producto esperado","Descripción o detalles del producto esperado","Indicador",null,null,null,3,203,"203- Regulaciones, normas, reglamentos o legislaciones implementadas internacionalmente, acorde con parámetros de Minciencias. ","\"Documento en el que se describa la regulación, norma, reglamento o legislación+CR10 obtenido con nombre, autor, fecha, cód. de trazabilidad y autores debidamente registrados según Res. vigente\" ,\"Certificado de la entidad o institución que emitió el producto, indicando la participación en su construcción de todos o de alguno de los integrantes del proyecto, título, país, ciudad, fecha de publicación / implementación, tipo de regulación, ámbito.",0,null,0]
[null,{"$f":"ROW()-6","v":1},null,null,{"$f":"IFERROR(VLOOKUP($G7,$J$3:$O$19,3,0),\" \")","v":" "},null,{"$f":"IFERROR(ABS(LEFT($C7,3)),0)","v":0},null,4,204,"204- Regulaciones, normas, reglamentos o legislaciones implementadas nacionalmente (no institucional), acorde con parámetros de Minciencias.","\"Documento en el que se describa la regulación, norma, reglamento o legislación+CR10 obtenido con nombre, autor, fecha, cód. de trazabilidad y autores debidamente registrados según Res. vigente\" ,\"Certificado de la entidad o institución que emitió el producto, indicando la participación en su construcción de todos o de alguno de los integrantes del proyecto, título, país, ciudad, fecha de publicación / implementación, tipo de regulación, ámbito.",0,null,0]
[null,{"$f":"ROW()-6","v":2},null,null,{"$f":"IFERROR(VLOOKUP($G8,$J$3:$O$19,3,0),\" \")","v":" "},null,{"$f":"IFERROR(ABS(LEFT($C8,3)),0)","v":0},null,5,206,"206- Informe Técnico Final sobre productos o servicios tecnológicos o innovadores","Documento con la siguiente información: título del informe, desarrollo del proyecto y alistamiento de la tecnología, fecha de elaboración.",0,null,0]
[null,3,null,null," ",null,{"$f":"IFERROR(ABS(LEFT($C9,3)),0)","v":0},null,6,207,"207- Productos o procesos tecnológicos usualmente no patentables (Prototipo) - Estado de desarrollo TRL4 - Validación a nivel de laboratorio.","Prototipo madurado en mínimo TRL 4 Validado por DDTI o Ente externo especializado y acompañado de: 1. Manual de funcionamiento según el formato establecido por VICEIN. 2.Registro fotográfico de los componentes del prototipo. 3.Registro fílmico sobre funcionamiento del prototipo.4.Soportes de pruebas y validación (según aplique)",0,null,0]
[null,4,null,null," ",null,0,null,7,208,"208- Productos o procesos tecnológicos (Prototipo) - Estado de desarrollo TRL5 - validación de componentes en entorno relevante.","Prototipo madurado en mínimo un nivel en la escala TRL comprometida o esperada, Validado por DDTI o Ente externo especializado y acompañado de: 1. Manual de funcionamiento según el formato establecido por VICEIN. 2.Registro fotográfico de los componentes del prototipo. 3.Registro fílmico sobre funcionamiento del prototipo. 4.Soportes de pruebas y validación (según aplique).",0,null,0]
[null,5,null,null," ",null,0,null,8,209,"209- Productos o procesos tecnológicos (Prototipo) - Estado de desarrollo TRL6 - Validación de sistema o subsistema en entorno relevante","Prototipo madurado en mínimo un nivel en la escala TRL comprometida o esperada, Validado por DDTI o Ente externo especializado y acompañado de: 1. Manual de funcionamiento según el formato establecido por VICEIN. 2.Registro fotográfico de los componentes del prototipo. 3.Registro fílmico sobre funcionamiento del prototipo. 4.Soportes de pruebas y validación (según aplique).",0,null,0]
[null,6,null,null," ",null,0,null,9,210,"210- Productos o procesos tecnológicos (Prototipo) - Estado de desarrollo TRL7 - Validación en entorno real.","Prototipo madurado en mínimo un nivel en la escala TRL comprometida o esperada, Validado por DDTI o Ente externo especializado y acompañado de: 1. Manual de funcionamiento según el formato establecido por VICEIN. 2.Registro fotográfico de los componentes del prototipo. 3.Registro fílmico sobre funcionamiento del prototipo. 4.Soportes de pruebas y validación (según aplique).",0,null,0]
[null,7,null,null," ",null,0,null,10,211,"211- Productos o procesos tecnológicos (Prototipo) - Estado de desarrollo TRL8 - Validación completa y certificación en entorno real.","Prototipo madurado en mínimo un nivel en la escala TRL comprometida o esperada, Validado por DDTI o Ente externo especializado y acompañado de: 1. Manual de funcionamiento según el formato establecido por VICEIN. 2.Registro fotográfico de los componentes del prototipo. 3.Registro fílmico sobre funcionamiento del prototipo. 4.Soportes de pruebas y validación (según aplique).",0,null,0]
[null,8,null,null," ",null,0,null,11,212,"212- Productos o procesos tecnológicos (Prototipo) - Estado de desarrollo TRL9 - Prueba exitosa en entorno real.","Prototipo madurado en mínimo un nivel en la escala TRL comprometida o esperada, Validado por DDTI o Ente externo especializado y acompañado de: 1. Manual de funcionamiento según el formato establecido por VICEIN. 2.Registro fotográfico de los componentes del prototipo. 3.Registro fílmico sobre funcionamiento del prototipo. 4.Soportes de pruebas y validación (según aplique).",0,null,0]
[null,9,null,null," ",null,0,null,12,305,"305- Documento de trabajo (Working Paper)","Título del documento, autor(es), año en que elaboró el documento, instituciones vinculadas en la realización del documento, Página WEB (del working paper) o DOI endonde se encuentra publicado el documento (si la tiene).",0,null,0]
[null,10,null,null," ",null,0,null,13,306,"306- Contenidos multimedia (video) con el detalle de la tecnología, utilidad.","Producción publicada de carácter audiovisual de calidad con participación de desarrolladores, financiadores y gestores relacionada con la ejecución del prototipado o mentoría y características técnicas de la tecnología o innovación, avances y resultados.",0,null,0]
[null,11,null,null," ",null,0,null,14,401,"401- De estudiantes en programas de posgrado de la UMNG, con temáticas DC","Acta de designación, anteproyecto con código de trazabilidad y acta de acompañamiento final",0,null,0]
[null,12,null,null," ",null,0,null,15,402,"402- De estudiantes en programas de posgrado de la UMNG, con temáticas MG","Acta de designación, anteproyecto con código de trazabilidad y acta de acompañamiento final",0,null,0]
[null,13,null,null," ",null,0,null,16,{"$f":"ABS(LEFT(K19,3))","v":403},"403- Joven investigador vinculado por mínimo ocho meses según los criterios de la Resolución vigente  sobre vinculación de personal a los proyectos de investigación financiados o cofinanciados por la UMNG en los programas de CTeI.","Contrato OPS , informe de actividades final.",0,null,0]
[null,14,null,null," ",null,0,null,17,404,"404- Dirección de Trabajo de grado de estudiantes en programas de pregrado de la UMNG, con temáticas asociadas a línea de investigación a la que pertenece el proyecto.","Copia del acta sustentación del proyecto de grado",0,null,0]
[null,15,null,null," ",null,0,null,18,405,"405- Tutoría de un proyecto de iniciación científica de estudiantes de la UMNG, con temáticas asociadas a línea de investigación a la que pertenece el proyecto.","Informe final y acta del Comité de investigaciones con el aval del cierre del PIC",0,null,0]
[]
[null,{"$f":"N25","v":"Error falta información de carácter obligatorio : Pendiente Producto Cod.206 (Informe técnico final), Pendiente Producto Cod.305 (Working Paper), Pendiente Producto Cod.306 (Videos)."}]
[]
[11,null,{"$f":"\"Estado de madurez del desarrollo (TRL): para \"&K25","v":"Estado de madurez del desarrollo (TRL): para Modalidad 4"},{"$f":"General!C13","v":"Modalidad 4. Oportunidades de Transferencia para productos o servicios no patentables"},null,null,null,null,null,null,{"$f":"IFERROR(LEFT(General!C13,11),\" \")","v":"Modalidad 4"},"Productos Obligatorios",null,{"$f":"TRIM(L29&\" \"&N26&\" \"&N27&\" \"&N28&\" \"&N29)","v":"Error falta información de carácter obligatorio : Pendiente Producto Cod.206 (Informe técnico final), Pendiente Producto Cod.305 (Working Paper), Pendiente Producto Cod.306 (Videos)."}]
[null,null,null,null,null,null,null,null,null,null,null,null,206,{"$f":"IF(O26=0,Q26,\" \")","v":"Pendiente Producto Cod.206 (Informe técnico final), "},{"$f":"O8","v":0},null,"Pendiente Producto Cod.206 (Informe técnico final), "]
[null,1,"Funcionalidad básica / principios demostrados por análisis. Mostrará que la idea es tecnológicamente concebible.",null,null,"No Aplica",null,null,{"$f":"ABS(RIGHT($K27))","v":1},null,"Modalidad 1",{"$f":"IFERROR(ABS(RIGHT(K25)),0)","v":4},"207 al 212",{"$f":"IF(AND(O27=0,L27<3),Q27,\" \")","v":" "},{"$f":"SUM(O9:O14)","v":0},null,"Pendiente un producto del Cod. 207 al 212 (Prototipo), "]
[null,2,"Estudios analíticos, pruebas a pequeña escala en ambiente de laboratorio. Demostrarán que la tecnología puede cumplir con objetivos específicos con un desarrollo adicional. Las aplicaciones prácticas pueden ser inventadas. Las aplicaciones son especulativas y es posible que no haya pruebas o análisis detallados para respaldar las suposiciones.",null,null,"No Aplica",null,null,{"$f":"ABS(RIGHT($K28))","v":1},null,"Modalidad 1",{"$f":"LEN(CONCATENATE(N29,N28,N27,N26))","v":133},305,{"$f":"IF(O28=0,Q28,\" \")","v":"Pendiente Producto Cod.305 (Working Paper), "},{"$f":"O15","v":0},null,"Pendiente Producto Cod.305 (Working Paper), "]
[null,3,"Los estudios analíticos y / o los estudios de laboratorio ofrecen resultados que validan las predicciones / objetivo.  Si es relevante, validación de elementos separados de la tecnología. (Los ejemplos pueden incluir componentes que pueden no estar integrados o ser representativos). Prueba de concepto.",null,null,"No Aplica",null,null,1,null,"Modalidad 1",{"$f":"IF(L28>4,\" Error falta información de carácter obligatorio : \",\" \")","v":" Error falta información de carácter obligatorio : "},306,{"$f":"IF(O29=0,Q29,\" \")","v":"Pendiente Producto Cod.306 (Videos)."},{"$f":"O16","v":0},null,"Pendiente Producto Cod.306 (Videos)."]
[null,4,"Construcción de prototipos, se demuestra la funcionalidad mediante pruebas en un rango limitado de condiciones de operación. Si es escalable, estas pruebas se realizan en versiones escaladas. Primer prototipo de laboratorio",null,null,"No Aplica",null,null,2,null,"Modalidad2"]
[null,5,"Primer uso del prototipo a escala real: tecnología  calificada mediante pruebas en el entorno deseado, simulado o real. El nuevo hardware ahora está listo para el primer uso. Prototipo de laboratorio mejorado.",null,null,"No Aplica",null,null,2,null,"Modalidad2",null,1,"F30:F31"]
[null,6,"Modelo / prototipo representativo probado y validado en un entorno relevante. Representa un avance importante en la disponibilidad demostrada de una tecnología (los ejemplos pueden incluir probar un prototipo en un entorno de laboratorio de alta fidelidad do en un entorno operativo simulado).",null,null,"No Aplica",null,null,2,null,"Modalidad2",null,2,"F30:F33"]
[null,7,"La integración de tecnología se prueba en un entorno operativo. La tecnología a escala completa está integrada para la prueba en el sistema operativo previsto con una interfaz y funcionalidad completas. Prototipo validado en entorno real.",null,null,"No Aplica",null,null,3,null,"Modalidad3",null,3,"F33:F35"]
[null,8,"El programa de prueba se realiza en el entorno previsto: la tecnología muestra un rendimiento y fiabilidad aceptables durante un período de tiempo. Prototipo comercial.",null,null,"No Aplica",null,null,3,null,"Modalidad3",null,4,"F30:F35"]
[null,9,"La aplicación real de la tecnología está en su forma final: tecnología probada a través de operaciones exitosas.",null,null,"No Aplica",null,null,4,null,"Modalidad4"]
[]
[]
[11,null,"Explique el estado de madurez del desarrollo (TRL) selcccinado:"]
[]
[null,1]
[]
[]
[]
[]
[]
[]
[]
[]
[]
[]
[]
[]
[]
[]
[null,null,null,null,null,null,null,null,null,null,"Idea / propuesta no probada. El concepto aún se encuentra en el papel. No se han realizado análisis o pruebas."]

{"sheet":"Impactos","index":9,"n_rows":45,"n_cols":15,"rows_kept":45,"cut":false,"hidden":false,"merged":[[18,2,18,6],[1,2,2,4],[7,5,7,6],[8,5,8,6],[9,2,9,6],[11,2,11,6],[12,2,12,3],[12,4,12,6],[13,2,13,3],[13,4,13,6],[15,2,15,6],[16,2,16,6],[17,2,17,6],[31,4,31,6],[32,4,32,6],[19,2,19,6],[20,2,20,6],[21,2,21,6],[23,2,23,6],[29,4,29,6],[30,4,30,6]]}
[10,null,null,null,null,null,null,null,"*Pueden  Ocultar las Filas que no se utilicen."]
[null,null,{"$f":"Objetivos!B2","v":"PRESENTACIÓN DE PROPUESTAS DE IDEAS \nINNOVADORAS 2025-1"},null,null,"Fecha de Emisión: 2019/03/18","IN-IV-F-14",null,null,"Palabras Mínimas"]
[null,null,null,null,null,"Revisión N°:\n4",{"$f":"\"Página \"&$A$1&\" de \"&Dt_TPG","v":"Página 10 de 11"},null,{"$f":"SUM(I7:I3517)","v":55},"<== Total de palabras",null,null,"Tipo de Impacto (Objetivos de Desarrollo Sostenible): Link Presione",null,{"$f":"COUNTIF(N17:N25,0)","v":9}]
[]
["14.-","#","Impactos asociados a la propuesta.",null,null,null,null,null,"Largo"]
[null,null,null,null,null,null,null,null,null,null,null,null,"Explicaciones"]
[null,"N°","Describa  en detalle el impacto a desarrollar en el proyecto",null,null,null,null,null,{"$f":"IF(C7=\"\",0,LEN(TRIM(C7))-LEN(SUBSTITUTE(TRIM(C7),\" \",\"\"))+1)","v":10}]
[null,{"$f":"ROW()-7","v":1},"Impacto principal",null,"Principal objetivo de desarrollo sostenible:",null,null,null,{"$f":"IF(C8=\"\",0,LEN(TRIM(C8))-LEN(SUBSTITUTE(TRIM(C8),\" \",\"\"))+1)","v":2},null,null,null,"Transferencia e intercambio de conocimiento","Promover el desarrollo de iniciativas de extensión y transferencia del conocimiento científico y tecnológico que permitan su efectiva integración a contextos locales y sociales específicos, contribuyendo a su desarrollo."]
[null,{"$f":"ROW()-7","v":2},"Alcance",null,"Líneas de apropiación social",null,null,null,{"$f":"IF(E9=\"\",0,LEN(TRIM(E9))-LEN(SUBSTITUTE(TRIM(E9),\" \",\"\"))+1)","v":4},null,null,null,"Gestión del conocimiento para la apropiación","Incentivar el desarrollo de mecanismos de formación y medición para construir conocimiento acerca de las diversas formas en que el conocimiento científico tecnológico es apropiado en la sociedad colombiana, por los diversos grupos e individuos que la componen"]
[null,{"$f":"ROW()-7","v":3},{"$f":"IFERROR(M13,\".\")","v":"."},null,null,null,null,null,{"$f":"IF(C10=\"\",0,LEN(TRIM(C10))-LEN(SUBSTITUTE(TRIM(C10),\" \",\"\"))+1)","v":1},null,null,null,"Participación ciudadana en CTeI","Fomentar la participación ciudadana en la construcción de política pública en CTI, fortaleciendo las capacidades de la sociedad para tomar decisiones que contribuyan a la resolución de conflictos que involucran conocimientos científico-tecnológicos."]
[null,null,null,null,null,null,null,null,null,null,null,null,"Comunicación del conocimiento","Favorecer el desarrollo de proyectos de comunicación reflexivos y contextualizados para la comprensión, el diálogo y la formación de opinión sobre las relaciones ciencia, tecnología, innovación y sociedad."]
[null,".","Evaluación de nivel de maduración tecnológica actual (TRL)"]
[null,{"$f":"ROW()-9","v":4},"Estado actual de la TRL",null,null,null,null,null,{"$f":"IF(C13=\"\",0,LEN(TRIM(C13))-LEN(SUBSTITUTE(TRIM(C13),\" \",\"\"))+1)","v":5},null,{"$f":"IFERROR(ABS(RIGHT(LEFT(E13,6),2)),-1)","v":-1},null,{"$f":"IFERROR(\"Tener en cuenta :\"& VLOOKUP($F$9,M6:P11,2,0),\".\")","v":"."}]
[null,{"$f":"ROW()-9","v":5},"TRL Comprometida al finalizar el proyecto",null,null,null,null,null,{"$f":"IF(C14=\"\",0,LEN(TRIM(C14))-LEN(SUBSTITUTE(TRIM(C14),\" \",\"\"))+1)","v":6},null,{"$f":"IFERROR(ABS(RIGHT(LEFT(E14,6),2)),0)","v":0}]
[null,null,null,null,null,null,null,null,{"$f":"IF(C15=\"\",0,LEN(TRIM(C15))-LEN(SUBSTITUTE(TRIM(C15),\" \",\"\"))+1)","v":0},null,{"$f":"IFERROR(IF(K13<K14,\"\",\"No esta  bien definido la selección de los SRL. Por favor confirmar.\"),\"\")","v":""},null,"Validación de diligenciamiento de Impactos"]
[null,{"$f":"ROW()-8","v":8},"Evolución del impacto alcanzado como resultado de proyectos anteriores",null,null,null,null,null,{"$f":"IF(C16=\"\",0,LEN(TRIM(C16))-LEN(SUBSTITUTE(TRIM(C16),\" \",\"\"))+1)","v":9},null,null,null,null,{"$f":"VLOOKUP($O$16,$L$17:$O$45,2,0)","v":"Impacto principal"},{"$f":"MAX(O17:O45)","v":10}]
[null,9,null,null,null,null,null,null,{"$f":"IF(C17=\"\",0,LEN(TRIM(C17))-LEN(SUBSTITUTE(TRIM(C17),\" \",\"\"))+1)","v":0},null,null,10,{"$f":"IF(N17=0,C8,\"\")","v":"Impacto principal"},{"$f":"LEN(D8)","v":0},{"$f":"IF(N17=0,L17,0)","v":10}]
[null,10,"Descripción de los Beneficiario(s) del impacto del proyecto",null,null,null,null,null,8,null,null,{"$f":"L17-1","v":9},{"$f":"IF(N18=0,C9,\"\")","v":"Alcance"},{"$f":"LEN(D9)","v":0},{"$f":"IF(N18=0,L18,0)","v":9}]
[null,11,null,null,null,null,null,null,0,null,null,{"$f":"L18-1","v":8},{"$f":"IF(N19=0,E8,\"\")","v":"Principal objetivo de desarrollo sostenible:"},{"$f":"LEN(F8)","v":0},8]
[null,12,"Descripción del impacto esperado.",null,null,null,null,null,4,null,null,7,{"$f":"IF(N20=0,E9,\"\")","v":"Líneas de apropiación social"},{"$f":"LEN(F9)","v":0},7]
[null,13,null,null,null,null,null,null,0,null,null,6,{"$f":"IF(N21=0,C16,\"\")","v":"Evolución del impacto alcanzado como resultado de proyectos anteriores"},{"$f":"LEN(C17)","v":0},6]
[null,14,null,null,null,null,null,null,0,null,null,5,{"$f":"IF(N22=0,C18,\"\")","v":"Descripción de los Beneficiario(s) del impacto del proyecto"},{"$f":"LEN(C19)","v":0},5]
[null,15,null,null,null,null,null,null,{"$f":"IF(C24=\"\",0,LEN(TRIM(C24))-LEN(SUBSTITUTE(TRIM(C24),\" \",\"\"))+1)","v":6},null,null,4,{"$f":"IF(N23=0,C20,\"\")","v":"Descripción del impacto esperado."},{"$f":"LEN(C21)","v":0},4]
[null,16,"DATOS DANE ( Diligenciamiento Opcional )",null,null,null,null,null,null,null,null,3,{"$f":"IF(N24=0,C13,\"\")","v":"Estado actual de la TRL"},{"$f":"LEN(E13)","v":0},3]
[null,null,null,null,null,null,null,null,null,null,null,2,{"$f":"IF(N25=0,C14,\"\")","v":"TRL Comprometida al finalizar el proyecto"},{"$f":"LEN(E14)","v":0},2]
[]
[null,null,null,null,null,null,null,null,null,null,null,{"$f":"IFERROR(VLOOKUP(\"Impactos\",Dt_IndERR,2,0),\".\")","v":0},{"$f":"IFERROR(VLOOKUP(L27,Dt_MsgERR,4,0),\".\")","v":0}]
[]
[null,null,"Datos solicitados  DANE",null,"Seleccione los (4)cuatro ítem en listas desplegables",null,null,null,{"$f":"SUM(I30:I33)","v":0}]
[null,null,"1. Tipo de proyecto que aplica ",null,null,null,null,null,{"$f":"LEN(E30)","v":0}]
[null,null,"2. Área de conocimiento",null,null,null,null,null,{"$f":"LEN(E31)","v":0}]
[null,null,"3. Objetivo 1 Socio económico",null,null,null,null,null,{"$f":"LEN(E32)","v":0}]
[null,null,"4. Objetivo 2 Socio económico",null,null,null,null,null,{"$f":"LEN(E33)","v":0}]
[]
[]
[]
[]
[]
[]
[]
[]
[]
[]
[]
[null,null,"*Pueden  Ocultar las Filas que no se utilicen ( Favor no eliminar filas)."]

{"sheet":"Presupuesto","index":10,"n_rows":169,"n_cols":31,"rows_kept":169,"cut":false,"hidden":false,"merged":[[131,1,133,1],[2,1,3,6],[6,3,6,8],[7,3,7,5],[7,7,7,8],[110,1,112,1],[113,1,115,1],[116,1,118,1],[119,1,121,1],[122,1,124,1],[125,1,127,1],[128,1,130,1],[160,3,161,3],[160,4,161,8],[134,1,136,1],[137,1,139,1],[140,1,142,1],[143,1,145,1],[146,1,148,1],[158,4,158,8]]}
[9,null,null,null,null,null,null,null,null,null,null,null,null,null,null,null,null,null,"Tabla de Topes",null,null,"Validación",{"$f":"IF(P2=\"INV\",2,3)","v":3},null,"Productividad Vs Presupuesto",null,null,null,"Modalidad"]
[null,null,null,null,null,null,null,null,null,null,null,null,"1.-> Limite presupuestal",{"$f":"IF(MIN(N6:P6)<1, 20000000,MIN(N6:P6))","v":125000000},null,{"$f":"H10","v":"INO"},null,"Clasif","INV","IMP",null,"A",{"$f":"IFERROR(VLOOKUP($V2,$R$2:$T$9,W$1,0),0)","v":0},null,{"$f":"INT(W8/10)*10","v":0},"Pts","$$$$",null,"Mod","Monto","Acompa"]
[null,{"$f":"Productos!B2","v":"PRESENTACIÓN DE PROPUESTAS DE IDEAS \nINNOVADORAS 2025-1"},null,null,null,null,null,"Fecha de Emisión: 2019/03/18","IN-IV-F-14",null,null,null,null,"Limite Grupo","Modalidad","Limite Convo",null,"A",{"$f":"AA7","v":80},0,null,"",{"$f":"IFERROR(VLOOKUP($V3,$R$2:$T$9,W$1,0),0)","v":0},null,{"$f":"IF($Y$2>Z3,0,1)","v":1},20,20,null,1,50,25]
[null,null,null,null,null,null,null,"Revisión N°:\n4",{"$f":"\"Página \"&$A$1&\" de \"&Dt_TPG","v":"Página 9 de 11"},null,null,null,"Mayor Grupo",{"$f":"MAX($W$2:$W$5)","v":0},{"$f":"IFERROR(ABS(RIGHT(LEFT(General!C13,11))),0)","v":4},{"$f":"IF(H10=\"INO\",MAX(AD2:AD10),$AA$8)","v":125},null,"A1",{"$f":"AA7","v":80},0,null,"",{"$f":"IFERROR(VLOOKUP($V4,$R$2:$T$9,W$1,0),0)","v":0},null,{"$f":"IF($Y$2>Z4,0,1)","v":1},40,50,null,2,{"$f":"AD3","v":50},25]
[null,null,null,null,null,null,null,null,null,null,null,null,null,null,null,null,null,"B",{"$f":"AA6","v":60},0,null,null,0,null,1,50,50,null,3,70,25]
[null,null,null,null,null,null,null,null,null,null,null,null,1000000,{"$f":"O6","v":125000000},{"$f":"VLOOKUP($O$4,$AC$3:$AE$6,2,0)*M6","v":125000000},{"$f":"P4*M6","v":125000000},null,"C",{"$f":"AA5","v":50},0,null,null,null,null,1,60,60,null,4,125,25]
[null,"T","Título de la Propuesta :",{"$f":"General!B9","v":0},null,null,null,null,null,null,null,null,"Grupo principal -->>",{"$f":"V2","v":"A"},null,null,null,"R",{"$f":"AA4","v":50},0,null,null,null,null,1,80,80]
[null,"L","Líder responsable",{"$f":"General!C10","v":0},null,null,"Código VICEIN:",null,null,null,null,null,null,null,null,null,null,"NR",{"$f":"AA3","v":20},0,null,"Pts",{"$f":"V_Max","v":0},null,{"$f":"IF($Y$2<Z8,0,1)","v":0},90,80]
[null,null,null,null,null,null,null,null,null,null,null,null,null,null,null,null,null,"NA",0,0]
["12.-","Presupuesto rubro personal asociado a la propuesta",null,null,null,null,{"$f":"V_Max","v":0},{"$f":"Cel_TP","v":"INO"},{"$f":"Gp_Max","v":"NR"}]
[null,null,null,null,null,null,null,null,1.7]
[null,"a.","Personal de planta o ocasional que integra al proyecto de investigación.",null,null,null,null,"Valores de Contrapartida.",null,null,null,null,null,null,null,null,null,null,"Solo para Proyectos INV"]
[{"$f":"ROW()","v":13},"N°","Sueldo Neto","Factor ","Tipo de Vinculo UMNG","Numero de meses ","Número Horas / Semanal","Valor Final","Identificación",4,null,"*tabla de consolidación por año para proyectos IMP"]
[null,{"$f":"ROW()-$A$13","v":1},null,{"$f":"I11","v":1.7},{"$f":"INDIRECT($I$24&\"E\"&$J14+1,1)","v":"Doc. Carrera TC"},{"$f":"INDIRECT($I$24&\"G\"&$J14,1)","v":12},{"$f":"INDIRECT($I$24&\"H\"&$J14,1)","v":0},{"$f":"IFERROR(INT(((C14*F14)/40)*G14*$I$11),0)","v":0},{"$f":"INDIRECT($I$24&\"C\"&$J14,1)","v":0},9,null,0,"Tipo Vinculo UMNG","Año1","Año2",null,"Validación Presupuestal"]
[null,{"$f":"ROW()-$A$13","v":2},null,{"$f":"D14","v":1.7},0,0,0,{"$f":"IFERROR(INT(((C15*F15)/40)*G15*$I$11),0)","v":0},"Función :",{"$f":"J14+$J$13","v":13},null,1,"Doc. Carrera TC",{"$f":"(SUMIF($E$14:$E$23,$M15,$H$14:$H$23)/2)","v":0},{"$f":"N15","v":0},null,{"$f":"\"Validación de \"&M38","v":"Validación de (Au.) -Auxiliar Pregrado"},null,"Ajustado por adenda no 2"]
[null,3,null,{"$f":"D15","v":1.7},0,0,0,0,"Correo:",{"$f":"J15+$J$13","v":17},null,2,"Doc. Carrera MT",{"$f":"(SUMIF($E$14:$E$23,$M16,$H$14:$H$23)/2)","v":0},{"$f":"N16","v":0},null,"Parte","Cantidad","por uno solo","Debe ser","Error de Asistente"]
[null,4,null,1.7,0,0,0,0,0,21,null,3,"Doc. Ocasional",{"$f":"SUMIF($E$14:$E$23,$M17,$H$14:$H$23)","v":0},0,null,"No de AU Preg",{"$f":"COUNTIF($E$29:$E$44,$M$38)","v":0},null,1,0,null,null,25,0.1,null,0.05]
[null,5,null,1.7,0,0,0,0,"Función :",25,null,1,"Contrapartida Facultad  IMP:",{"$f":"SUM(N15:N17)","v":0},{"$f":"SUM(O15:O17)","v":0},null,"No Horas",{"$f":"SUMIF($E$29:$E$43,$M$38,G29:G43)","v":0},{"$f":"IFERROR(R18/R17,0)","v":0},20,{"$f":"IF(S18<=T18,0,1)","v":0},null,null,50,0.1,null,0.1]
[null,6,null,1.7,0,0,0,0,"Correo:",29,null,2,"Contrapartida Facultad  INV:",{"$f":"SUM(N15:O17)","v":0},null,null,"No Meses",{"$f":"SUMIF($E$29:$E$43,$M$38,F29:F43)","v":0},{"$f":"IFERROR(R19/R17,0)","v":0},6,{"$f":"IF(S19=T19,0,1)","v":1},null,null,75,0.1,null,0.15]
[null,7,null,1.7,0,0,0,0,0,33,null,null,null,null,null,null,null,null,null,"Si  es Mas de 1 tiene problema en Auxiliar de pregrado --->>",{"$f":"SUM(U17:U19)","v":1},null,null,100,0.1,null,0.15]
[null,8,null,1.7,0,0,0,0,"Función :",37,null,null,null,null,null,null,"Estimulo a estudiantes",null,{"$f":"INT(N2/1000000)","v":125},{"$f":"SUM(R36:R40)","v":0},{"$f":"T21/N2","v":0},null,null,250,0.1,null,0.15]
[null,9,null,1.7,0,0,0,0,0,41,null,null,null,null,null,null,"Limite inferior de estimulo a estudiantes",null,null,{"$f":"(S21*1000000)*U22","v":11250000},0.09]
[null,10,null,1.7,0,0,0,0,0,45,null,null,null,null,null,null,null,null,null,{"$f":"ABS(T22-T21)","v":11250000}]
[null,null,"Sumatoria del calculo de personal de planta \"Valor contrapartida Facultades\": Diligenciado VICEIN",null,null,null,null,{"$f":"IFERROR(INT(SUBTOTAL(109,H14:H23)),0)","v":0},"Integrantes!",null,null,null,"Incremento al salario"]
[null,null,null,null,null,null,null,null,null,null,null,null,0,null,null,{"$f":"(J26/6)/6","v":0}]
[null,"b. ","Asistentes externos o temporales contratados OPS y Estimulo Estudiantes.",null,null,null,null,null,null,null,{"$f":"IFERROR(VLOOKUP($E26,Dt_OPS,3,0)/10,0)","v":0},null,"Valor SMLV","Max Mes"]
[null,">","Salario  Mínimo Legal Vigente (SMIV) : ",null,null,1300000,null,null,null,null,null,null,{"$f":"F27*(1+M25)","v":1300000},{"$f":"Integrantes!G9","v":12}]
[]
[{"$f":"ROW()","v":29},"No","Valor mensual","Factor Salarial","Tipo de vinculación",{"$f":"\"Número de meses\"","v":"Número de meses"},"Número Horas / Semanal","Valor total","Valores  de entidades externas","Máximos","(Au.) ","No","Tipo","Valor total del contrato (10 mes)","SMMLV por 10 Meses","Valor mes contrato","Hay","Hay en $",null,null,null,"Valor mes contrato",null,"Va desde hasta","Salarios Mínimos",null,"Figuras","arranca desde","Máximo Factor"]
[null,{"$f":"ROW()-$A$29","v":1},{"$f":"IFERROR(H30/F30,0)","v":0},{"$f":"IFERROR(VLOOKUP($E30,Dt_OPS,3,0)/10,0)","v":0},null,12,"No Aplica",{"$f":"INT(IF($E30=$M$38,J30,$F$27*D30*F30))","v":0},null,{"$f":"IF($E30=$M$38,K30,IFERROR(VLOOKUP($E30,$M$29:$O$40,2,0),0)*IF($H$10=\"IMP\",2,1))","v":0},{"$f":"IFERROR(IF(FIND($K$29,$E30,1)=1,VLOOKUP($E30,$M$38:$AC$40,2,0),0),0)/IF($E30=$M$38,10,1)","v":0},1,"(A.I.) -Técnico",{"$f":"$P30*INT($N$27)","v":31200000},20,{"$f":"$F$27*(O30/10)","v":2600000},{"$f":"COUNTIF($E$29:$E$44,$M30)","v":0},{"$f":"SUMIF($E$30:$E$44,$M30,$H$30:$H$44)","v":0},null,null,null,1475434,null,{"$f":"\"Y\"&ROW()","v":"Y30"},6,null,{"$f":"E30","v":0},{"$f":"IFERROR(VLOOKUP($AA30,$M$29:$S$40,7,0)/10,0)","v":0},{"$f":"IFERROR(VLOOKUP($AA30,$M$29:$R$40,3,0)/IF($AA30=$M$38,6,10),0)","v":0}]
[null,{"$f":"ROW()-$A$29","v":2},{"$f":"IFERROR(H31/F31,0)","v":0},{"$f":"IFERROR(VLOOKUP($E31,Dt_OPS,3,0)/10,0)","v":0},null,12,"No Aplica",{"$f":"INT(IF($E31=$M$38,J31,$F$27*D31*F31))","v":0},null,{"$f":"IF($E31=$M$38,K31,IFERROR(VLOOKUP($E31,$M$29:$O$40,2,0),0)*IF($H$10=\"IMP\",2,1))","v":0},{"$f":"IFERROR(IF(FIND($K$29,$E31,1)=1,VLOOKUP($E31,$M$38:$AC$40,2,0),0),0)/IF($E31=$M$38,10,1)","v":0},2,"(A.I.) -Profesional",{"$f":"$P31*INT($N$27)","v":46800000},30,{"$f":"$F$27*(O31/10)","v":3900000},0,0,null,null,null,2582009.5,null,{"$f":"\"Y\"&ROW()","v":"Y31"},{"$f":"Y30-0.5","v":5.5},null,{"$f":"E31","v":0},{"$f":"IFERROR(VLOOKUP($AA31,$M$29:$S$40,7,0)/10,0)","v":0},{"$f":"IFERROR(VLOOKUP($AA31,$M$29:$R$40,3,0)/IF($AA31=$M$38,6,10),0)","v":0}]
[null,3,0,0,null,12,"No Aplica",0,null,0,0,3,"(A.I.) -Profesional especializado",54600000,35,4550000,0,0,null,null,null,2950868,null,"Y32",{"$f":"Y31-0.5","v":5},null,0,0,0]
[null,4,0,0,null,12,"No Aplica",0,null,0,0,4,"(A.I.) -Profesional magister",93600000,60,7800000,0,0,null,null,null,3319726.5,null,"Y33",4.5,null,0,0,0]
[null,5,0,0,null,12,"No Aplica",0,null,0,0,5,"(A.I.) -Profesional doctorado",124800000,80,10400000,0,0,null,null,null,4057443.5,null,"Y34",4,null,0,0,0]
[null,6,0,0,null,12,"No Aplica",0,null,0,0,6,"(J.I)  -Joven investigador",46800000,30,3900000,0,0,null,null,null,2582009.5,null,"Y35",3.5,null,0,0,0]
[null,7,0,0,null,12,"No Aplica",0,null,0,0,7,null,70200000,45,5850000,0,0,"(A.G) -Asistente graduado Mg.",null,null,3688585,null,"Y36",3,null,0,0,0]
[null,8,0,0,null,12,"No Aplica",0,null,0,0,8,null,93600000,60,7800000,0,0,"(A.G) -Asistente graduado Dr.",null,null,5164019,null,"Y37",2.5,null,0,0,0]
[null,9,0,0,null,12,"No Aplica",0,null,0,0,9,"(Au.) -Auxiliar Pregrado",{"$f":"$M$27*O38","v":52000000},40,{"$f":"F27*3","v":3900000},0,0,null,null,null,"NA",null,"Y38",2,null,0,0,0]
[null,10,0,0,null,12,"No Aplica",0,null,0,0,10,"(Au.) -Auxiliar Postgrado Mg.",{"$f":"$P39*INT($N$27)","v":39000000},25,{"$f":"$F$27*(O39/10)","v":3250000},0,0,null,null,null,"NA",null,"Y39",1.5,null,{"$f":"E39","v":0},0,0]
[null,11,0,0,null,12,"No Aplica",0,null,0,0,11,"(Au.) -Auxiliar Postgrado Dr.",54600000,35,4550000,0,0,null,null,null,"NA",null,"Y40",1,null,{"$f":"E40","v":0},0,0]
[null,12,0,0,null,12,"No Aplica",0,null,0,0,null,null,"Salario 12 meses",null,null,null,null,null,null,null,null,null,"Y41",0.5,null,{"$f":"E41","v":0},0,0]
[null,13,0,0,null,12,"No Aplica",0,null,0,0,null,null,null,null,null,null,null,null,null,null,null,null,null,null,null,{"$f":"E42","v":0},0,0]
[null,14,0,0,null,0,"No Aplica",0,null,0,0,null,"Joven investigador Colciencias",{"$f":"M27*3*12","v":46800000},null,null,null,null,null,null,null,null,null,null,null,null,{"$f":"E43","v":0},0,0]
[null,{"$f":"14-COUNTIF(E30:E43,\"\")","v":0},"Sumatoria del cálculo de OPS  \"Valor financiado VICEIN\" en rubro de (Personal):",null,null,null,{"$f":"IF(H44>N2,\"Esta superando el total de presupuesto\",\"\")","v":""},{"$f":"IFERROR(INT(SUM(H30:H43)),0)","v":0},0,{"$f":"IFERROR(VLOOKUP($E44,$M$29:$O$40,2,0),0)*IF($H$10=\"IMP\",2,1)","v":0}]
[null,null,null,null,null,null,null,null,null,null,null,null,{"$f":"IFERROR(VLOOKUP($O$45,Dt_MsgERR,4,0),\".\")","v":0},"Presupuesto",{"$f":"VLOOKUP($N$45,Dt_IndERR,2,0)","v":0},{"$f":"fx_Error()","v":{"$error":"#VALUE!"}}]
["13.-","Presupuesto detalle de Plan de compras general   .- La siguiente tabla debe diligenciarse manualmente ya que no arrastra información de  otros campos"]
[]
[null,{"$f":"IFERROR(\"Nota : \"&VLOOKUP(I10,Dt_Limite,3,0),\" \")","v":"Nota : Puede aplicar hasta 25 millones de presupuesto dependiendo los puntos comprometidos"},null,null,null,null,null,null,null,null,null,null,null,"Total Solicitado :===>",null,{"$f":"IF(G103=0,P50,G103)","v":125000000}]
[null,null,null,null,null,null,null,null,null,null,null,"Consulte sobre los ítems"]
[{"$f":"ROW()","v":50},"No","Rubro / Destino","Año de Vigencia","Descripción (Entidad)","Código DANE","Financiación VICEIN $",{"$f":"G110","v":"$ Contrapartida Facultad"},"Contrapartida Otros $",null,null,"No","Nombre Rubro","Rubro","Limite%",{"$f":"N2","v":125000000},"Solicitado $VICEIN","Limites de topes"]
[null,{"$f":"ROW()-$A$50","v":1},"Personal",1,"Contrapartida definida por VICEIN (No Habilitado)",null,0,{"$f":"IF(H10=\"INV\",N19,N18)","v":0},null,null,null,{"$f":"ROW()-50","v":1},"Personal",611401,1,{"$f":"SUMIF($C$50:$C$102,$M51,$G$50:$G$102)","v":0},{"$f":"P51/$P$48","v":0},{"$f":"($P$48/100)*O51*100","v":125000000}]
[null,{"$f":"ROW()-$A$50","v":2},null,1,null,null,null,null,null,null,null,{"$f":"ROW()-50","v":2},"Equipos",632,0.5,0,0,62500000]
[null,3,null,1,null,null,null,null,null,null,null,3,"Equipos en proceso",632,1,0,0,125000000]
[null,4,null,1,null,null,null,null,null,null,null,4,"Software",612102,0,0,0,0]
[null,5,null,1,null,null,null,null,null,null,null,5,"Materiales",612101,1,0,0,125000000]
[null,6,null,1,null,null,null,null,null,null,null,6,"Materiales (Papelería)",612101,0,0,0,{"$f":"($P$48/100)*O56*100","v":0}]
[null,7,null,1,null,null,null,null,null,null,null,7,"Salidas de Campo",612104,0,0,0,{"$f":"($P$48/100)*O57*100","v":0}]
[null,8,null,1,null,null,null,null,null,null,null,8,"Servicios Técnicos",612103,1,0,{"$f":"P58/$P$48","v":0},125000000]
[null,9,null,1,null,null,null,null,null,null,null,9,"Recursos Bibliográficos",633,0,0,{"$f":"P59/$P$48","v":0},0]
[null,10,null,1,null,null,null,null,null,null,null,10,"Estímulo a estudiantes Pregrado","Pendiente",0,0,0,0]
[null,11,null,1,null,null,null,null,null,null,null,11,"Estímulo a estudiantes Posgrado","Pendiente",0,0,0,0]
[null,12,null,1,null,null,null,null,null,null,null,12,"Movilidad",635020,0,0,0,0]
[null,13,null,1,null,null,null,null,null,null,null,13,"Licencias por suscripción","Pendiente",0,0,0,0]
[null,14,null,1,null,null,null,null,null,null,null,14,"Viajes",null,null,null,0]
[null,15,null,1,null,null,null,null,null,null,null,15,"Mantenimiento",null,null,null,0]
[null,16,null,1,null,null,null,null,null,null,null,16,"Administración",null,null,null,0]
[null,17,null,1,null,null,null,null,null,null,null,17,"Construcciones",null,null,null,0]
[null,18,null,1,null,null,null,null,null,null,null,18,"Otros Gastos",null,null,null,0]
[null,19,null,1,null,null,null,null,null,null,null,null,"Si cambio"]
[null,20,null,1]
[null,21,null,1]
[null,22,null,1]
[null,23,null,1]
[null,24,null,1]
[null,25,null,1]
[null,26,null,1]
[null,27,null,1]
[null,28,null,1]
[null,29,null,1]
[null,30,null,1]
[null,31,null,1]
[null,32,null,1]
[null,33,null,1]
[null,34,null,1]
[null,35,null,1]
[null,36,null,1]
[null,37,null,1]
[null,38,null,1]
[null,39,null,1]
[null,40,null,1]
[null,41,null,1]
[null,42,null,1]
[null,43,null,1]
[null,44,null,1]
[null,45,null,1]
[null,46,null,1]
[null,47,null,1]
[null,48,null,1]
[null,49,null,1]
[null,50,null,1]
[null,51,null,1]
[]
[null,null,"Sumatoria general de plan de compras :",null,null,{"$f":"SUM(G103:I103)","v":0},{"$f":"SUM(G104:G105)","v":0},{"$f":"SUM(H104:H105)","v":0},{"$f":"SUM(I104:I105)","v":0}]
[null,null,null,1,{"$f":"\"Total Presupuesto Año 1 \"&IF(H10=\"IMP\",\"IMP\",\"\")&\":\"","v":"Total Presupuesto Año 1 :"},null,{"$f":"IF(Cel_TP=\"IMP\",SUMIF($D$51:$D$102,$D104,G$51:G$102),SUM(G$51:G$102))-L103","v":0},{"$f":"SUMIF($D$51:$D$102,$D104,H$51:H$102)","v":0},{"$f":"SUMIF($D$51:$D$102,$D104,I$51:I$102)","v":0}]
[null,null,null,2,"Total Presupuesto Año 2 (IMP) :",null,{"$f":"IF(H10=\"INV\",0,SUMIF($D$51:$D$102,$D105,G$51:G$102))","v":0},{"$f":"IF(H10=\"INV\",0,SUMIF($D$51:$D$102,$D105,H$51:H$102))","v":0},{"$f":"IF(H10=\"INV\",0,SUMIF($D$51:$D$102,$D105,I$51:I$102))","v":0}]
[null,null,"Firma :_______________",null,{"$f":"IF(G106>0,\"Presupuesto por definir.\",\" Error  - Supero el presupuesto en : \")","v":"Presupuesto por definir."},null,{"$f":"E157-G103","v":125000000}]
[null,null,null,{"$f":"IF(H10=\"INV\",1,2)","v":2},"Límite de presupuesto VICEIN por año :",null,{"$f":"IFERROR(IF($H$10=\"IMP\",$P$6/2,$N$2),\"0\")","v":125000000}]
[]
[]
[null,"No","Rubro","%","Porcentaje","$ Financiación solicitada a VICEIN","$ Contrapartida Facultad","$ Contrapartida Externa","$ Total Rubro",0]
[null,1,{"$f":"C113","v":"Personal"},{"$f":"IFERROR(F111/F113,0)","v":0},{"$f":"D111","v":0},{"$f":"SUMIFS(G$50:G$102,$C$50:$C$102,$C111,$D$50:$D$102,$J111)","v":0},0,0,{"$f":"SUM(F111:H111)","v":0},1,{"$f":"IFERROR(VLOOKUP($B109,$L$50:$Q$68,4,0),0)","v":0}]
[null,1,{"$f":"C113","v":"Personal"},{"$f":"IFERROR(F111/F113,0)","v":0},0,0,0,0,0,2,null,null,null,null,null,null,null,null,null,{"$f":"SUM(I157)","v":0},{"$f":"S112-T112","v":0}]
[null,1,{"$f":"M51","v":"Personal"},{"$f":"IFERROR(VLOOKUP($B113,Dt_TblaPresu,6,0),0)","v":0},0,{"$f":"SUM(F111:F112)","v":0},{"$f":"SUM(G111:G112)","v":0},{"$f":"SUM(H111:H112)","v":0},0,3,{"$f":"IFERROR(VLOOKUP($B111,$L$50:$Q$68,4,0),0)","v":1}]
[null,{"$f":"B111+1","v":2},{"$f":"C116","v":"Equipos"},{"$f":"IFERROR(F114/F116,0)","v":0},0,{"$f":"SUMIFS(G$50:G$102,$C$50:$C$102,$C114,$D$50:$D$102,$J114)","v":0},0,0,0,{"$f":"J111","v":1},{"$f":"IFERROR(VLOOKUP($B112,$L$50:$Q$68,4,0),0)","v":1}]
[null,{"$f":"B112+1","v":2},{"$f":"C116","v":"Equipos"},{"$f":"IFERROR(F114/F116,0)","v":0},0,0,0,0,0,{"$f":"J112","v":2},1]
[null,2,{"$f":"M52","v":"Equipos"},{"$f":"IFERROR(VLOOKUP($B116,$L$50:$Q$68,6,0),0)","v":0},{"$f":"D116","v":0},{"$f":"SUM(F114:F115)","v":0},{"$f":"SUM(G114:G115)","v":0},{"$f":"SUM(H114:H115)","v":0},0,{"$f":"J113","v":3},0.5]
[null,3,{"$f":"C119","v":"Equipos en proceso"},{"$f":"IFERROR(F117/F119,0)","v":0},0,{"$f":"SUMIFS(G$50:G$102,$C$50:$C$102,$C117,$D$50:$D$102,$J117)","v":0},0,0,0,1,0.5]
[null,3,{"$f":"C119","v":"Equipos en proceso"},{"$f":"IFERROR(F117/F119,0)","v":0},0,0,0,0,0,2,0.5]
[null,3,{"$f":"M53","v":"Equipos en proceso"},{"$f":"IFERROR(VLOOKUP($B119,$L$50:$Q$68,6,0),0)","v":0},0,{"$f":"SUM(F117:F118)","v":0},{"$f":"SUM(G117:G118)","v":0},{"$f":"SUM(H117:H118)","v":0},0,3,1]
[null,4,{"$f":"C122","v":"Software"},{"$f":"IFERROR(F120/F122,0)","v":0},0,{"$f":"SUMIFS(G$50:G$102,$C$50:$C$102,$C120,$D$50:$D$102,$J120)","v":0},0,0,0,1,1]
[null,4,{"$f":"C122","v":"Software"},{"$f":"IFERROR(F120/F122,0)","v":0},0,0,0,0,0,2,1]
[null,4,{"$f":"M54","v":"Software"},{"$f":"IFERROR(VLOOKUP($B122,$L$50:$Q$68,6,0),0)","v":0},0,{"$f":"SUM(F120:F121)","v":0},{"$f":"SUM(G120:G121)","v":0},{"$f":"SUM(H120:H121)","v":0},0,3,0]
[null,5,{"$f":"C125","v":"Materiales"},{"$f":"IFERROR(F123/F125,0)","v":0},0,{"$f":"SUMIFS(G$50:G$102,$C$50:$C$102,$C123,$D$50:$D$102,$J123)","v":0},0,0,0,1,0]
[null,5,{"$f":"C125","v":"Materiales"},{"$f":"IFERROR(F123/F125,0)","v":0},0,0,0,0,0,2,0]
[null,5,{"$f":"M55","v":"Materiales"},{"$f":"IFERROR(VLOOKUP($B125,$L$50:$Q$68,6,0),0)","v":0},0,{"$f":"SUM(F123:F124)","v":0},{"$f":"SUM(G123:G124)","v":0},{"$f":"SUM(H123:H124)","v":0},0,3,1]
[null,6,{"$f":"C128","v":"Materiales (Papelería)"},{"$f":"IFERROR(F126/F128,0)","v":0},0,{"$f":"SUMIFS(G$50:G$102,$C$50:$C$102,$C126,$D$50:$D$102,$J126)","v":0},0,0,0,1,1]
[null,6,{"$f":"C128","v":"Materiales (Papelería)"},{"$f":"IFERROR(F126/F128,0)","v":0},0,0,0,0,0,2,1]
[null,6,{"$f":"M56","v":"Materiales (Papelería)"},{"$f":"IFERROR(VLOOKUP($B128,$L$50:$Q$68,6,0),0)","v":0},0,{"$f":"SUM(F126:F127)","v":0},{"$f":"SUM(G126:G127)","v":0},{"$f":"SUM(H126:H127)","v":0},0,3,0]
[null,7,{"$f":"C131","v":"Salidas de Campo"},{"$f":"IFERROR(F129/F131,0)","v":0},0,{"$f":"SUMIFS(G$50:G$102,$C$50:$C$102,$C129,$D$50:$D$102,$J129)","v":0},0,0,0,1,0]
[null,7,{"$f":"C131","v":"Salidas de Campo"},{"$f":"IFERROR(F129/F131,0)","v":0},0,0,0,0,0,2,0]
[null,7,{"$f":"M57","v":"Salidas de Campo"},{"$f":"IFERROR(VLOOKUP($B131,$L$50:$Q$68,6,0),0)","v":0},0,{"$f":"SUM(F129:F130)","v":0},{"$f":"SUM(G129:G130)","v":0},{"$f":"SUM(H129:H130)","v":0},0,3,0]
[null,8,{"$f":"C134","v":"Servicios Técnicos"},{"$f":"IFERROR(F132/F134,0)","v":0},0,{"$f":"SUMIFS(G$50:G$102,$C$50:$C$102,$C132,$D$50:$D$102,$J132)","v":0},0,0,0,1,0]
[null,8,{"$f":"C134","v":"Servicios Técnicos"},{"$f":"IFERROR(F132/F134,0)","v":0},0,0,0,0,0,2,0]
[null,8,{"$f":"M58","v":"Servicios Técnicos"},{"$f":"IFERROR(VLOOKUP($B134,$L$50:$Q$68,6,0),0)","v":0},0,{"$f":"SUM(F132:F133)","v":0},{"$f":"SUM(G132:G133)","v":0},{"$f":"SUM(H132:H133)","v":0},0,3,1]
[null,9,{"$f":"C137","v":"Recursos Bibliográficos"},{"$f":"IFERROR(F135/F137,0)","v":0},0,{"$f":"SUMIFS(G$50:G$102,$C$50:$C$102,$C135,$D$50:$D$102,$J135)","v":0},0,0,0,1,1]
[null,9,{"$f":"C137","v":"Recursos Bibliográficos"},{"$f":"IFERROR(F135/F137,0)","v":0},0,0,0,0,0,2,1]
[null,9,{"$f":"M59","v":"Recursos Bibliográficos"},{"$f":"IFERROR(VLOOKUP($B137,$L$50:$Q$68,6,0),0)","v":0},0,{"$f":"SUM(F135:F136)","v":0},{"$f":"SUM(G135:G136)","v":0},{"$f":"SUM(H135:H136)","v":0},0,3,0]
[null,10,{"$f":"C140","v":"Estímulo a estudiantes Pregrado"},{"$f":"IFERROR(F138/F140,0)","v":0},0,{"$f":"SUMIFS(G$50:G$102,$C$50:$C$102,$C138,$D$50:$D$102,$J138)","v":0},0,0,{"$f":"SUM(F138:H138)","v":0},1,0]
[null,10,{"$f":"C140","v":"Estímulo a estudiantes Pregrado"},{"$f":"IFERROR(F138/F140,0)","v":0},0,0,0,0,{"$f":"SUM(F139:H139)","v":0},2,0]
[null,10,{"$f":"M60","v":"Estímulo a estudiantes Pregrado"},{"$f":"IFERROR(VLOOKUP($B138,$L$50:$Q$68,6,0),0)","v":0},{"$f":"D140","v":0},{"$f":"SUM(F138:F139)","v":0},{"$f":"SUM(G138:G139)","v":0},{"$f":"SUM(H138:H139)","v":0},{"$f":"SUM(F140:H140)","v":0},3,{"$f":"IFERROR(VLOOKUP($B138,$L$50:$Q$68,4,0),0)","v":0}]
[null,11,{"$f":"C143","v":"Estímulo a estudiantes Posgrado"},{"$f":"IFERROR(F141/F143,0)","v":0},0,{"$f":"SUMIFS(G$50:G$102,$C$50:$C$102,$C141,$D$50:$D$102,$J141)","v":0},0,0,0,1,0]
[null,11,{"$f":"C143","v":"Estímulo a estudiantes Posgrado"},{"$f":"IFERROR(F141/F143,0)","v":0},0,0,0,0,0,2,0]
[null,11,{"$f":"M61","v":"Estímulo a estudiantes Posgrado"},{"$f":"IFERROR(VLOOKUP($B141,$L$50:$Q$68,6,0),0)","v":0},{"$f":"D143","v":0},{"$f":"SUM(F141:F142)","v":0},{"$f":"SUM(G141:G142)","v":0},{"$f":"SUM(H141:H142)","v":0},0,3,0]
[null,12,{"$f":"C146","v":"Movilidad"},{"$f":"IFERROR(VLOOKUP($B142,$L$50:$Q$68,6,0),0)","v":0},0,{"$f":"SUMIFS(G$50:G$102,$C$50:$C$102,$C144,$D$50:$D$102,$J144)","v":0},0,0,{"$f":"SUM(F144:H144)","v":0},{"$f":"J135","v":1},0]
[null,11,{"$f":"C146","v":"Movilidad"},0,0,0,0,0,{"$f":"SUM(F145:H145)","v":0},2,0]
[null,11,{"$f":"M62","v":"Movilidad"},0,{"$f":"D146","v":0},{"$f":"SUM(F144:F145)","v":0},{"$f":"SUM(G144:G145)","v":0},{"$f":"SUM(H144:H145)","v":0},{"$f":"SUM(F146:H146)","v":0},3,0]
[null,13,{"$f":"C149","v":"Licencias por suscripción"},0,0,{"$f":"SUMIFS(G$50:G$102,$C$50:$C$102,$C147,$D$50:$D$102,$J147)","v":0},0,0,0,1,0]
[null,12,{"$f":"C149","v":"Licencias por suscripción"},0,0,0,0,0,0,2,0]
[null,12,{"$f":"M63","v":"Licencias por suscripción"},0,0,{"$f":"SUM(F147:F148)","v":0},{"$f":"SUM(G147:G148)","v":0},{"$f":"SUM(H147:H148)","v":0},0,3,0]
[null,13,"Viajes",null,null,{"$f":"SUMIFS(G$50:G$102,$C$50:$C$102,$C150,$D$50:$D$102,$J150)","v":0},{"$f":"SUMIFS(H$50:H$102,$C$50:$C$102,$C150)","v":0},{"$f":"SUMIFS(I$50:I$102,$C$50:$C$102,$C150)","v":0},0,{"$f":"J149","v":3},null,null,"La siguiente tabla de plan de compras debe diligenciarse manualmente ya que no arrastra información de otros campos exceptuando la parte de contrapartida"]
[null,14,"Mantenimiento",null,null,{"$f":"SUMIFS(G$50:G$102,$C$50:$C$102,$C151,$D$50:$D$102,$J151)","v":0},{"$f":"SUMIFS(H$50:H$102,$C$50:$C$102,$C151)","v":0},0,0,{"$f":"J150","v":3}]
[null,15,"Administración",null,null,{"$f":"SUMIFS(G$50:G$102,$C$50:$C$102,$C152,$D$50:$D$102,$J152)","v":0},0,0,0,{"$f":"J151","v":3}]
[null,16,"Construcciones",null,null,{"$f":"SUMIFS(G$50:G$102,$C$50:$C$102,$C153,$D$50:$D$102,$J153)","v":0},0,0,0,{"$f":"J152","v":3}]
[null,17,"Otros Gastos",null,null,{"$f":"SUMIFS(G$50:G$102,$C$50:$C$102,$C154,$D$50:$D$102,$J154)","v":0},0,0,0,{"$f":"J153","v":3}]
[null,"T1","$ Total General (Año 1)",null,null,{"$f":"SUMIFS(F$111:F$154,$J$111:$J$154,$J155)","v":0},{"$f":"SUMIFS(G$111:G$154,$J$111:$J$154,$J155)+SUM(G150:G154)","v":0},{"$f":"SUMIFS(H$111:H$154,$J$111:$J$154,$J155)","v":0},0,1]
[null,"T2","$ Total General (Año 2)",null,null,{"$f":"SUMIFS(F$111:F$154,$J$111:$J$154,$J156)","v":0},{"$f":"SUMIFS(G$111:G$154,$J$111:$J$154,$J156)","v":0},{"$f":"SUMIFS(H$111:H$154,$J$111:$J$154,$J156)","v":0},0,2]
[null,"T3",{"$f":"\"TotalesPlan compras  -  (máximo):\"","v":"TotalesPlan compras  -  (máximo):"},null,{"$f":"N2","v":125000000},{"$f":"SUMIFS(F$111:F$154,$J$111:$J$154,$J157)","v":0},{"$f":"SUMIFS(G$111:G$154,$J$111:$J$154,$J157)","v":0},{"$f":"SUMIFS(H$111:H$154,$J$111:$J$154,$J157)","v":0},0,3]
[]
[null,"Nombre Institución Externa :",null,null,"",null,null,null,null,1,""]
[]
[null,null,null,"Propuesta:",{"$f":"D7","v":0}]
[]
[null,null,"Firma de responsable"]
[]
[]
[]
[]
[null,null,"*Pueden  Ocultar las Filas que no se utilicen ( Favor no eliminar filas)."]
[null,null,"** en el caso de necesitar mas filas en el plan de compras (Comunicarse con la VICEIN para que se pueda realizar el ajuste)"]

{"sheet":"Bibliografía","index":11,"n_rows":39,"n_cols":8,"rows_kept":39,"cut":false,"hidden":false,"merged":[[34,2,34,4],[23,2,23,4],[24,2,24,4],[25,2,25,4],[26,2,26,4],[27,2,27,4],[28,2,28,4],[29,2,29,4],[30,2,30,4],[31,2,31,4],[32,2,32,4],[33,2,33,4],[22,2,22,4],[11,2,11,4],[12,2,12,4],[13,2,13,4],[14,2,14,4],[15,2,15,4],[16,2,16,4],[17,2,17,4],[18,2,18,4],[19,2,19,4],[20,2,20,4],[21,2,21,4],[10,2,10,4],[1,2,2,2],[6,2,6,4],[7,2,7,4],[8,2,8,4],[9,2,9,4]]}
[11,null,null,null,null,null,"*Pueden  Ocultar las Filas que no se utilicen."]
[null,null,{"$f":"General!B2","v":"PRESENTACIÓN DE PROPUESTAS DE IDEAS \nINNOVADORAS 2025-1"},{"$f":"General!$H$2","v":"Fecha de Emisión: 2018/03/06"},{"$f":"General!$I$2","v":"IN-IE-F-7"}]
[null,null,null,{"$f":"General!$H$3","v":"Revisión N°:\n4"},{"$f":"\"Página \"&$A$1&\" de \"&Dt_TPG","v":"Página 11 de 11"},null,{"$f":"SUM(G7:G3500)","v":0},"<== Total de palabras"]
[]
["15.-","#","Bibliografía de la propuesta.",null,null,null,"Largo"]
[]
[null,{"$f":"ROW()-6","v":1},null,null,null,null,{"$f":"IF(C7=\"\",0,LEN(TRIM(C7))-LEN(SUBSTITUTE(TRIM(C7),\" \",\"\"))+1)","v":0}]
[null,{"$f":"ROW()-6","v":2},null,null,null,null,{"$f":"IF(C8=\"\",0,LEN(TRIM(C8))-LEN(SUBSTITUTE(TRIM(C8),\" \",\"\"))+1)","v":0}]
[null,3,null,null,null,null,0]
[null,4,null,null,null,null,0]
[null,5,null,null,null,null,0]
[null,6,null,null,null,null,0]
[null,7,null,null,null,null,0]
[null,8,null,null,null,null,0]
[null,9,null,null,null,null,0]
[null,10,null,null,null,null,0]
[null,11,null,null,null,null,0]
[null,12,null,null,null,null,0]
[null,13,null,null,null,null,0]
[null,14,null,null,null,null,0]
[null,15,null,null,null,null,0]
[null,16,null,null,null,null,0]
[null,17,null,null,null,null,0]
[null,18,null,null,null,null,0]
[null,19,null,null,null,null,0]
[null,20,null,null,null,null,0]
[null,21,null,null,null,null,0]
[null,22,null,null,null,null,0]
[null,23,null,null,null,null,0]
[null,24,null,null,null,null,0]
[null,25,null,null,null,null,0]
[null,26,null,null,null,null,0]
[null,27,null,null,null,null,0]
[null,28,null,null,null,null,0]
[null,29,null,null,null,null,0]
[]
[]
[]
[null,"*Pueden  Ocultar las Filas que no se utilicen."]

{"sheet":"Declaración","index":12,"n_rows":49,"n_cols":8,"rows_kept":49,"cut":false,"hidden":false,"merged":[[1,2,2,2],[6,2,6,4],[7,2,7,4],[9,2,9,4],[10,2,10,4],[12,2,12,4],[13,2,13,4],[14,2,14,4],[15,2,15,4],[11,2,11,4]]}
[13,null,null,null,null,null,"*Pueden  Ocultar las Filas que no se utilicen."]
[null,null,{"$f":"Bibliografía!C2","v":"PRESENTACIÓN DE PROPUESTAS DE IDEAS \nINNOVADORAS 2025-1"},"Fecha de Emisión: 2019/03/18","IN-IV-F-14"]
[null,null,null,"Revisión N°:\n4",{"$f":"\"Página \"&$A$1&\" de \"&Dt_TPG","v":"Página 13 de 11"},null,{"$f":"SUM(G10:G3510)","v":0},"<== Total de palabras"]
[]
["15.-","#","Declaración la propuesta.",null,null,null,"Largo"]
[]
[null,null,{"$f":"\"Título Proyecto: \"&General!B9","v":"Título Proyecto: "}]
[null,null,{"$f":"\"Lider del proyecto: \"&Presupuesto!D8","v":"Lider del proyecto: 0"}]
[]
[null,null,"a. Los innovadores y coinnovadores declaran con la presentación de las propuestas que la información suministrada es veraz y puede ser verificable por la Universidad Militar Nueva Granada en cualquier momento. Ante cualquier inconsistencia se podrá rechazar la propuesta y de ser el caso implicar la pérdida de la financiación del proyecto. Sin perjuicio de los procesos disciplinarios asociados. "]
[null,null,"b. La presentación de las propuestas a la convocatoria constituye la aceptación de los términos establecidos y sus anexos, en cuanto a características, condiciones y requisitos."]
[null,null,"c. La presentación de la propuesta constituye la aceptación, expresa e irrevocable de los innovadores y coinnovadores, que conocen los lineamientos y condiciones de los términos de referencia, así como, que se someten a lo establecido durante las fases de la convocatoria, de legalización, ejecución y liquidación. "]
[null,null,"d. Se aceptarán únicamente las propuestas que participen a través del procedimiento establecido y los plazos previstos en la presente convocatoria."]
[null,null,"e. La propuesta participante no podrá haber sido financiada previamente por la Universidad Militar Nueva Granada ni por otra fuente de financiación pública o privada."]
[null,null,"f. La propuesta participante no podrá ser financiada simultáneamente por otra convocatoria interna o con recursos de otras entidades del Estado o agencias públicas internacionales."]
[null,null,"g. Los participantes deben asegurar que cuentan o que obtendrán los permisos y licencias respectivas para el cumplimiento de la normatividad colombiana vigente en relación con el objeto y desarrollo de la propuesta. "]
[]
[]
[null,null,"El innovador principal y coinnovador del proyecto firman aceptando esta declaración :"]
[]
[]
[]
[]
[]
[]
[]
[]
[]
[]
[null,null,"Firma y fecha : _________________________________ "]
[]
[]
[]
[]
[]
[]
[]
[]
[]
[]
[]
[]
[]
[]
[]
[]
[]
[]
[null,"*Pueden  Ocultar las Filas que no se utilicen ( Favor no eliminar filas)."]